Workbook

Sheet Instructions
A1: New Hampshire Housing Financing Application 2025-2026 Qualified Allocation Plan
A2: Version 1, June 10, 2024
B4: This financing application has color coded tabs that must be completed based on the financing sought by the applicant
C6: Type of financing:
C7: LIHTC 4%/9% | D7: New Construction/ Sub Rehab | E7: Refinance - No Construction | F7: Refinance - with Construction
B8: Blue Tabs | C8: x | D8: x | E8: x | F8: x
B9: Green Tabs | C9: x
B10: Red Tabs | C10: x | D10: x | F10: x
B12: All sections of the tab are required. Staff reserves the right to reject partially completed applications.
B14: Please ensure that when submitting the completed application, that Section 2 of the Development Team tab is
B15: signed and mailed to the Authority along with the applicable application fee.
B18: Details for each tab:
B20: Dev Team | C20: This tab captures the members of the project's development team.
B22: Project Info | C22: This tab is used to gather general information about the project, including unit details
C23: and building features.
B25: Closing S&U | C25: This tab details the project financing sources and uses.
B27: Const S&U | C27: This tab details sources and uses of funds during the construction period.
B30: Inc & Exp | C30: This tab captures rent and other income information, operating expenses, and debt service.
B32: Pro Forma | C32: This tab automatically populated and is used to analyze income/expense trending.
B34: LIHTC Info | C34: This tab is filled out when applying for 4% and/or 9% LIHTC's.
B36: Dev Fee | C36: This tab is used to calculate the maximum developer fee, based on occupancy type
C37: and the type of project.

Sheet Project Info
A1: PROJECT INFORMATION
A3: 1 | B3: . | C3: Project Name:
A4: =A3+1 -> 2 | B4: . | C4: Project Address:
A5: =A4+1 -> 3 | B5: . | C5: Project Community: | H5: NH
E6: (city/town) | H6: (state) | I6: (zip code)
A8: Application Submission - Project Status
A9: 4 | C9: Please select the status of your project:
C10: Preapplication | H10: Mark with an "X"
C11: Final Application | H11: Mark with an "X"
C12: NH Housing Financing Commitment | H12: Mark with an "X"
C13: Financial Closing | H13: Mark with an "X"
C14: 9% LIHTC Carryover Allocation | H14: Mark with an "X"
C15: Final Allocation (8609) | H15: Mark with an "X"
A17: Development Plan
A19: =A9+1 -> 5 | B19: . | C19: Development Type (please check all that apply):
B20: =IF(LEN(TRIM(G20))>0,1,0) ->  | C20: New construction | H20: Mark with an "X"
B21: =IF(LEN(TRIM(G21))>0,1,0) ->  | C21: Acquisition and rehabilitation of existing housing | H21: Mark with an "X"
B22: =IF(LEN(TRIM(G22))>0,1,0) ->  | C22: Acquisition, minimal or no rehab of existing housing | H22: Mark with an "X"
B23: =IF(LEN(TRIM(G23))>0,1,0) ->  | C23: Refinancing of residential property to extend affordability | H23: Mark with an "X"
B24: =IF(LEN(TRIM(G24))>0,1,0) ->  | C24: Other | H24: Mark with an "X"
A26: =A19+1 -> 6 | C26: Is this a "twinned" LIHTC project with a 4% and 9%
C27: component being developed simultaneously? | H27: Yes or No
C28: If yes, how many units are in the 4% project?
C29: If yes, how many units are in the 9% project?
A32: =A26+1 -> 7 | B32: . | C32: Proposed Housing Type (please check one box):
B33: =IF(LEN(TRIM(G33))>0,1,0) ->  | C33: Rental (except SRO, see below) | H33: Mark with an "X"
C34: Limited Equity Cooperative | H34: Mark with an "X"
C35: Manufactured Housing Rental Park | H35: Mark with an "X"
C36: Single Room Occupancy (SRO) | H36: Mark with an "X"
C37: Other: | H37: Mark with an "X"
A39: 6 | C39: Project Age Designation (choose one box only):
C40: General Occupancy (No age restriction) | H40: Mark with an "X"
C41: Age-Restricted (62+, LIHTC) | H41: Mark with an "X"
C42: Age-Restricted (other, no LIHTC) | H42: Mark with an "X"
A44: =A39+1 -> 7 | B44: . | C44: Project Description:
C45: Please describe the proposed project in a few sentences. Indicate whom the
C46: project is designed to serve. Describe the current condition of the site and its
C47: ownership. Note whether the site is distressed.
A57: =A44+1 -> 8 | B57: . | C57: Development Schedule: | F57: Projected Dates
F58: MM/YYYY
C59: NH Housing Conditional Funding Award Date
C60: NH Housing Financing Commitment Date
B61: =IF(LEN(FIXED(G61,0,TRUE))<4,+G61+1900,+G61) -> 1900 | C61: Construction Loan Closing
B62: 1900 | C62: Construction Start Date | H62: =IF(F62+G62=0,"",IF(F62>12,"Use month number from 1 to 12",IF(B62<1900+(YEAR(TODAY())-1900),"year should be "&FIXED(1900+(YEAR(TODAY())-1900),0,TRUE)&" or later",""))) -> 
B63: 1900 | C63: 50% Construction Completion
B64: 1900 | C64: Construction Completion | N64: =G64 -> 0
B65: 1900 | C65: First Certificate of Occupancy
B66: 1900 | C66: Final Certificate of Occupancy
C67: Construction Loan Payoff Date
B68: 1900 | C68: Permanent Loan Closing
B69: 1900 | C69: Issuance of 8609
A73: =A57+1 -> 9 | B73: . | C73: Unit Mix:
D75: Market Rate | E75: LIHTC 20% AMI/HTF PBV | F75: LIHTC 30% AMI/HTF PBV | G75: LIHTC 60% AMI | H75: LIHTC 70% AMI | I75: LIHTC 80% AMI | J75: Income Limit/Program | K75: Income Limit/Program | L75: Income Limit/Program | M75: Income Limit/Program | N75: Total
C76: SRO | N76: =SUM(D76:M76) -> 0
C77: 0 Bedrooms | N77: 0
C78: 1 Bedrooms | N78: 0
C79: 2 Bedrooms | N79: =SUM(D79:M79) -> 0
C80: 3 Bedrooms | N80: 0
C81: 4+ Bedrooms | N81: 0
C82: Total Units | D82: =SUM(D76:D81) -> 0 | E82: =SUM(E76:E81) -> 0 | F82: =SUM(F76:F81) -> 0 | G82: 0 | H82: =SUM(H76:H81) -> 0 | I82: 0 | J82: 0 | K82: =SUM(K76:K81) -> 0 | L82: 0 | M82: 0 | N82: 0
C84: BR Count | D84: =(D76*1)+(D77*1)+(D78*1)+(D79*2)+(D80*3)+(D81*4) -> 0 | E84: 0 | F84: 0 | G84: 0 | H84: 0 | I84: 0 | J84: 0 | K84: 0 | L84: 0 | M84: 0 | N84: =SUM(D84:M84) -> 0
A86: =A73+1 -> 10 | B86: . | C86: Unit Size (Indicate the average size of units, in square feet, by bedroom size and income):
D88: =D75 -> Market Rate | E88: LIHTC 20% AMI/HTF PBV | F88: LIHTC 30% AMI/HTF PBV | G88: LIHTC 60% AMI | H88: LIHTC 70% AMI | I88: LIHTC 80% AMI | J88: Income Limit/Program | K88: Income Limit/Program | L88: Income Limit/Program | M88: Income Limit/Program
C89: 0 Bedrooms
C90: 1 Bedrooms
C91: 2 Bedrooms
C92: 3 Bedrooms
C93: 4+ Bedrooms
A95: =A86+1 -> 11 | B95: . | C95: Bathroom facilities (indicate the number of bathrooms in each of the units):
D97: =D88 -> Market Rate | E97: =E75 -> LIHTC 20% AMI/HTF PBV | F97: LIHTC 30% AMI/HTF PBV | G97: LIHTC 60% AMI | H97: LIHTC 70% AMI | I97: LIHTC 80% AMI | J97: Income Limit/Program | K97: Income Limit/Program | L97: Income Limit/Program | M97: Income Limit/Program
C98: 0 Bedrooms | N98: =SUM(D98:M98) -> 0
C99: 1 Bedrooms | N99: =SUM(D99:M99) -> 0
C100: 2 Bedrooms | N100: =SUM(D100:M100) -> 0
C101: 3 Bedrooms | N101: =SUM(D101:M101) -> 0
C102: 4+ Bedrooms | N102: =SUM(D102:M102) -> 0
M103: Total BR | N103: =SUM(N98:N102) -> 0
A104: =A95+1 -> 12 | B104: . | C104: Funding Applied For:
C105: Please check all the funding that is being applied for at this time with this application: | K105: NHHFA Construction and Long-Term Financing
C107: 9% LIHTC | F107: Yes or No | K107: NH Housing Tax-exempt Construction Loan | O107: Yes or No
C108: 4% LIHTC & Tax Exempt Bond | F108: Yes or No | K108: NH Housing Tax-exempt Long-term Loan | O108: Yes or No
C109: NH Housing Capital Subsidy | F109: Yes or No | K109: NH Housing Construction Loan | O109: Yes or No
C110: NH Housing Project Based Vouchers | F110: Yes or No | K110: NH Housing Long-Term Loan | O110: Yes or No
A112: 13
E115: New | G115: Existing/
A116: =A104+1 -> 13 | B116: . | C116: Number of buildings planned: | E116: Construction | G116: Rehabilitation | I116: Total
C117: a. Single-family | I117: =E117+G117 -> 0
C118: b. 2-4 family | I118: 0
C119: c. Townhouse | I119: 0
C120: d. Low/Mid rise | I120: 0
C121: e. High-rise | I121: 0
C122: f. Other | I122: 0
C123: TOTAL | E123: =SUM(E117:E122) -> 0 | G123: =SUM(G117:G122) -> 0 | I123: 0
E125: Yes | G125: No
A126: 14 | B126: . | C126: Scattered Sites:
A128: 15 | B128: . | C128: Number of units: | I128: =E128+G128 -> 0
A130: =A128+1 -> 16 | B130: . | C130: Gross Square Footage
C131: a. Residential | I131: =E131+G131 -> 0
C132: b. Commercial | I132: =E132+G132 -> 0
A134: =A130+1 -> 17 | B134: . | C134: Net Rentable Square Footage: | F134: Total | H134: Percent of Gross
C135: a. Residential | G135: s.f. | H135: =IF(I131>0,F135/I131," ") -> 
C136: b. Commercial | G136: s.f. | H136: =IF(F136>0,IF(I132>0,F136/I132," ")," ") -> 
A138: =A134+1 -> 18 | C138: Number of units that will be fully accessible in
C139: accordance with ICC/ANSI A117.1, Type A, Fully
C140: Accessible guidelines.
A142: =A138+1 -> 19 | C142: Number of accessibe parking spaces for
C143: Type A Fully Accessible units
A145: =A142+1 -> 20 | B145: . | C145: Fire Code Type (check):
C146: a. Concrete frame | F146: (Mark one box with an "X") | H146: =IF(E146<>" ",1,0) -> 0
C147: b. Wood frame | F147: (Mark one box with an "X") | H147: =IF(E147<>" ",1,0) -> 0
C148: c. Protected steel | F148: (Mark one box with an "X") | H148: =IF(E148<>" ",1,0) -> 0
C149: d. Masonry bearing wall | F149: (Mark one box with an "X") | H149: =IF(E149<>" ",1,0) -> 0
I150: =IF(OR(F151="yes",F151="y"),"How Many?","") -> How Many?
A151: =A145+1 -> 21 | B151: . | C151: Will buildings include elevators? | G151: ("yes" or "no") | H151: If yes, number:
A153: =A151+1 -> 22 | B153: . | C153: Are the following provided with the housing units:
C154: a. Range? | F154: ("yes" or "no") | H154: Type (gas or electric)?
C155: b. Refrigerator? | F155: ("yes" or "no")
C156: c. Microwave? | F156: ("yes" or "no")
C157: d. Dishwasher? | F157: ("yes" or "no")
C158: e. Disposal? | F158: ("yes" or "no")
C159: f. Washer/Dryer Hookup? | F159: ("yes" or "no")
C160: g. Washer & Dryer? | F160: ("yes" or "no")
C161: h. Wall-to-wall Carpet? | F161: ("yes" or "no")
C162: i. Window Air Conditioner? | F162: ("yes" or "no")
C163: j. Central Air Conditioning? | F163: ("yes" or "no")
A165: =A153+1 -> 23 | B165: . | C165: Are the following included in the rent:
C166: a. Heat? | F166: ("yes" or "no")
C167: b. Domestic Electricity? | F167: ("yes" or "no")
C168: c. Cooking Fuel? | F168: ("yes" or "no")
C169: d. Hot Water? | F169: ("yes" or "no")
C170: e. Central A/C (if any)? | F170: ("yes" or "no")
E171: Space Heating: | H171: Hot Water:
A172: =A165+1 -> 24 | B172: . | C172: Type of heating fuel: | F172: Propane | G172: =IF(E172<>" ",1,0) -> 0 | I172: Propane
C173: (Check one with "X") | F173: Natural Gas | G173: =IF(E173<>" ",1,0) -> 0 | I173: Natural Gas
F174: Oil | G174: =IF(E174<>" ",1,0) -> 0 | I174: Oil
F175: Electric | G175: =IF(E175<>" ",1,0) -> 0 | I175: Electric
A177: =A172+1 -> 25 | B177: . | C177: No. of parking spaces: | I177: =IF(E177+G177=0,0,(E177+G177)) -> 0
E178: Enclosed | G178: Outdoor | I178: Total
A180: 27 | C180: Will project in include community space? | G180: ("yes" or "no") | H180: if yes, sq. ft.
A182: 28 | C182: Will free, password-protected WIFI be included in the community room? | I182: ("yes" or "no")
A184: 29 | C184: Does applicant agree to participate in a NH Saves energy charette? | I184: ("yes" or "no")
A188: =A182+1 -> 29 | B188: . | C188: Will acquisition/rehabilitation require relocation of existing tenants? | I188: ("yes" or "no")
C189: ( If yes, please include relocation plan as Exhibit 29.)
A191: =A188+1 -> 30 | B191: . | C191: Scope of rehabilitation. If rehabilitation, please describe the following (or type N/A).
C192: a. Major systems to be replaced:
C196: b. Substandard conditions and structural deficiencies to be repaired:
C200: c. Special features/adaptations for special needs clients to be housed:
A205: =A191+1 -> 31 | B205: . | C205: Amount of demolition, if any:
A209: Information on Site and Existing Buildings
E211: Square Feet | F211: Square Feet | G211: Acres | H211: Acres
A212: =A205+1 -> 32 | B212: . | C212: Size of Site: | F212: =IF(E212>0,"",IF(G212>0,G212*43560," ")) ->  | H212: =IF(G212>0,"",IF(E212>0,E212/43560," ")) -> 
A213: =A212+1 -> 33 | B213: . | C213: Buildable area: | F213: =IF(E213>0,"",IF(G213>0,G213*43560," ")) ->  | H213: =IF(G213>0,"",IF(E213>0,E213/43560," ")) -> 
H214: =IF(G214>0,G214*43560," ") -> 
C216: Existing Conditions:
A217: =A213+1 -> 34 | B217: . | C217: What is the present use of the property?
A218: =A217+1 -> 35 | B218: . | C218: Number of existing structures:
A219: =A218+1 -> 36 | B219: . | C219: Gross s.f. of existing structures:
A220: =A219+1 -> 37 | B220: . | C220: If rehabilitation: | G220: units | H220: bedrooms
C221: a. Number of existing residential units/bedrooms:
C222: b. Number of units/bedrooms currently occupied:
A223: =A220+1 -> 38 | B223: . | C223: If site includes commercial space:
C224: a. Square footage of existing commercial space: | H224: square feet
C225: b. Square footage currently occupied: | H225: square feet
A226: =A223+1 -> 39 | B226: . | C226: What are the surrounding land uses?
C230: Utilities:
A231: =A226+1 -> 40 | B231: . | C231: Please answer "yes" or "no" as to whether the following utilities are available on the site:
C232: a. San. sewer | E232: If no, distance from site: | H232: feet | I232: =IF(OR(D232="yes",D232="no"),1,0) -> 1
C233: b. Storm sewer | E233: If no, distance from site: | H233: feet | I233: =IF(OR(D233="yes",D233="no"),1,0) -> 1
C234: c. Public water | E234: If no, distance from site: | H234: feet | I234: =IF(OR(D234="yes",D234="no"),1,0) -> 1
C235: d. Electricity | E235: If no, distance from site: | H235: feet | I235: =IF(OR(D235="yes",D235="no"),1,0) -> 1
C236: e. Gas | E236: If no, distance from site: | H236: feet | I236: =IF(OR(D236="yes",D236="no"),1,0) -> 1
C237: f. If any of the above are not available, is plan attached telling how such service will be extended
C238: to the site? | E238: ("yes" or "no") | G238: (Please attach as part of Exhibit 1.)
C243: Zoning:
A244: =A231+1 -> 41 | B244: . | C244: Does the zoning permit the proposed development? | I244: ("yes" or "no") | J244: =IF(OR(H244="yes",H244="no"),1,0) -> 1
C245: Please detail in permit status letter.
A247: =A244+1 -> 42 | B247: . | C247: If zoning does not allow for the proposed development, has the needed zoning
C248: relief/variance/special permit/subdivision approval/site plan approval | I248: ("yes" or "no")
C249: been obtained?
C250: Please detail in permit status letter.
A252: =A247+1 -> 43 | B252: . | C252: Are any other efforts for local approvals required? | I252: ("yes" or "no")
C253: Please detail in permit status letter.
C255: Site Control:
A256: =A252+1 -> 44 | B256: . | C256: What form of site control do you have? | G256: (Mark one box)
B257: =IF(LEN(TRIM(H257))>0,1,0) -> 1 | E257: Ownership | H257: (Mark one box with an "X")
B258: =IF(LEN(TRIM(H258))>0,1,0) -> 1 | E258: Purchase and Sale Agreement(s) | H258: (Mark one box with an "X")
B259: =IF(LEN(TRIM(H259))>0,1,0) -> 1 | E259: Option | H259: (Mark one box with an "X")
B260: =IF(LEN(TRIM(H260))>0,1,0) -> 1 | D260: Other: | H260: (Mark one box with an "X")
G261: Evidence of site control must be submitted with application
A263: =A256+1 -> 45 | B263: . | C263: If site not presently owned by sponsor, please answer the following:
C264: a. Type of Agreement:
C265: b. Agreement Date: | G265: Expiration Date:
C266: c. Name of Seller:
C267: d. Principals of seller corporation:
C269: e. Purchase price if under agreement:$
C270: f. Is there any identity of interest between buyer and seller? | I270: ("yes" or "no")
A272: =A263+1 -> 46 | B272: . | C272: In the past three years, have there been any defaults on any mortgage on the property or other
C273: forms of financial distress?...... | F273: ("yes" or "no") | H273: =IF(E273<>" ",1,0) -> 0
C274: If yes, please attach description as part of Exhibit 10.
A276: =A272+1 -> 47 | B276: . | C276: Are there any outstanding liens on the property? | H276: ("yes" or "no") | J276: =IF(G276<>" ",1,0) -> 0
C278: Amenities and Services:
... 11 more rows

Sheet Closing S&U
A1: CLOSING SOURCES AND USES OF FUNDS
A2: =IF(+'Project Info'!E3="","Un-named Project",+'Project Info'!E3) -> Un-named Project
A3: Sources of Funds
C5: Private Equity: | G5: Amount $
A6: 1 | B6: . | C6: Developer's Cash Equity
A7: =A6+1 -> 2 | C7: LIHTC Equity | H7: Calculated | I7: ='LIHTC Info'!H42 -> 
A8: 3 | B8: . | C8: HTC Equity | H8: Calculated | I8: ='LIHTC Info'!H43 -> 0
A9: 4 | B9: . | C9: Other Equity:
A10: 5 | B10: . | C10: Developer Fee Loan
A11: 6 | B11: . | C11: Other Source:
A12: 7 | C12: Total Private Equity | G12: =SUM(G6:G11) -> 0
C14: Public Equity: | D14: Source | F14: Amount $ | G14: =IFERROR(IF((((G7+F20)/'Project Info'!N82)>230000),"EQUITY & SUBSIDY EXCEEDS QAP MAXIMUM",""),"") -> 
A15: =A12+1 -> 8 | B15: . | C15: Grant:
A16: =A15+1 -> 9 | B16: . | C16: Grant:
A17: =A16+1 -> 10 | B17: . | C17: Total Public Equity | F17: =SUM(F15:F16) -> 0
C19: Subordinate Loans:
A20: =A17+1 -> 11 | B20: . | C20: NHH Subordinate Loan | F20: Amount $ | G20: Rate % | H20: Amortize (years) | I20: Term (years) | J20: Lien Position
C21: Source:
A22: =A20+1 -> 12 | B22: . | C22: NHH Subordinate Loan
C23: Source:
A24: =A22+1 -> 13 | B24: . | C24: NHH Subordinate Loan
C25: Source:
A26: =A24+1 -> 14 | B26: . | C26: Subordinate Loan
C27: Source:
A28: =A26+1 -> 15 | B28: . | C28: Subordinate Loan
C29: Source:
A30: =A28+1 -> 16 | C30: Subordinate Loan
C31: Source:
A32: =A28+1 -> 16 | B32: . | C32: Total Subordinate Loans | F32: =SUM(F21,F23,F25,F27,F29,F31) -> 0
C34: Long Term Loan : | F34: Amount $ | G34: Rate % | H34: Amortize (years) | I34: Term (years) | J34: Lien Position
A35: =A32+1 -> 17 | B35: . | C35: NH Housing Long-Term Loan
A36: =A35+1 -> 18 | B36: . | C36: Other Long-Term Loan
C37: Source:
A38: =A36+1 -> 19 | B38: . | C38: Other Long-Term Loan
C39: Source:
A40: =A38+1 -> 20 | B40: . | C40: Total Long-Term Senior Loan | F40: =SUM(F35,F37,F39) -> 0
A42: =A40+1 -> 21 | B42: . | C42: Total Long-Term Sources | F42: =G12+F17+F32+F40 -> 0 | G42: =IFERROR(IF(I41>I17,"WARNING - TDC EXCEEDS QAP LIMIT!!",""),"") -> 
F43: =IF(F42<>G228,"Sources and Uses do NOT Match!","Ok, Sources and Uses Match!") -> Ok, Sources and Uses Match! | I43: =IF(F42<>G228,F42-G228,"") -> 
C44: Construction/Bridge Financing:
A45: =A42+1 -> 22 | B45: . | C45: Construction Loan | F45: Amount $ | G45: Rate % | H45: Term (months) | I45: Lien Position
C46: Source:
C47: Repaid at:
A48: =A45+1 -> 23 | B48: . | C48: Other Interim Loan
C49: Source:
C50: Repaid at:
A51: =A48+1 -> 24 | B51: . | C51: Tax Credit Bridge Loan
C52: Source:
C53: Repaid at:
C56: Uses of Funds
C57: NOTE: Construction cost breakout by trade is only required on the Final Application submitted during the application period
C59: Direct Construction:
A60: =A51+1 -> 25 | B60: . | C60: Who prepared the estimates?
A61: =A60+1 -> 26 | B61: . | C61: What is basis for estimates?
C63: Division | D63: Trade Item | F63: Amount $ | G63: Trade Description
A64: =A61+1 -> 27 | B64: . | C64: 3 | D64: Concrete
A65: =A64+1 -> 28 | B65: . | C65: 4 | D65: Masonry
A66: 29 | B66: . | C66: 5 | D66: Metals
A67: 30 | B67: . | C67: 6 | D67: Rough Carpentry
A68: 31 | B68: . | C68: 6 | D68: Finish Carpentry
A69: 32 | B69: . | C69: 7 | D69: Waterproofing
A70: 33 | B70: . | C70: 7 | D70: Insulation
A71: 34 | B71: . | C71: 7 | D71: Roofing
A72: 35 | B72: . | C72: 7 | D72: Siding
A73: 36 | B73: . | C73: 8 | D73: Doors
A74: 37 | B74: . | C74: 8 | D74: Windows
A75: 38 | B75: . | C75: 8 | D75: Glass
A76: 39 | B76: . | C76: 9 | D76: Drywall
A77: 40 | B77: . | C77: 9 | D77: Acoustical
A78: 41 | B78: . | C78: 9 | D78: Wood Flooring
A79: 42 | B79: . | C79: 9 | D79: Resilient Flooring
A80: 43 | B80: . | C80: 9 | D80: Paint & Decorating
A81: 44 | B81: . | C81: 9 | D81: Tile
A82: 45 | B82: . | C82: 10 | D82: Specialties
A83: 46 | B83: . | C83: 11 | D83: Special Equipment
A84: 47 | B84: . | C84: 11 | D84: Cabinets
A85: 48 | B85: . | C85: 11 | D85: Appliances
A86: 49 | B86: . | C86: 12 | D86: Blinds & Shades
A87: 50 | B87: . | C87: 12 | D87: Carpet
A88: 51 | B88: . | C88: 13 | D88: Special Construction
A89: 52 | B89: . | C89: 14 | D89: Elevators
A90: 53 | B90: . | C90: 15 | D90: Plumbing & Hot Water
A91: 54 | B91: . | C91: 15 | D91: Heat & Ventilation
A92: 55 | B92: . | C92: 15 | D92: Air Conditioning
A93: 56 | B93: . | C93: 16 | D93: Electrical
A94: 57 | B94: . | D94: Accessory Buildings
A95: 58 | B95: . | D95: Other/Misc
A96: 59 | B96: . | D96: Subtotal Structural | F96: =SUM(F64:F95) -> 0
A97: 60 | C97: 2 | D97: Demolition
A98: 61 | B98: . | C98: 2 | D98: Earth Work
A99: 62 | B99: . | C99: 2 | D99: Site Utilities
A100: 63 | B100: . | C100: 2 | D100: Roads & Walks
A101: 64 | B101: . | C101: 2 | D101: Site Improvement
A102: 65 | B102: . | C102: 2 | D102: Lawns & Planting
A103: 66 | B103: . | C103: 2 | D103: Unusual Site Conditions
A104: 67 | B104: . | D104: Subtotal Site Work | F104: =SUM(F97:F103) -> 0
A105: 68 | B105: . | D105: Total Improvements | F105: =F104+F96 -> 0
A106: 69 | B106: . | D106: General Conditions | H106: As % of Total Improvements: | I106: =IF(F105=0,"",F106/F105) -> 
A107: 70 | B107: . | D107: Subtotal | F107: =F106+F105 -> 0
A108: 71 | B108: . | D108: Builders Overhead | H108: As % of Subtotal: | I108: =IF(F107=0,"",F108/F107) -> 
A109: 72 | B109: . | D109: Builders Profit | H109: As % of Subtotal: | I109: =IF(F107=0,"",F109/F107) -> 
A110: 73 | B110: . | D110: TOTAL | E110: (computed for you) | F110: =SUM(F107:F109) -> 0 | H110: Cost/Sq.Ft.: | I110: =IF('Project Info'!I131+'Project Info'!I132>0,F110/('Project Info'!I131+'Project Info'!I132),0) -> 0
C113: Development Budget:
C115: ACQUISITION | E115: Residential | F115: Non-Residential | G115: Total | H115: Comments/Explanation of Costs | L115: Construction Costs
A116: =A110+1 -> 74 | B116: . | C116: Land | G116: =E116+F116 -> 0 | L116: Including Contingency
A117: =A116+1 -> 75 | B117: . | C117: Existing Building | G117: =E117+F117 -> 0 | L117: Total Construction | M117: =G118+#REF! -> 
A118: =A117+1 -> 76 | B118: . | C118: Transfer Tax | G118: =E118+F118 -> 0
A119: =A118+1 -> 77 | B119: . | G119: =E119+F119 -> 0
C120: Subtotal | E120: =SUM(E116:E119) -> 0 | F120: =SUM(F116:F119) -> 0 | G120: =SUM(G116:G119) -> 0 | J120: =IF(G120=0,"",G120/$G$228) ->  | L120: Construction Per unit | M120: =IFERROR(M117/'Project Info'!N82,"") -> 
C122: CONSTRUCTION | E122: Residential | F122: Non-Residential | G122: Total | H122: Comments/Explanation of Costs
A123: =A119+1 -> 78 | C123: Construction Budget | G123: =SUM(E123:F123) -> 0
A124: =A123+1 -> 79 | C124: Construction Contingency | G124: =SUM(E124:F124) -> 0 | H124: % of construction | I124: =(E124/E123) -> 
A125: =A124+1 -> 80 | G125: 0
C126: Subtotal | E126: =SUM(E123:E125) -> 0 | F126: =SUM(F123:F125) -> 0 | G126: 0
C128: ARCHITECTURAL/ ENGINEERING/PROFESSIONAL FEES | E128: Residential | F128: Non-Residential | G128: Total | H128: Comments/Explanation of Costs
A129: =A125+1 -> 81 | B129: . | C129: Architect Fee-Design | G129: =E129+F129 -> 0 | H129: =IF(AND(G129>0,G123>0),+G129/G123,0) -> 0 | I129: % of construct.
A130: =A129+1 -> 82 | C130: Architect Fee-Inspection | G130: 0
A131: 83 | B131: . | C131: Engineering Fees | G131: 0
A132: 84 | B132: . | C132: Historic Consultant Fees | G132: 0
A133: 85 | B133: . | C133: Solar Consultant Fees | G133: 0
A134: 86 | B134: . | C134: Site Survey | G134: 0
A135: 87 | G135: 0
A136: 88 | G136: 0
A137: 89 | G137: 0
A138: 90 | B138: . | G138: 0
C139: Subtotal | E139: =SUM(E129:E138) -> 0 | F139: =SUM(F129:F138) -> 0 | G139: =SUM(G129:G138) -> 0 | J139: =IF(G139=0,"",G139/$G$228) -> 
C141: INTERIM CONSTRUCTION EXPENSE | E141: Residential | F141: Non-Residential | G141: Total | H141: Comments/Explanation of Costs
A142: =A138+1 -> 91 | B142: . | C142: Construction Loan Origination Fee | G142: =E142+F142 -> 0
A143: =A142+1 -> 92 | B143: . | C143: Construction Period Interest | G143: 0
A144: 93 | B144: . | C144: Construction Period Insurance | G144: 0
A145: 94 | B145: . | C145: P&P Bond/Letter of Credit | G145: 0
A146: 95 | B146: . | C146: Construction Lender's Counsel | G146: 0
A147: 96 | B147: . | C147: Taxes During Construction | G147: 0
A148: 97 | C148: Bond - Cost of Issuance | G148: 0
A149: =A148+1 -> 98 | G149: 0
A150: 99 | B150: . | G150: 0
A151: 100 | G151: 0
A152: =A151+1 -> 101 | B152: . | G152: 0
C153: Subtotal | E153: =SUM(E142:E152) -> 0 | F153: =SUM(F142:F152) -> 0 | G153: =SUM(G142:G152) -> 0 | J153: =IF(G153=0,"",G153/$G$228) -> 
C155: FINANCING FEES AND EXPENSE | E155: Residential | F155: Non-Residential | G155: Total | H155: Comments/Explanation of Costs
A156: =A152+1 -> 102 | B156: . | C156: Long-Term Loan Origination Fee | G156: =E156+F156 -> 0
A157: =A156+1 -> 103 | B157: . | C157: Title Insurance and Record | G157: 0
A158: =A157+1 -> 104 | B158: . | C158: Long-Term Lender's Counsel | G158: 0
A159: =A158+1 -> 105 | B159: . | C159: Bond - Cost of Issuance | G159: 0
A160: 106 | B160: . | C160: Upfront MIP Fee | G160: 0
A161: 107 | B161: . | C161: FFB Trustee Fee | G161: 0
A162: 108 | B162: . | G162: 0
A163: =A162+1 -> 109 | B163: . | G163: 0
C164: Subtotal | E164: =SUM(E156:E163) -> 0 | F164: =SUM(F156:F163) -> 0 | G164: =SUM(G156:G163) -> 0 | J164: =IF(G164=0,"",G164/$G$228) -> 
C166: OTHER SOFT COSTS | E166: Residential | F166: Non-Residential | G166: Total | H166: Comments/Explanation of Costs
A167: =A163+1 -> 110 | B167: . | C167: Appraisal | G167: =E167+F167 -> 0
A168: =A167+1 -> 111 | B168: . | C168: Market Study | G168: 0
A169: 112 | B169: . | C169: Environmental Report | G169: 0
A170: =A169+1 -> 113 | B170: . | C170: Relocation Costs | G170: 0
A171: 114 | B171: . | C171: Borrower Legal Fees | G171: 0
A172: 115 | B172: . | C172: Accounting Fees | G172: 0
A173: =A172+1 -> 116 | B173: . | C173: NH Housing Lender Inspector | G173: 0
A174: =A173+1 -> 117 | C174: Furnishings, Fixtures and Equipment | G174: 0
A175: 118 | C175: Clerk of the Works | G175: 0
A176: 119 | C176: Marketing and Lease-up | G176: 0
A177: =A176+1 -> 120 | C177: Building Permits | G177: 0
A178: 121 | C178: Other Permits | G178: 0
A179: 122 | C179: Impact Fees | G179: 0
A180: 123 | C180: Water and Sewer Fees | G180: 0
A181: 124 | C181: Soft Cost Contingency | G181: 0
A182: 125 | G182: 0
A183: 126 | G183: 0
A184: 127 | G184: 0
A185: 128 | B185: . | G185: 0
C186: Subtotal | E186: =SUM(E167:E185) -> 0 | F186: =SUM(F167:F185) -> 0 | G186: =SUM(G167:G185) -> 0 | J186: =IF(G186=0,"",G186/$G$228) -> 
L189: If construction > $2.5 Million = 18% MAX
C190: DEVELOPER FEE | E190: Residential | F190: Non-Residential | G190: Total | H190: Comments/Explanation of Costs | L190: If construction < $2.5 Million = 20% MAX
A191: =A185+1 -> 129 | B191: . | C191: Developer Overhead and Profit | G191: =E191+F191 -> 0 | H191: Reference "Dev Fee" Tab | L191: Identity of Interest Check | M191: =SUM((F106+F108+F109+E193)/E228) -> 
A192: =A191+1 -> 130 | B192: . | C192: Development Consultant Fee | G192: =E192+F192 -> 0 | H192: Must be netted from Developer Fee
C193: Subtotal | E193: =SUM(E191:E192) -> 0 | F193: =SUM(F191:F192) -> 0 | G193: =E193+F193 -> 0 | J193: =IF(G193=0,"",G193/$G$228) -> 
C195: SYNDICATION EXPENSES | E195: Residential | F195: Non-Residential | G195: Total | H195: Comments/Explanation of Costs
A196: =A192+1 -> 131 | B196: . | C196: Syndication Legal | G196: =E196+F196 -> 0
A197: =A196+1 -> 132 | B197: . | C197: Syndication Accounting | G197: 0
A198: 133 | B198: . | C198: Syndication Fees | G198: 0
A199: 134 | B199: . | C199: Syndication Consultant | G199: 0
A200: 135 | B200: . | C200: Bridge Loan Origination Fee | G200: 0
A201: 136 | B201: . | C201: Bridge Loan Interest | G201: 0
A202: 137 | B202: . | C202: Investor Servicing (capital) | G202: 0
A203: 138 | B203: . | G203: 0
C204: Subtotal | E204: =SUM(E196:E203) -> 0 | F204: =SUM(F196:F203) -> 0 | G204: =SUM(G196:G203) -> 0 | J204: =IF(G204=0,"",G204/$G$228) -> 
C206: RESERVES (see NH Housing Underwriting Standards) | E206: Residential | F206: Non-Residential | G206: Total | H206: Comments/Explanation of Costs
A207: =A203+1 -> 139 | B207: . | C207: Operating Reserve | G207: =E207+F207 -> 0 | H207: Calculated | I207: =('Pro Forma'!F46/12*4)+('Inc & Exp'!G234/12*4) -> 0
A208: =A207+1 -> 140 | B208: . | C208: FFB Operating Reserve (FFB Transactions only) | G208: =E208+F208 -> 0 | H208: Calculated | I208: ='Inc & Exp'!G228/12*2 -> 0
A209: =A208+1 -> 141 | B209: . | C209: Replacement Reserve | G209: 0 | H209: Calculated | I209: ='Inc & Exp'!F223*'Project Info'!N82 -> 0
A210: =A209+1 -> 142 | B210: . | C210: Insurance Escrow | G210: 0
A211: 143 | B211: . | C211: Real Estate Tax Escrow | G211: 0
A212: 144 | B212: . | G212: 0
A213: 145 | B213: . | G213: 0
C214: Subtotal | E214: =SUM(E207:E213) -> 0 | F214: =SUM(F207:F213) -> 0 | G214: =SUM(G207:G213) -> 0 | J214: =IF(G214=0,"",G214/$G$228) -> 
C216: PROGRAM FEES | E216: Residential | F216: Non-Residential | G216: Total | H216: Comments/Explanation of Costs
A217: =(A213+1) -> 146 | C217: LIHTC Allocation Fee | G217: =(E217+F217) -> 0 | H217: 7% of Annual Credit Allocation
A218: =(A217+1) -> 147 | C218: LIHTC Upfront Monitoring Fee | G218: =(E218+F218) -> 0 | H218: See NHH Fee Schedule
A219: =(A218+1) -> 148 | C219: HOME Monitoring Fee | G219: 0 | H219: See NHH Fee Schedule
A220: =(A219+1) -> 149 | C220: HOME-ARP Monitoring Fee | G220: 0 | H220: See NHH Fee Schedule
A221: =(A220+1) -> 150 | C221: Housing Trust Fund Monitoring Fee | G221: 0 | H221: See NHH Fee Schedule
A222: =(A221+1) -> 151 | C222: AHF Monitoring Fee | G222: 0 | H222: See NHH Fee Schedule
... 20 more rows

Sheet Inc & Exp
A1: OPERATING PRO-FORMA
A2: ='Closing S&U'!A2 -> Un-named Project
A4: Operating Income
C5: Rent Schedule:
A6: 1 | C6: ='Project Info'!D75 -> Market Rate | D6: Market Rent | E6: Contract Rent | F6: Utility Allowance | G6: % of Market Rent | H6: Gross Rent | I6: # of Units
C7: SRO | G7: =IFERROR(H7/D7,"") ->  | H7: =IF(I7>0,E7+F7,"") ->  | I7: ='Project Info'!D76 -> 0 | J7: =(E7*I7)*12 -> 0
C8: 0 Bedroom | I8: ='Project Info'!D77 -> 0 | J8: 0
C9: 1 Bedroom | I9: ='Project Info'!D78 -> 0 | J9: 0
C10: 2 Bedroom | I10: ='Project Info'!D79 -> 0 | J10: 0
C11: 3 Bedroom | I11: ='Project Info'!D80 -> 0 | J11: 0
C12: 4 Bedroom | I12: ='Project Info'!D81 -> 0 | J12: 0
H13: Subtotal | I13: =SUM(I7:I12) -> 0
A15: =A6+1 -> 2 | C15: ='Project Info'!E75 -> LIHTC 20% AMI/HTF PBV | D15: Rent Limit | E15: Contract Rent | F15: Utility Allowance | G15: % of Rent Limit | H15: Gross Rent | I15: # of Units
C16: SRO | G16: =IFERROR(H16/D16,"") ->  | H16: =IF(I16>0,E16+F16,"") ->  | I16: ='Project Info'!E76 -> 0 | J16: =(E16*I16)*12 -> 0
C17: 0 Bedroom | I17: ='Project Info'!E77 -> 0 | J17: 0
C18: 1 Bedroom | I18: ='Project Info'!E78 -> 0 | J18: 0
C19: 2 Bedroom | I19: ='Project Info'!E79 -> 0 | J19: 0
C20: 3 Bedroom | I20: ='Project Info'!E80 -> 0 | J20: 0
C21: 4 Bedroom | I21: ='Project Info'!E81 -> 0 | J21: 0
H22: Subtotal | I22: =SUM(I16:I21) -> 0
A24: =A15+1 -> 3 | C24: ='Project Info'!F75 -> LIHTC 30% AMI/HTF PBV | D24: Rent Limit | E24: Contract Rent | F24: Utility Allowance | G24: % of Rent Limit | H24: Gross Rent | I24: # of Units
C25: SRO | G25: =IFERROR(H25/D25,"") ->  | H25: =IF(I25>0,E25+F25,"") ->  | I25: ='Project Info'!F76 -> 0 | J25: =(E25*I25)*12 -> 0
C26: 0 Bedroom | I26: ='Project Info'!F77 -> 0 | J26: 0
C27: 1 Bedroom | I27: ='Project Info'!F78 -> 0 | J27: 0
C28: 2 Bedroom | I28: ='Project Info'!F79 -> 0 | J28: 0
C29: 3 Bedroom | I29: ='Project Info'!F80 -> 0 | J29: 0
C30: 4 Bedroom | I30: ='Project Info'!F81 -> 0 | J30: 0
H31: Subtotal | I31: =SUM(I25:I30) -> 0
A33: =A24+1 -> 4 | C33: ='Project Info'!G75 -> LIHTC 60% AMI | D33: Rent Limit | E33: Contract Rent | F33: Utility Allowance | G33: % of Rent Limit | H33: Gross Rent | I33: # of Units
C34: SRO | G34: =IFERROR(H34/D34,"") ->  | H34: =IF(I34>0,E34+F34,"") ->  | I34: ='Project Info'!G76 -> 0 | J34: =(E34*I34)*12 -> 0
C35: 0 Bedroom | I35: ='Project Info'!G77 -> 0 | J35: 0
C36: 1 Bedroom | I36: ='Project Info'!G78 -> 0 | J36: 0
C37: 2 Bedroom | I37: ='Project Info'!G79 -> 0 | J37: 0
C38: 3 Bedroom | I38: ='Project Info'!G80 -> 0 | J38: 0
C39: 4 Bedroom | I39: ='Project Info'!G81 -> 0 | J39: 0
H40: Subtotal | I40: =SUM(I34:I39) -> 0
A42: =A33+1 -> 5 | C42: ='Project Info'!H75 -> LIHTC 70% AMI | D42: Rent Limit | E42: Contract Rent | F42: Utility Allowance | G42: % of Rent Limit | H42: Gross Rent | I42: # of Units
C43: SRO | G43: =IFERROR(H43/D43,"") ->  | H43: =IF(I43>0,E43+F43,"") ->  | I43: ='Project Info'!H76 -> 0 | J43: =(E43*I43)*12 -> 0
C44: 0 Bedroom | I44: ='Project Info'!H77 -> 0 | J44: 0
C45: 1 Bedroom | I45: ='Project Info'!H78 -> 0 | J45: 0
C46: 2 Bedroom | I46: ='Project Info'!H79 -> 0 | J46: 0
C47: 3 Bedroom | I47: ='Project Info'!H80 -> 0 | J47: 0
C48: 4 Bedroom | I48: ='Project Info'!H81 -> 0 | J48: 0
H49: Subtotal | I49: =SUM(I43:I48) -> 0
C53: Rent Schedule (Continued):
A55: =A42+1 -> 6 | C55: ='Project Info'!I75 -> LIHTC 80% AMI | D55: Rent Limit | E55: Contract Rent | F55: Utility Allowance | G55: % of Rent Limit | H55: Gross Rent | I55: # of Units
C56: SRO | G56: =IFERROR(H56/D56,"") ->  | H56: =IF(I56>0,E56+F56,"") ->  | I56: ='Project Info'!I76 -> 0 | J56: =(E56*I56)*12 -> 0
C57: 0 Bedroom | I57: ='Project Info'!I77 -> 0 | J57: 0
C58: 1 Bedroom | I58: ='Project Info'!I78 -> 0 | J58: 0
C59: 2 Bedroom | I59: ='Project Info'!I79 -> 0 | J59: 0
C60: 3 Bedroom | I60: ='Project Info'!I80 -> 0 | J60: 0
C61: 4 Bedroom | I61: ='Project Info'!I81 -> 0 | J61: 0
H62: Subtotal | I62: =SUM(I56:I61) -> 0
A64: =A55+1 -> 7 | C64: ='Project Info'!J75 -> Income Limit/Program | D64: Rent Limit | E64: Contract Rent | F64: Utility Allowance | G64: % of Rent Limit | H64: Gross Rent | I64: # of Units
C65: SRO | G65: =IFERROR(H65/D65,"") ->  | H65: =IF(I65>0,E65+F65,"") ->  | I65: ='Project Info'!J76 -> 0 | J65: =(E65*I65)*12 -> 0
C66: 0 Bedroom | I66: ='Project Info'!J77 -> 0 | J66: 0
C67: 1 Bedroom | I67: ='Project Info'!J78 -> 0 | J67: 0
C68: 2 Bedroom | I68: ='Project Info'!J79 -> 0 | J68: 0
C69: 3 Bedroom | I69: ='Project Info'!J80 -> 0 | J69: 0
C70: 4 Bedroom | I70: ='Project Info'!J81 -> 0 | J70: 0
H71: Subtotal | I71: =SUM(I65:I70) -> 0
A73: =A64+1 -> 8 | C73: ='Project Info'!K75 -> Income Limit/Program | D73: Rent Limit | E73: Contract Rent | F73: Utility Allowance | G73: % of Rent Limit | H73: Gross Rent | I73: # of Units
C74: SRO | G74: =IFERROR(H74/D74,"") ->  | H74: =IF(I74>0,E74+F74,"") ->  | I74: ='Project Info'!K76 -> 0 | J74: =(E74*I74)*12 -> 0
C75: 0 Bedroom | I75: ='Project Info'!K77 -> 0 | J75: 0
C76: 1 Bedroom | I76: ='Project Info'!K78 -> 0 | J76: 0
C77: 2 Bedroom | I77: ='Project Info'!K79 -> 0 | J77: 0
C78: 3 Bedroom | I78: ='Project Info'!K80 -> 0 | J78: 0
C79: 4 Bedroom | I79: ='Project Info'!K81 -> 0 | J79: 0
H80: Subtotal | I80: =SUM(I74:I79) -> 0
A81: =A73+1 -> 9 | C81: ='Project Info'!L75 -> Income Limit/Program | D81: Rent Limit | E81: Contract Rent | F81: Utility Allowance | G81: % of Rent Limit | H81: Gross Rent | I81: # of Units
C82: SRO | G82: =IFERROR(H82/D82,"") ->  | H82: =IF(I82>0,E82+F82,"") ->  | I82: ='Project Info'!L76 -> 0 | J82: =(E82*I82)*12 -> 0
C83: 0 Bedroom | I83: ='Project Info'!L77 -> 0 | J83: 0
C84: 1 Bedroom | I84: ='Project Info'!L78 -> 0 | J84: 0
C85: 2 Bedroom | I85: ='Project Info'!L79 -> 0 | J85: 0
C86: 3 Bedroom | I86: ='Project Info'!L80 -> 0 | J86: 0
C87: 4 Bedroom | I87: ='Project Info'!L81 -> 0 | J87: 0
H88: Subtotal | I88: =SUM(I82:I87) -> 0
A90: =A81+1 -> 10 | C90: ='Project Info'!M75 -> Income Limit/Program | D90: Rent Limit | E90: Contract Rent | F90: Utility Allowance | G90: % of Rent Limit | H90: Gross Rent | I90: # of Units
C91: SRO | G91: =IFERROR(H91/D91,"") ->  | H91: =IF(I91>0,E91+F91,"") ->  | I91: ='Project Info'!M76 -> 0 | J91: =(E91*I91)*12 -> 0
C92: 0 Bedroom | I92: ='Project Info'!M77 -> 0 | J92: 0
C93: 1 Bedroom | I93: ='Project Info'!M78 -> 0 | J93: 0
C94: 2 Bedroom | I94: ='Project Info'!M79 -> 0 | J94: 0
C95: 3 Bedroom | I95: ='Project Info'!M80 -> 0 | J95: 0
C96: 4 Bedroom | I96: ='Project Info'!M81 -> 0 | J96: 0
H97: Subtotal | I97: =SUM(I91:I96) -> 0
C101: Commercial Income: | F101: (average) $ / sq. ft.
A102: =A90+1 -> 11 | C102: Square Feet: | D102: ='Project Info'!F136 -> 0 | E102: @ | G102: = Comm. Income: | I102: =D102*F102 -> 0
C104: Vacancy Rates: | D104: Year 1 | E104: Year 2 | F104: Year 3 | G104: Year 4 | H104: Year 5 | I104: Year 6 and up
A105: =A102+1 -> 12 | C105: ='Project Info'!D75 -> Market Rate | D105: 0.05 | E105: 0.05 | F105: 0.05 | G105: 0.05 | H105: 0.05 | I105: 0.05
A106: =(A105+1) -> 13 | C106: ='Project Info'!E75 -> LIHTC 20% AMI/HTF PBV | D106: 0.05 | E106: 0.05 | F106: 0.05 | G106: 0.05 | H106: 0.05 | I106: 0.05
A107: =(A106+1) -> 14 | C107: ='Project Info'!F75 -> LIHTC 30% AMI/HTF PBV | D107: 0.05 | E107: 0.05 | F107: 0.05 | G107: 0.05 | H107: 0.05 | I107: 0.05
A108: 15 | C108: ='Project Info'!G75 -> LIHTC 60% AMI | D108: 0.05 | E108: 0.05 | F108: 0.05 | G108: 0.05 | H108: 0.05 | I108: 0.05
A109: 16 | C109: ='Project Info'!H75 -> LIHTC 70% AMI | D109: 0.05 | E109: 0.05 | F109: 0.05 | G109: 0.05 | H109: 0.05 | I109: 0.05
A110: 17 | C110: ='Project Info'!I75 -> LIHTC 80% AMI | D110: 0.05 | E110: 0.05 | F110: 0.05 | G110: 0.05 | H110: 0.05 | I110: 0.05
A111: =A110+1 -> 18 | C111: ='Project Info'!J75 -> Income Limit/Program | D111: 0.05 | E111: 0.05 | F111: 0.05 | G111: 0.05 | H111: 0.05 | I111: 0.05
A112: 19 | C112: ='Project Info'!K75 -> Income Limit/Program | D112: 0.05 | E112: 0.05 | F112: 0.05 | G112: 0.05 | H112: 0.05 | I112: 0.05
A113: 20 | C113: ='Project Info'!L75 -> Income Limit/Program | D113: 0.05 | E113: 0.05 | F113: 0.05 | G113: 0.05 | H113: 0.05 | I113: 0.05
A114: 21 | C114: ='Project Info'!M75 -> Income Limit/Program | D114: 0.05 | E114: 0.05 | F114: 0.05 | G114: 0.05 | H114: 0.05 | I114: 0.05
A115: 22 | C115: Commercial Space | D115: 0.05 | E115: 0.05 | F115: 0.05 | G115: 0.05 | H115: 0.05 | I115: 0.05
A117: =A115+1 -> 23 | C117: Laundry Income (annual): | F117: $
A119: =A117+1 -> 24 | C119: Other Income: | F119: $
C120: Trending Assumptions
C121: for Rents: | E121: Year 2 % | F121: Year 3 % | G121: Year 4 % | H121: Year 5 % | I121: Years 6-20 %
A122: =A119+1 -> 25 | C122: ='Project Info'!D75 -> Market Rate | E122: 0.02 | F122: 0.02 | G122: 0.02 | H122: 0.02 | I122: 0.025 | J122: =IF(AND(I13>0,SUM(E122:H122)<0.000001),1,0) -> 0
A123: =A122+1 -> 26 | C123: ='Project Info'!E75 -> LIHTC 20% AMI/HTF PBV | E123: 0.02 | F123: 0.02 | G123: 0.02 | H123: 0.02 | I123: 0.025
A124: =A123+1 -> 27 | C124: ='Project Info'!F75 -> LIHTC 30% AMI/HTF PBV | E124: 0.02 | F124: 0.02 | G124: 0.02 | H124: 0.02 | I124: 0.025
A125: 28 | C125: ='Project Info'!G75 -> LIHTC 60% AMI | E125: 0.02 | F125: 0.02 | G125: 0.02 | H125: 0.02 | I125: 0.025
A126: 29 | C126: ='Project Info'!H75 -> LIHTC 70% AMI | E126: 0.02 | F126: 0.02 | G126: 0.02 | H126: 0.02 | I126: 0.025
A127: 30 | C127: ='Project Info'!I75 -> LIHTC 80% AMI | E127: 0.02 | F127: 0.02 | G127: 0.02 | H127: 0.02 | I127: 0.025
A128: =A127+1 -> 31 | C128: ='Project Info'!J75 -> Income Limit/Program | E128: 0.02 | F128: 0.02 | G128: 0.02 | H128: 0.02 | I128: 0.025 | J128: =IF(AND(I22>0,SUM(E128:H128)<0.000001),1,0) -> 0
A129: =A128+1 -> 32 | C129: ='Project Info'!K75 -> Income Limit/Program | E129: 0.02 | F129: 0.02 | G129: 0.02 | H129: 0.02 | I129: 0.025 | J129: =IF(AND(I31>0,SUM(E129:H129)<0.000001),1,0) -> 0
A130: 33 | C130: ='Project Info'!L75 -> Income Limit/Program | E130: 0.02 | F130: 0.02 | G130: 0.02 | H130: 0.02 | I130: 0.025 | J130: =IF(AND(I40>0,SUM(E130:H130)<0.000001),1,0) -> 0
A131: =A130+1 -> 34 | C131: ='Project Info'!M75 -> Income Limit/Program | E131: 0.02 | F131: 0.02 | G131: 0.02 | H131: 0.02 | I131: 0.025 | J131: =IF(AND(I48>0,SUM(E131:H131)<0.000001),1,0) -> 0
A132: =A131+1 -> 35 | C132: Commercial Space Rental | E132: 0.02 | F132: 0.02 | G132: 0.02 | H132: 0.02 | I132: 0.025 | J132: =IF(AND(D102>0,SUM(E132:H132)<0.000001),1,0) -> 0
A133: 36 | C133: Other Income | E133: 0.02 | F133: 0.02 | G133: 0.02 | H133: 0.02 | I133: 0.025
C135: Note: Current Authority underwriting standard on trending: 2% on income, 3% on oper exp incl replacement reserve.
C137: Operating Subsidy and Capitalized Operating Reserves:
A139: =A133+1 -> 37 | C139: Yearly Draws on Subsidies and Reserves:(if any) | G139: Note: This section locked …for Authority staff only
C141: Source I ($) | D141: Source II ($) | E141: Source III ($) | G141: Source I ($) | H141: Source II ($) | I141: Source III ($)
B142: NAME | E142: Operating Reserves | G142: =C142 -> 0 | H142: =D142 ->  | I142: =E142 -> Operating Reserves
B143: Year 1 | C143: 0 | F143: Year 11 | G143: =C152*1.0125 -> 0
B144: Year 2 | C144: =C143*1.0125 -> 0 | F144: Year 12 | G144: =G143*1.0125 -> 0
B145: Year 3 | C145: 0 | F145: Year 13 | G145: 0
B146: Year 4 | C146: 0 | F146: Year 14 | G146: 0
B147: Year 5 | C147: 0 | F147: Year 15 | G147: 0
B148: Year 6 | C148: 0 | F148: Year 16 | G148: 0
B149: Year 7 | C149: 0 | F149: Year 17 | G149: 0
B150: Year 8 | C150: 0 | F150: Year 18 | G150: 0
B151: Year 9 | C151: 0 | F151: Year 19 | G151: 0
B152: Year 10 | C152: 0 | F152: Year 20 | G152: 0
A154: =A139+1 -> 38 | B154: . | C154: Annual Operating Income (year 1) : | F154: =(SUM(J7:J12)*(1-D105))+(SUM(J16:J21)*(1-D110))+(SUM(J25:J30)*(1-D110))+(SUM(J34:J39)*(1-D110))+(SUM(J43:J48)*(1-D110))+(SUM(J56:J61)*(1-D111))+(SUM(J65:J70)*(1-D111))+(SUM(J74:J79)*(1-D112))+(SUM(J82:J87)*(1-D113))+(SUM(J91:J96)*(1-D114)+(SUM(I102*(1-D115))+G117+G119+(C143+D143+E143))) -> 0
A157: Operating Expenses
B159: Annual Operating Exp.: | E159: Residential | F159: Commercial | G159: Total | H159: Comments
A160: =A154+1 -> 39 | C160: Management Fee | G160: =E160+F160 -> 0 | H160: =IF(F154=0,"",G160/F154) ->  | I160: of total op. Inc.
A161: =A160+1 -> 40 | C161: Payroll, Administrative | G161: 0
A162: 41 | C162: Payroll Taxes & Benefits, Admin | G162: 0
A163: 42 | C163: Legal | G163: 0
A164: 43 | C164: Audit | G164: 0
A165: 44 | C165: Marketing | G165: 0
A166: 45 | C166: Telephone | G166: 0
A167: 46 | C167: Office Supplies | G167: 0
A168: 47 | C168: Accounting & Data Processing | G168: 0
A169: 48 | C169: Investor Servicing Fees | G169: 0 | H169: Paid "below the line"
A170: 49 | C170: Other Fees: | G170: 0
A171: 50 | C171: Other: | G171: 0
A172: 51 | C172: Other: | G172: 0
A173: 52 | C173: Subtotal: Administrative | E173: =SUM(E160:E172) -> 0 | F173: =SUM(F160:F172) -> 0 | G173: =SUM(G160:G172) -> 0
A175: =A173+1 -> 53 | C175: Payroll, Maintenance | G175: =E175+F175 -> 0
A176: =A175+1 -> 54 | C176: Payroll Taxes & Benefits, Maint | G176: 0
A177: 55 | C177: Janitorial Materials | G177: 0
A178: 56 | C178: Landscaping | G178: 0
A179: 57 | C179: Decorating (inter. only) | G179: 0
A180: 58 | C180: Repairs (inter. & ext.) | G180: 0
A181: 59 | C181: Elevator Maintenance | G181: 0
A182: 60 | C182: Trash Removal | G182: 0
A183: 61 | C183: Snow Removal | G183: 0
A184: 62 | C184: Extermination | G184: 0
A185: 63 | C185: Recreation | G185: 0
A186: 64 | C186: Other: | G186: 0
A187: 65 | C187: Subtotal: Maintenance | E187: =SUM(E175:E186) -> 0 | F187: =SUM(F175:F186) -> 0 | G187: =SUM(G175:G186) -> 0
A189: =A187+1 -> 66 | C189: Direct Service Staff / Contract staff | G189: =E189+F189 -> 0
C190: Food Supplies | G190: =E190+F190 -> 0
C191: Program Supplies | G191: =E191+F191 -> 0
C192: Subtotal: Resident Services | E192: =SUM(E189:E191) -> 0 | F192: =SUM(F189:F191) -> 0 | G192: =SUM(G189:G191) -> 0
A194: =A189+1 -> 67 | C194: Security | G194: =E194+F194 -> 0
A196: =A194+1 -> 68 | C196: Electricity | G196: =E196+F196 -> 0
A197: =A196+1 -> 69 | C197: Natural Gas | G197: =E197+F197 -> 0
A198: =A197+1 -> 70 | C198: Oil | G198: =E198+F198 -> 0
A199: =A198+1 -> 71 | C199: Water & Sewer | G199: =E199+F199 -> 0
A200: =A199+1 -> 72 | C200: Subtotal: Utilities | E200: =SUM(E196:E199) -> 0 | F200: =SUM(F196:F199) -> 0 | G200: =SUM(G196:G199) -> 0
A202: =A200+1 -> 73 | C202: Replacement Reserve | G202: =E202+F202 -> 0 | H202: Calculated | I202: =500*'Project Info'!N82 -> 0
A204: =A202+1 -> 74 | C204: Real Estate Taxes | G204: =E204+F204 -> 0
A205: =A204+1 -> 75 | C205: Other Taxes | G205: =E205+F205 -> 0
A206: 76 | C206: Insurance | G206: =E206+F206 -> 0
A207: 77 | C207: Mortgage Insurance Premium | G207: =E207+F207 -> 0
A208: 78 | C208: Other | G208: =E208+F208 -> 0
A209: 79 | C209: Other
A210: 80 | C210: Subtotal: Taxes, Insurance | E210: =SUM(E204:E208) -> 0 | F210: =SUM(F204:F208) -> 0 | G210: =E210+F210 -> 0
D211: Total Expenses (w/o Res. Serv) | E211: =E173+E187+E192+E194+E200+E210 -> 0 | F211: =F173+F187+F192+F194+F200+F210 -> 0 | G211: =G173+G187+G192+G194+G200+G210 -> 0 | H211: PUPM
A212: =A210+1 -> 81 | C212: Total All Expenses | E212: =E173+E187+E192+E194+E200+E202+E210 -> 0 | F212: =F173+F187+F192+F194+F200+F202+F210 -> 0 | G212: =G173+G187+G192+G194+G200+G202+G210 -> 0 | H212: =IF('Project Info'!N82<=0,"",G212/'Project Info'!N82/12) -> 
C214: Other Operating Expense Assumptions
C215: Trending Assumptions for Expenses | F215: Year 2 % | G215: Year 3 % | H215: Year 4 % | I215: Year 5-15 %
A216: =A212+1 -> 82 | C216: Sewer & Water | F216: 0.03 | G216: 0.03 | H216: 0.03 | I216: 0.03
A217: =A216+1 -> 83 | C217: Real Estate Taxes | F217: 0.03 | G217: 0.03 | H217: 0.03 | I217: 0.03
A218: =A217+1 -> 84 | C218: All Other Operating Expenses, incl repl reserve | F218: 0.03 | G218: 0.03 | H218: 0.03 | I218: 0.03
C222: Reserve Requirements:
A223: =A218+1 -> 85 | C223: Replacement Reserve Requirement 1st Yr | F223: 500 | G223: per unit per year
A224: =A223+1 -> 86 | C224: Operating Reserve Requirement | G224: per unit per year
C226: Debt Service: | G226: Annual
G227: Payment
A228: =A224+1 -> 87 | C228: NHHFA Permanent Loan | G228: =IF('Closing S&U'!H35<>0,(PMT(('Closing S&U'!G35/12),('Closing S&U'!H35*12),-'Closing S&U'!F35)*12),0) -> 0
A229: =A228+1 -> 88 | C229: Other Permanent Mortgage
C230: Source: | D230: =IF('Closing S&U'!D37="","",IF(LEN(TRIM('Closing S&U'!D37))>1,+'Closing S&U'!D37,"")) ->  | G230: =IF('Closing S&U'!H37<>0,(PMT(('Closing S&U'!G37/12),('Closing S&U'!H37*12),-'Closing S&U'!F37)*12),0) -> 0
A231: =A229+1 -> 89 | C231: Other Permanent Mortgage
C232: Source: | D232: =IF('Closing S&U'!D39="","",IF(LEN(TRIM('Closing S&U'!D39))>1,+'Closing S&U'!D39,"")) ->  | G232: =IF('Closing S&U'!H39<>0,(PMT(('Closing S&U'!G39/12),('Closing S&U'!H39*12),-'Closing S&U'!F39)*12),0) -> 0
A234: =A231+1 -> 90 | C234: Total Debt Service (Annual) | G234: =SUM(G228:G229)+G231 -> 0
A236: =A234+1 -> 91 | C236: Net Operating Income | G236: =F154-G212 -> 0 | H236: (in year one)
A238: =A236+1 -> 92 | C238: Debt Service Coverage Ratio | G238: =IF(G234>0,G236/G234,0) -> 0 | H238: (in year one)
C241: Affordability: Income Information and Maximum Allowable Rents
D242: See website for income limits and rents <www.nhhfa.org >under Data section
... 13 more rows

Sheet LIHTC Info
A1: LOW INCOME HOUSING TAX CREDITS
A2: ='Closing S&U'!A2 -> Un-named Project
C4: Percent of Project Which Qualifies for Tax Credit:
A6: 1 | B6: . | C6: Low-Income Units* | E6: ='Project Info'!N82-'Project Info'!D82 -> 0 | G6: Total Units | H6: ='Project Info'!N82 -> 0
A7: =A6+1 -> 2 | B7: . | C7: Percent of Units | E7: =IF(H6>0,E6/H6,0) -> 0
A9: =A7+1 -> 3 | B9: . | C9: Low-Income Square Feet* | F9: (net rentable) | G9: Total Area | H9: ='Project Info'!F135 -> 0 | I9: (net rentable)
A10: =A9+1 -> 4 | B10: . | C10: Percent of Area | E10: =IF(H9>0,E9/H9,0) -> 0
D11: * Applies to only housing units that qualify for tax credits
A12: =A10+1 -> 5 | B12: . | C12: Applicable fraction | E12: =IF(E10>E7,E7,E10) -> 0 | F12: (This is the lower of 2 or 4 above.)
A13: =A12+1 -> 6 | B13: . | C13: Is the project utilizing tax-exempt financing? | H13: No | I13: ("yes" or "no")
A14: 7 | B14: . | C14: Enter applicable percentage for acquisition credit if project qualifies** | H14: 0.04 | I14: (.04 or actual)
A15: 8 | B15: . | C15: Enter applicable percentage for rehabilitation credit or new construction** | I15: (.04,.09 or actual)
A16: 9 | B16: . | C16: How much financing is non-qualified (federally subsidized?) | H16: 0 | I16: (Enter $s)
A17: 10 | B17: . | C17: What grant funds must be subtracted from acquisition basis? | H17: 0 | I17: (Enter $s)
A18: 11 | B18: . | C18: What grant funds must be subtracted from rehabilitation basis? | H18: 0 | I18: (Enter $s)
C19: ** If you have or intend to lock into an applicable percentage enter the actual percentages for the month in which you locked in.
C20: Historic Tax Credit:
A21: =A18+1 -> 12 | B21: . | C21: Does the project qualify for historic rehabilitation tax credits? | H21: no | I21: ("yes" or "no")
A22: =A21+1 -> 13 | B22: . | C22: If yes, what are the rehabilitation costs which are not qualified for
C23: historic credits? | H23: 0 | I23: (Enter $s)
C25: Project Qualification for 130%:
A26: =A22+1 -> 14 | B26: . | C26: Is the project located in a qualified census tract (QCT) or | H26: Yes | I26: ("yes" or "no")
C27: difficult to develop area (DDA)? OR does the project require the basis boost | H27: =IF(H26="","",IF(OR(CODE(H26)=121,CODE(H26)=89),0,1)) -> 0
C28: to be financially feasible (25% of units MUST be 50% AMI)? | I28: Rehabilitation/
G29: Acquisition | I29: Construction
C30: Calculation of Maximum Tax Credit Amount | G30: Credit | I30: Credit
A31: =A26+1 -> 15 | B31: . | C31: Total Eligible Development Costs | G31: =G197 -> 0 | I31: =H197 -> 0
A32: =A31+1 -> 16 | B32: . | C32: Less: Portion of Grants Allocated to Basis | G32: =H17 -> 0 | I32: =H18 -> 0
A33: 17 | B33: . | C33: Less: 20% Historic Rehab Credit Basis Reduction | G33: 0 | I33: =IF(H197="","",IF(CODE(H21)=121,(H197-H23)*0.2,"0")) -> 0
A34: 18 | B34: . | C34: Less: Non-qualified source of financing | G34: 0 | I34: 0
A35: 19 | B35: . | C35: Subtotal: Eligible Basis | G35: =G31-G32-G33-G34 -> 0 | I35: =I31-I32-I33-I34 -> 0
A36: 20 | B36: . | C36: Adjustment for Basis Boost | I36: =IF(H26<>" ",IF(H27=0,1.3,1),1) -> 1.3
A37: 21 | B37: . | C37: Percent Low-Income | G37: =ROUND(+E12,3) -> 0 | I37: =ROUND(+E12,3) -> 0
A38: 22 | B38: . | C38: Qualified Basis | G38: =G35*G37 -> 0 | I38: =I35*I36*I37 -> 0
A39: 23 | B39: . | C39: Applicable Percentage | G39: =IF(H14="","",H14) -> 0.04 | I39: =IF(H15="","",H15) -> 
A40: 24 | B40: . | C40: Maximum Annual Tax Credit Amount | G40: =G38*G39 -> 0 | I40: =I38*I39 -> 
A41: 25 | B41: . | C41: Total Annual Tax Credit Amount | H41: =SUM(G40,I40) -> 
A42: 26 | B42: . | C42: Estimated Net*** LIHTC Equity Yield$ | F42: 0.87 | G42: per dollar | H42: =H41*F42*10*1 -> 
A43: 27 | B43: . | C43: Est. Net Historic Tax Credit Syn. Yield $ | G43: per dollar | H43: =I33*F43 -> 0
A44: 28 | B44: . | C44: Total Equity Generated from Tax Credits | H44: =H43+H42 -> 
A45: 29 | B45: . | C45: Applicant's Estimate of Net Tax Credit Equity | H45: ='Closing S&U'!G7 -> 0 | I45: (Closing S&U Tab, Line 2)
C46: *** Equity yield should be net of all syndication and bridge loan related costs.
A52: =A45+1 -> 30 | B52: . | C52: For 9% LIHTC projects, does the applicant agree to a 60-year Land Use Restriction | I52: ("yes" or "no")
C53: Agreement, per the QAP?
A55: =A52+1 -> 31 | C55: For 9% LIHTC projects, does the applicant agree to a 75-year Land Use Restriction | I55: ("yes" or "no")
C56: Agreement?
A58: =A55+1 -> 32 | C58: For 4% LIHTC projects with no NH Housing capital subsidy, does the applicant agree | I58: ("yes" or "no")
C59: to a 30-year Land Use Restriction Agreement?
A61: =A58+1 -> 33 | C61: For 4% LIHTC projects with NH Housing capital subsidy, does the applicant agree | I61: ("yes" or "no")
C62: to a 45-year Land Use Restriction Agreement?
A64: 34 | C64: For 4% LIHTC projects, does the applicant commit to a Land Use Restriction Agreement | I64: ("yes" or "no")
C65: that exceeds the minimum required in Qualified Allocation Plan?
A67: =A64+1 -> 35 | C67: All projects must be smoke free within the building(s); do you agree to meet this | I67: ("yes" or "no")
C68: requirement for the term of the LIHTC LURA?
A70: =A67+1 -> 36 | C70: All project sponsors must provide written notice to the local Public Housing Authority | I70: ("yes" or "no")
C71: with jurisdiction over the project location (or, where there is no local PHA, the Section 8
C72: Administrator for the State of NH) that the project will accept tenant-based vouchers.
C73: Do you agree to meet this requirement for the term of the LIHTC LURA?
A75: =A70+1 -> 37 | B75: . | C75: Minimum Set Aside Election: (Check one) | F75: 20% at 50%
F76: 40% at 60%
F77: Average Income Test
C79: DEVELOPMENT BUDGET AND CALCULATION OF TAX CREDIT BASIS: | G79: =IF(E197=(G197+H197+I197),"","Warning: TDC does not match basis/non basis column totals!") -> 
C80: Note: Some items automatically placed in the appropriate basis column for convenience - please confirm each item
F81: $
F82: Percentage of
D83: =E197-(G197+H197+I197) -> 0 | E83: $ | F83: Costs Not | G83: $ $ $
E84: Total | F84: in Depreciable | G84: Acquisition | H84: New Cons/Rehab | I84: Not In
E85: Residential | F85: Basis | G85: Credit Basis | H85: Credit Basis | I85: Basis
C86: ='Closing S&U'!C115 -> ACQUISITION
A87: =A75+1 -> 38 | B87: . | C87: ='Closing S&U'!C116 -> Land | E87: ='Closing S&U'!E116 -> 0 | F87: 0 | G87: 0 | H87: 0 | I87: 0
A88: =A87+1 -> 39 | B88: . | C88: ='Closing S&U'!C117 -> Existing Building | E88: ='Closing S&U'!E117 -> 0 | F88: 0 | G88: 0 | H88: 0 | I88: 0
A89: =A88+1 -> 40 | B89: . | C89: ='Closing S&U'!C118 -> Transfer Tax | E89: ='Closing S&U'!E118 -> 0 | F89: 0 | G89: 0 | H89: 0 | I89: 0
A90: =A89+1 -> 41 | B90: . | C90: ='Closing S&U'!C119 -> 0 | E90: ='Closing S&U'!E119 -> 0 | F90: 0 | G90: 0 | H90: 0 | I90: 0
C91: ='Closing S&U'!C120 -> Subtotal | E91: =SUM(E87:E90) -> 0 | G91: =SUM(G87:G90) -> 0 | H91: =SUM(H87:H90) -> 0 | I91: =SUM(I87:I90) -> 0
C92: ='Closing S&U'!C122 -> CONSTRUCTION
A93: =A90+1 -> 42 | C93: ='Closing S&U'!C123 -> Construction Budget | E93: ='Closing S&U'!E123 -> 0 | F93: 0 | G93: 0 | H93: 0 | I93: 0
A94: =A93+1 -> 43 | C94: ='Closing S&U'!C124 -> Construction Contingency | E94: ='Closing S&U'!E124 -> 0 | F94: 0 | G94: 0 | H94: 0 | I94: 0
A95: =A94+1 -> 44 | C95: ='Closing S&U'!C125 -> 0 | E95: ='Closing S&U'!E125 -> 0 | F95: 0 | G95: 0 | H95: 0 | I95: 0
C96: ='Closing S&U'!C126 -> Subtotal | E96: =SUM(E93:E95) -> 0 | G96: =SUM(G93:G95) -> 0 | H96: 0 | I96: =SUM(I93:I95) -> 0
C97: ='Closing S&U'!C128 -> ARCHITECTURAL/ ENGINEERING/PROFESSIONAL FEES
A98: =A95+1 -> 45 | B98: . | C98: ='Closing S&U'!C129 -> Architect Fee-Design | E98: ='Closing S&U'!E129 -> 0 | F98: 0 | G98: 0 | H98: 0 | I98: 0
A99: =A98+1 -> 46 | B99: . | C99: ='Closing S&U'!C130 -> Architect Fee-Inspection | E99: ='Closing S&U'!E130 -> 0 | F99: 0 | G99: 0 | H99: 0 | I99: 0
A100: 47 | B100: . | C100: ='Closing S&U'!C131 -> Engineering Fees | E100: ='Closing S&U'!E131 -> 0 | F100: 0 | G100: 0 | H100: 0 | I100: 0
A101: 48 | C101: ='Closing S&U'!C132 -> Historic Consultant Fees | E101: ='Closing S&U'!E132 -> 0 | F101: 0 | G101: 0 | H101: 0 | I101: 0
A102: 49 | C102: ='Closing S&U'!C133 -> Solar Consultant Fees | E102: ='Closing S&U'!E133 -> 0 | F102: 0 | G102: 0 | H102: 0 | I102: 0
A103: 50 | C103: ='Closing S&U'!C134 -> Site Survey | E103: ='Closing S&U'!E134 -> 0 | F103: 0 | G103: 0 | H103: 0 | I103: 0
A104: 51 | C104: ='Closing S&U'!C135 -> 0 | E104: ='Closing S&U'!E135 -> 0 | F104: 0 | G104: 0 | H104: 0 | I104: 0
A105: 52 | C105: ='Closing S&U'!C136 -> 0 | E105: ='Closing S&U'!E136 -> 0 | F105: 0 | G105: 0 | H105: 0 | I105: 0
A106: 53 | C106: ='Closing S&U'!C137 -> 0 | E106: ='Closing S&U'!E137 -> 0 | F106: 0 | G106: 0 | H106: 0 | I106: 0
A107: 54 | B107: . | C107: ='Closing S&U'!C138 -> 0 | E107: ='Closing S&U'!E138 -> 0 | F107: 0 | G107: 0 | H107: 0 | I107: 0
C108: ='Closing S&U'!C139 -> Subtotal | E108: =SUM(E98:E107) -> 0 | G108: =SUM(G98:G107) -> 0 | H108: =SUM(H98:H107) -> 0 | I108: =SUM(I98:I107) -> 0
C109: INTERIM CONSTRUCTION EXPENSE
A110: =A107+1 -> 55 | B110: . | C110: ='Closing S&U'!C142 -> Construction Loan Origination Fee | E110: ='Closing S&U'!E142 -> 0 | F110: 0 | G110: 0 | H110: 0 | I110: 0
A111: =A110+1 -> 56 | B111: . | C111: ='Closing S&U'!C143 -> Construction Period Interest | E111: ='Closing S&U'!E143 -> 0 | F111: 0 | G111: 0 | H111: 0 | I111: 0
A112: 57 | B112: . | C112: ='Closing S&U'!C144 -> Construction Period Insurance | E112: ='Closing S&U'!E144 -> 0 | F112: 0 | G112: 0 | H112: 0 | I112: 0
A113: 58 | B113: . | C113: ='Closing S&U'!C145 -> P&P Bond/Letter of Credit | E113: ='Closing S&U'!E145 -> 0 | F113: 0 | G113: 0 | H113: 0 | I113: 0
A114: 59 | B114: . | C114: ='Closing S&U'!C146 -> Construction Lender's Counsel | E114: ='Closing S&U'!E146 -> 0 | F114: 0 | G114: 0 | H114: 0 | I114: 0
A115: 60 | B115: . | C115: ='Closing S&U'!C147 -> Taxes During Construction | E115: ='Closing S&U'!E147 -> 0 | F115: 0 | G115: 0 | H115: 0 | I115: 0
A116: 61 | B116: . | C116: ='Closing S&U'!C148 -> Bond - Cost of Issuance | E116: ='Closing S&U'!E148 -> 0 | F116: 0 | G116: 0 | H116: 0 | I116: 0
A117: 62 | B117: . | C117: ='Closing S&U'!C149 -> 0 | E117: ='Closing S&U'!E149 -> 0 | F117: 0 | G117: 0 | H117: 0 | I117: 0
A118: 63 | C118: ='Closing S&U'!C150 -> 0 | E118: ='Closing S&U'!E150 -> 0 | F118: 0 | G118: 0 | H118: 0 | I118: 0
A119: 64 | C119: ='Closing S&U'!C151 -> 0 | E119: ='Closing S&U'!E151 -> 0 | F119: 0 | G119: 0 | H119: 0 | I119: 0
A120: =A119+1 -> 65 | B120: . | C120: ='Closing S&U'!C152 -> 0 | E120: ='Closing S&U'!E152 -> 0 | F120: 0 | G120: 0 | H120: 0 | I120: 0
C121: ='Closing S&U'!C153 -> Subtotal | E121: =SUM(E110:E120) -> 0 | G121: =SUM(G110:G120) -> 0 | H121: =SUM(H110:H120) -> 0 | I121: =SUM(I110:I120) -> 0
C122: ='Closing S&U'!C155 -> FINANCING FEES AND EXPENSE
A123: =A120+1 -> 66 | B123: . | C123: ='Closing S&U'!C156 -> Long-Term Loan Origination Fee | E123: ='Closing S&U'!E156 -> 0 | F123: 0 | G123: 0 | H123: 0 | I123: 0
A124: =A123+1 -> 67 | B124: . | C124: ='Closing S&U'!C157 -> Title Insurance and Record | E124: ='Closing S&U'!E157 -> 0 | F124: 0 | G124: 0 | H124: 0 | I124: 0
A125: =A124+1 -> 68 | C125: ='Closing S&U'!C158 -> Long-Term Lender's Counsel | E125: ='Closing S&U'!E158 -> 0 | F125: 0 | G125: 0 | H125: 0 | I125: 0
A126: =A125+1 -> 69 | C126: ='Closing S&U'!C159 -> Bond - Cost of Issuance | E126: ='Closing S&U'!E159 -> 0 | F126: 0 | G126: 0 | H126: 0 | I126: 0
A127: =A126+1 -> 70 | B127: . | C127: ='Closing S&U'!C160 -> Upfront MIP Fee | E127: ='Closing S&U'!E160 -> 0 | F127: 0 | G127: 0 | H127: 0 | I127: 0
A128: 71 | B128: . | C128: ='Closing S&U'!C161 -> FFB Trustee Fee | E128: ='Closing S&U'!E161 -> 0 | F128: 0 | G128: 0 | H128: 0 | I128: 0
A129: 72 | B129: . | C129: ='Closing S&U'!C162 -> 0 | E129: ='Closing S&U'!E162 -> 0 | F129: 0 | G129: 0 | H129: 0 | I129: 0
A130: 73 | B130: . | C130: ='Closing S&U'!C163 -> 0 | E130: ='Closing S&U'!E163 -> 0 | F130: 0 | G130: 0 | H130: 0 | I130: 0
C131: ='Closing S&U'!C164 -> Subtotal | E131: =SUM(E123:E130) -> 0 | G131: =SUM(G123:G130) -> 0 | H131: =SUM(H123:H130) -> 0 | I131: =SUM(I123:I130) -> 0
F136: $
F137: Percentage of
E138: $ | F138: Costs Not | G138: $ $ $
E139: Total | F139: in Depreciable | G139: Acquisition | H139: Rehabilitation | I139: Not In
E140: Residential | F140: Basis | G140: Credit Basis | H140: Credit Basis | I140: Basis
C141: ='Closing S&U'!C166 -> OTHER SOFT COSTS
A142: =A130+1 -> 74 | B142: . | C142: ='Closing S&U'!C167 -> Appraisal | E142: ='Closing S&U'!E167 -> 0 | F142: 0 | G142: 0 | H142: 0 | I142: 0
A143: =A142+1 -> 75 | B143: . | C143: ='Closing S&U'!C168 -> Market Study | E143: ='Closing S&U'!E168 -> 0 | F143: 0 | G143: 0 | H143: 0 | I143: 0
A144: 76 | B144: . | C144: ='Closing S&U'!C169 -> Environmental Report | E144: ='Closing S&U'!E169 -> 0 | F144: 0 | G144: 0 | H144: 0 | I144: 0
A145: =A144+1 -> 77 | B145: . | C145: ='Closing S&U'!C170 -> Relocation Costs | E145: ='Closing S&U'!E170 -> 0 | F145: 0 | G145: 0 | H145: 0 | I145: 0
A146: 78 | B146: . | C146: ='Closing S&U'!C171 -> Borrower Legal Fees | E146: ='Closing S&U'!E171 -> 0 | F146: 0 | G146: 0 | H146: 0 | I146: 0
A147: 79 | B147: . | C147: ='Closing S&U'!C172 -> Accounting Fees | E147: ='Closing S&U'!E172 -> 0 | F147: 0 | G147: 0 | H147: 0 | I147: 0
A148: 80 | B148: . | C148: ='Closing S&U'!C173 -> NH Housing Lender Inspector | E148: ='Closing S&U'!E173 -> 0 | F148: 0 | G148: 0 | H148: 0 | I148: 0
A149: 81 | C149: ='Closing S&U'!C174 -> Furnishings, Fixtures and Equipment | E149: ='Closing S&U'!E174 -> 0 | F149: 0 | G149: 0 | H149: 0 | I149: 0
A150: 82 | C150: ='Closing S&U'!C175 -> Clerk of the Works | E150: ='Closing S&U'!E175 -> 0 | F150: 0 | G150: 0 | H150: 0 | I150: 0
A151: 83 | C151: ='Closing S&U'!C176 -> Marketing and Lease-up | E151: ='Closing S&U'!E176 -> 0 | F151: 0 | G151: 0 | H151: 0 | I151: 0
A152: 84 | C152: ='Closing S&U'!C177 -> Building Permits | E152: ='Closing S&U'!E177 -> 0 | F152: 0 | G152: 0 | H152: 0 | I152: 0
A153: 85 | C153: ='Closing S&U'!C178 -> Other Permits | E153: ='Closing S&U'!E178 -> 0 | F153: 0 | G153: 0 | H153: 0 | I153: 0
A154: 86 | C154: ='Closing S&U'!C179 -> Impact Fees | E154: ='Closing S&U'!E179 -> 0 | F154: 0 | G154: 0 | H154: 0 | I154: 0
A155: 87 | C155: ='Closing S&U'!C180 -> Water and Sewer Fees | E155: ='Closing S&U'!E180 -> 0 | F155: 0 | G155: 0 | H155: 0 | I155: 0
A156: 88 | C156: ='Closing S&U'!C181 -> Soft Cost Contingency | E156: ='Closing S&U'!E181 -> 0 | F156: 0 | G156: 0 | H156: 0 | I156: 0
A157: 89 | C157: ='Closing S&U'!C182 -> 0 | E157: ='Closing S&U'!E182 -> 0 | F157: 0 | G157: 0 | H157: 0 | I157: 0
A158: 90 | C158: ='Closing S&U'!C183 -> 0 | E158: ='Closing S&U'!E183 -> 0 | F158: 0 | G158: 0 | H158: 0 | I158: 0
A159: 91 | C159: ='Closing S&U'!C184 -> 0 | E159: ='Closing S&U'!E184 -> 0 | F159: 0 | G159: 0 | H159: 0 | I159: 0
A160: 92 | C160: ='Closing S&U'!C185 -> 0 | E160: ='Closing S&U'!E185 -> 0 | F160: 0 | G160: 0 | H160: 0 | I160: 0
C161: ='Closing S&U'!C186 -> Subtotal | E161: =SUM(E142:E160) -> 0 | G161: =SUM(G142:G160) -> 0 | H161: =SUM(H142:H160) -> 0 | I161: 0
C162: ='Closing S&U'!C190 -> DEVELOPER FEE
A163: =A160+1 -> 93 | B163: . | C163: ='Closing S&U'!C191 -> Developer Overhead and Profit | E163: ='Closing S&U'!E191 -> 0 | F163: 0 | G163: 0 | H163: 0 | I163: 0
A164: =A163+1 -> 94 | B164: . | C164: ='Closing S&U'!C192 -> Development Consultant Fee | E164: ='Closing S&U'!E192 -> 0 | F164: 0 | G164: 0 | H164: 0 | I164: 0
C165: ='Closing S&U'!C193 -> Subtotal | E165: =SUM(E163:E164) -> 0 | G165: =SUM(G163:G164) -> 0 | H165: =SUM(H163:H164) -> 0 | I165: =SUM(I163:I164) -> 0
C166: ='Closing S&U'!C195 -> SYNDICATION EXPENSES
A167: =A164+1 -> 95 | B167: . | C167: ='Closing S&U'!C196 -> Syndication Legal | E167: ='Closing S&U'!E196 -> 0 | F167: 0 | G167: 0 | H167: 0 | I167: 0
A168: =A167+1 -> 96 | B168: . | C168: ='Closing S&U'!C197 -> Syndication Accounting | E168: ='Closing S&U'!E197 -> 0 | F168: 0 | G168: 0 | H168: 0 | I168: 0
A169: 97 | B169: . | C169: ='Closing S&U'!C198 -> Syndication Fees | E169: ='Closing S&U'!E198 -> 0 | F169: 0 | G169: 0 | H169: 0 | I169: 0
A170: 98 | B170: . | C170: ='Closing S&U'!C199 -> Syndication Consultant | E170: ='Closing S&U'!E199 -> 0 | F170: 0 | G170: 0 | H170: 0 | I170: 0
A171: 99 | B171: . | C171: ='Closing S&U'!C200 -> Bridge Loan Origination Fee | E171: ='Closing S&U'!E200 -> 0 | F171: 0 | G171: 0 | H171: 0 | I171: 0
A172: 100 | B172: . | C172: ='Closing S&U'!C201 -> Bridge Loan Interest | E172: ='Closing S&U'!E201 -> 0 | F172: 0 | G172: 0 | H172: 0 | I172: 0
A173: 101 | B173: . | C173: ='Closing S&U'!C202 -> Investor Servicing (capital) | E173: ='Closing S&U'!E202 -> 0 | F173: 0 | G173: 0 | H173: 0 | I173: 0
A174: 102 | B174: . | C174: ='Closing S&U'!C203 -> 0 | E174: ='Closing S&U'!E203 -> 0 | F174: 0 | G174: 0 | H174: 0 | I174: 0
C175: ='Closing S&U'!C204 -> Subtotal | E175: =SUM(E167:E174) -> 0 | G175: =SUM(G167:G174) -> 0 | H175: =SUM(H167:H174) -> 0 | I175: =SUM(I167:I174) -> 0
C176: ='Closing S&U'!C206 -> RESERVES (see NH Housing Underwriting Standards)
A177: =A174+1 -> 103 | B177: . | C177: ='Closing S&U'!C207 -> Operating Reserve | E177: ='Closing S&U'!E207 -> 0 | F177: 0 | G177: 0 | H177: 0 | I177: 0
A178: =A177+1 -> 104 | B178: . | C178: ='Closing S&U'!C208 -> FFB Operating Reserve (FFB Transactions only) | E178: ='Closing S&U'!E208 -> 0 | F178: 0 | G178: 0 | H178: 0 | I178: 0
A179: 105 | B179: . | C179: ='Closing S&U'!C209 -> Replacement Reserve | E179: ='Closing S&U'!E209 -> 0 | F179: 0 | G179: 0 | H179: 0 | I179: 0
A180: =A177+1 -> 104 | B180: . | C180: ='Closing S&U'!C210 -> Insurance Escrow | E180: ='Closing S&U'!E210 -> 0 | F180: 0 | G180: 0 | H180: 0 | I180: 0
A181: 105 | B181: . | C181: ='Closing S&U'!C211 -> Real Estate Tax Escrow | E181: ='Closing S&U'!E211 -> 0 | F181: 0 | G181: 0 | H181: 0 | I181: 0
A182: 106 | C182: ='Closing S&U'!C212 -> 0 | E182: ='Closing S&U'!E212 -> 0 | F182: 0 | G182: 0 | H182: 0 | I182: 0
A183: =A180+1 -> 105 | B183: . | C183: ='Closing S&U'!C213 -> 0 | E183: ='Closing S&U'!E213 -> 0 | F183: 0 | G183: 0 | H183: 0 | I183: 0
C184: ='Closing S&U'!C214 -> Subtotal | E184: =SUM(E177:E183) -> 0 | G184: =SUM(G177:G183) -> 0 | H184: =SUM(H177:H183) -> 0 | I184: =SUM(I177:I183) -> 0
C185: ='Closing S&U'!C216 -> PROGRAM FEES
A186: =A183+1 -> 106 | C186: ='Closing S&U'!C217 -> LIHTC Allocation Fee | E186: ='Closing S&U'!E217 -> 0 | F186: 0 | G186: 0 | H186: 0 | I186: 0
A187: =A186+1 -> 107 | C187: ='Closing S&U'!C218 -> LIHTC Upfront Monitoring Fee | E187: ='Closing S&U'!E218 -> 0 | F187: 0 | G187: 0 | H187: 0 | I187: 0
A188: =A187+1 -> 108 | C188: ='Closing S&U'!C219 -> HOME Monitoring Fee | E188: ='Closing S&U'!E219 -> 0 | F188: 0 | G188: 0 | H188: 0 | I188: 0
A189: 109 | C189: ='Closing S&U'!C220 -> HOME-ARP Monitoring Fee | E189: ='Closing S&U'!E220 -> 0 | F189: 0 | G189: 0 | H189: 0 | I189: 0
A190: 110 | C190: ='Closing S&U'!C221 -> Housing Trust Fund Monitoring Fee | E190: ='Closing S&U'!E221 -> 0 | F190: 0 | G190: 0 | H190: 0 | I190: 0
A191: 111 | C191: ='Closing S&U'!C222 -> AHF Monitoring Fee | E191: ='Closing S&U'!E222 -> 0 | F191: 0 | G191: 0 | H191: 0 | I191: 0
A192: 112 | C192: ='Closing S&U'!C223 -> Loan Application Fee | E192: ='Closing S&U'!E223 -> 0 | F192: 0 | G192: 0 | H192: 0 | I192: 0
A193: 113 | C193: ='Closing S&U'!C224 -> 0 | E193: ='Closing S&U'!E224 -> 0 | F193: 0 | G193: 0 | H193: 0 | I193: 0
A194: 114 | C194: ='Closing S&U'!C225 -> 0 | E194: ='Closing S&U'!E225 -> 0 | F194: 0 | G194: 0 | H194: 0 | I194: 0
C195: ='Closing S&U'!C226 -> Subtotal | E195: =SUM(E186:E194) -> 0 | G195: =SUM(G186:G194) -> 0 | H195: =SUM(H186:H194) -> 0 | I195: 0
A197: =A183+1 -> 106 | B197: . | C197: Total Development Cost | E197: =E$91+E$96+E$108+E$121+E$131+E$161+E$165+E$175+E$184+E$195 -> 0 | G197: =G$91+G$96+G$108+G$121+G$131+G$161+G$165+G$175+G$184+G$195 -> 0 | H197: =H$91+H$96+H$108+H$121+H$131+H$161+H$165+H$175+H$184+H$195 -> 0 | I197: =I$91+I$96+I$108+I$121+I$131+I$161+I$165+I$175+I$184+I$195 -> 0
A198: =A197+1 -> 107 | C198: TDC Net of Syndication Costs | E198: ='Closing S&U'!E230 -> 0
A199: =A198+1 -> 108 | B199: . | C199: Eligible Basis | G199: =G79 -> 
H200: =IF(G199="","","Variance TDC/Basis:") ->  | I200: =IF(H200="","",E197-(G197+H197+I197)) -> 
C201: Note: To determine the credit amount the project qualifies for, a gap analysis will be used. The gap will be calculated using
C202: Total Development Cost less syndication costs, and total equity from tax credits also net of syndication costs.

Sheet Dev Team
A1: DEVELOPMENT TEAM SUMMARY
D2: ='Closing S&U'!A2 -> Un-named Project
A4: 1 | B4: . | C4: Developer/Sponsor Type (Please check one box) | H4: (check one)
C5: Any form of for-profit corporation, partnership, or individual | J5: =IF(H5<>" ",1,0) -> 0
C6: Non-profit corporation | J6: =IF(H6<>" ",1,0) -> 0
C7: Limited equity housing cooperative | J7: =IF(H7<>" ",1,0) -> 0
C8: Other: | J8: =IF(H8<>" ",1,0) -> 0
A10: =A4+1 -> 2 | B10: . | C10: Developer/Sponsor:
D11: Legal Name
D12: Address
D14: Contact Person
D15: Email Address
D16: Telephone No. / Fax. No.
A18: =A10+1 -> 3 | B18: . | C18: Proposed Owner/Mortgagor:
D19: Form of Legal Entity
D20: Legal Name
D21: Address
D23: Soc.Sec.No./Fed Tax ID#
D24: Principals
D25: Contact Person
D26: Email Address
D27: Telephone No. / Fax. No.
A29: =A18+1 -> 4 | B29: . | C29: General Partner (if applicable):
D30: Form of Legal Entity
D31: Legal Name
D32: Address
D34: Soc.Sec.No./Fed Tax ID#
D35: Principal (if corporation)
D36: Contact Person
D37: Email Address
D38: % of Ownership
D39: Telephone No. / Fax. No.
A41: =A29+1 -> 5 | B41: . | C41: General Partner (if applicable):
D42: Form of Legal Entity
D43: Legal Name
D44: Address
D46: Soc.Sec.No./Fed Tax ID#
D47: Principal (if corporation)
D48: Contact Person
D49: Email Address
D50: % of Ownership
D51: Telephone No. / Fax. No.
A55: =A41+1 -> 6 | B55: . | C55: Development Consultant:
D56: Company Name
D57: Address
D59: Contact Person
D60: Email Address
D61: Telephone/Fax#
A63: =A130+1 -> 15 | B63: . | C63: Solar/Energy Consultant
D64: Company Name
D65: Address
D67: Contact Person
D68: Email Address
D69: Telephone/Fax#
A71: =A120+1 -> 13 | B71: . | C71: Historic Consultant
D72: Company Name
D73: Address
D75: Contact Person
D76: Email Address
D77: Telephone/Fax#
A79: =A55+1 -> 7 | B79: . | C79: Contractor:
D80: Company Name
D81: Address
D83: Contact Person
D84: Email Address
D85: Telephone/Fax#
A87: =A79+1 -> 8 | B87: . | C87: Architect:
D88: Company Name
D89: Address
D91: Contact Person
D92: Email Address
D93: Telephone/Fax#
A96: =A87+1 -> 9 | B96: . | C96: Management Agent:
D97: Company Name
D98: Address
D100: Contact Person
D101: Email Address
D102: Telephone/Fax#
A104: =A96+1 -> 10 | B104: . | C104: Attorney (Real Estate):
D105: Company Name
D106: Address
D108: Contact Person
D109: Email Address
D110: Telephone/Fax#
A112: =A104+1 -> 11 | B112: . | C112: Attorney (Tax):
D113: Company Name
D114: Address
D116: Contact Person
D117: Email Address
D118: Telephone/Fax#
A120: =A112+1 -> 12 | B120: . | C120: Syndicator or Other Buyer of Equity:
D121: Company Name
D122: Address
D124: Contact Person
D125: Email Address
D126: Telephone/Fax#
A130: =A71+1 -> 14 | B130: . | C130: Service Provider or Coordinator:
D131: Name
D132: Address
D134: Contact Person
D135: Email Address
D136: Telephone/Fax#
A137: =A63+1 -> 16 | B137: . | C137: Local Elected Town Official (CEO - to be contacted by NH Housing
C138: as per Section 42 requirements)
D139: Name
B140: Please do not | D140: Address
B141: use Town Manager | D141: Contact Person
B142: Must be "ELECTED" | D142: Email Address
D143: Telephone/Fax#
A145: =A137+1 -> 17 | B145: .
C146: Other role | D146: Company Name
D147: Address
D149: Contact Person
D150: Email Address
D151: Telephone/Fax#
A153: =A145+1 -> 18 | B153: . | C153: Is there any identity of interest between any members of the development team?
E154: ("yes" or "no") | G154: If yes, explain below.
A169: CERTIFICATION PAGE
C171: Project Name | D171: =IF(+'Project Info'!E3="","Un-named Project",+'Project Info'!E3) -> Un-named Project
C173: Date:
D174: (month) | E174: (day) | F174: (year)
C176: The applicant hereby certifies that this application is complete and accurate to the best of
C177: their knowledge, and that no material misrepresentation is made herein by the applicant.
C178: The applicant agrees that this application may be relied upon by New Hampshire Housing
C179: Finance Authority and other funding sources.
C181: In the event of any extraordinary circumstances, the applicant agrees to pay for any reasonable
C182: legal and third party costs incurred by the Authority which are associated with processing this
C183: application.
C185: By submitting this application, applicant gives permission to New Hampshire Housing Finance Authority
C186: and its agents to investigate all representations made and attachments included. This includes permission
C187: to access personal and business credit reports.
D193: Applicant Signature | G193: Date

Sheet Const S&U
A1: Disbursement Schedule
C2: Budget | D2: Expended Prior to Closing | E2: Paid at Closing | F2: Total expended thru closing | G2: Month 1 Draw | H2: Month 2 Draw | I2: Month 3 Draw | J2: Month 4 Draw | K2: Month 5 Draw | L2: Month 6 Draw | M2: Month 7 Draw | N2: Month 8 Draw | O2: Month 9 Draw | P2: Month 10 Draw | Q2: Month 11 Draw | R2: Month 12 Draw | S2: Month 13 Draw | T2: Month 14 Draw | U2: Month 15 Draw | V2: Month 16 Draw | W2: Month 17 Draw | X2: Month 18 Draw | Y2: Month 19 Draw | Z2: Month 20 Draw | AA2: Month 21 Draw | AB2: Month 22 Draw | AC2: Month 23 Draw | AD2: Month 24 Draw | AE2: Month 25 Draw | AF2: Month 26 Draw | AG2: Month 27 Draw | AH2: Month 28 Draw | AI2: Month 29 Draw | AJ2: Month 30 Draw | AK2: Month 31 Draw | AL2: Month 30 Draw | AM2: Month 31 Draw | AN2: Month 32 Draw | AO2: Month 33 Draw | AP2: Month 34 Draw | AQ2: Month 35 Draw | AR2: Month 36 Draw | AS2: Month 25 Draw | AT2: Month 26 Draw | AU2: Month 27 Draw | AV2: Month 28 Draw | AW2: Month 29 Draw | AX2: Month 30 Draw | AZ2: Total to Date | BB2: Balance to Complete
A4: Sources of Funds:
A5: ='Closing S&U'!C6 -> Developer's Cash Equity | C5: ='Closing S&U'!G6 -> 0 | F5: =D5+E5 -> 0 | AZ5: =SUM(F5:AX5) -> 0 | BB5: =C5-AZ5 -> 0
A6: ='Closing S&U'!C7 -> LIHTC Equity | C6: ='Closing S&U'!G7 -> 0 | F6: 0 | AZ6: =SUM(F6:AX6) -> 0 | BB6: 0
A7: ='Closing S&U'!C8 -> HTC Equity | C7: ='Closing S&U'!G8 -> 0 | F7: 0 | AZ7: 0 | BB7: 0
A8: ='Closing S&U'!C9 -> Other Equity: | B8: ='Closing S&U'!D9 -> 0 | C8: ='Closing S&U'!G9 -> 0 | F8: 0 | AZ8: 0 | BB8: 0
A9: ='Closing S&U'!C10 -> Developer Fee Loan | C9: ='Closing S&U'!G10 -> 0 | F9: 0 | AZ9: 0 | BB9: 0
A10: ='Closing S&U'!C11 -> Other Source: | B10: ='Closing S&U'!D11 -> 0 | C10: ='Closing S&U'!G11 -> 0 | F10: 0 | AZ10: 0 | BB10: 0
A11: ='Closing S&U'!C15 -> Grant: | B11: ='Closing S&U'!D15 -> 0 | C11: ='Closing S&U'!F15 -> 0 | F11: =D11+E11 -> 0 | AZ11: 0 | BB11: 0
A12: ='Closing S&U'!C16 -> Grant: | B12: ='Closing S&U'!D16 -> 0 | C12: ='Closing S&U'!F16 -> 0 | F12: 0 | AZ12: 0 | BB12: 0
A13: ='Closing S&U'!C20 -> NHH Subordinate Loan | B13: ='Closing S&U'!D21 -> 0 | C13: ='Closing S&U'!F21 -> 0 | F13: 0 | AZ13: 0 | BB13: 0
A14: ='Closing S&U'!C22 -> NHH Subordinate Loan | B14: ='Closing S&U'!D23 -> 0 | C14: ='Closing S&U'!F23 -> 0 | F14: 0 | AZ14: 0 | BB14: 0
A15: ='Closing S&U'!C24 -> NHH Subordinate Loan | B15: ='Closing S&U'!D25 -> 0 | C15: ='Closing S&U'!F25 -> 0 | F15: 0 | AZ15: 0 | BB15: 0
A16: ='Closing S&U'!C26 -> Subordinate Loan | B16: ='Closing S&U'!D27 -> 0 | C16: ='Closing S&U'!F27 -> 0 | F16: =D16+E16 -> 0 | AZ16: 0 | BB16: 0
A17: ='Closing S&U'!C28 -> Subordinate Loan | B17: ='Closing S&U'!D29 -> 0 | C17: ='Closing S&U'!F29 -> 0 | F17: =D17+E17 -> 0 | AZ17: 0 | BB17: 0
A18: ='Closing S&U'!C30 -> Subordinate Loan | B18: ='Closing S&U'!D31 -> 0 | C18: ='Closing S&U'!F31 -> 0
A19: ='Closing S&U'!C35 -> NH Housing Long-Term Loan | C19: ='Closing S&U'!F35 -> 0 | F19: 0 | AZ19: 0 | BB19: 0
A20: ='Closing S&U'!C36 -> Other Long-Term Loan | B20: ='Closing S&U'!D37 -> 0 | C20: ='Closing S&U'!F37 -> 0 | F20: 0 | AZ20: 0 | BB20: 0
A21: ='Closing S&U'!C38 -> Other Long-Term Loan | B21: ='Closing S&U'!D39 -> 0 | C21: ='Closing S&U'!F39 -> 0 | F21: 0 | AZ21: 0 | BB21: 0
A22: ='Closing S&U'!C45 -> Construction Loan | B22: ='Closing S&U'!D46 -> 0 | C22: ='Closing S&U'!F46 -> 0 | F22: 0 | AZ22: 0 | BB22: 0
A23: ='Closing S&U'!C48 -> Other Interim Loan | B23: ='Closing S&U'!D49 -> 0 | C23: ='Closing S&U'!F49 -> 0 | F23: 0 | AZ23: 0 | BB23: 0
A24: ='Closing S&U'!C51 -> Tax Credit Bridge Loan | B24: ='Closing S&U'!D52 -> 0 | C24: ='Closing S&U'!F52 -> 0 | F24: 0 | AZ24: 0 | BB24: 0
A25: Total Sources of Funds | C25: =SUM(C5:C24) -> 0 | D25: 0 | E25: 0 | F25: 0 | G25: 0 | H25: 0 | I25: 0 | J25: 0 | K25: 0 | L25: 0 | M25: 0 | N25: 0 | O25: 0 | P25: 0 | Q25: 0 | R25: =SUM(R5:R24) -> 0 | S25: 0 | T25: 0 | U25: 0 | V25: 0 | W25: 0 | X25: 0 | Y25: 0 | Z25: 0 | AA25: 0 | AB25: 0 | AC25: 0 | AD25: 0 | AE25: 0 | AF25: 0 | AG25: 0 | AH25: 0 | AI25: 0 | AJ25: 0 | AK25: 0 | AL25: 0 | AM25: 0 | AN25: 0 | AO25: 0 | AP25: 0 | AQ25: 0 | AR25: 0 | AS25: 0 | AT25: 0 | AU25: 0 | AV25: 0 | AW25: 0 | AX25: 0 | AZ25: 0 | BB25: =SUM(BB5:BB24) -> 0
A27: Uses of Funds:
A28: ='Closing S&U'!C115 -> ACQUISITION
A29: ='Closing S&U'!C116 -> Land | C29: ='Closing S&U'!G116 -> 0 | F29: =D29+E29 -> 0 | AZ29: =SUM(F29:AX29) -> 0 | BB29: =+C29-AZ29 -> 0
A30: ='Closing S&U'!C117 -> Existing Building | C30: ='Closing S&U'!G117 -> 0 | F30: =D30+E30 -> 0 | AZ30: =SUM(F30:AX30) -> 0 | BB30: =+C30-AZ30 -> 0
A31: ='Closing S&U'!C118 -> Transfer Tax | C31: ='Closing S&U'!G118 -> 0 | F31: =D31+E31 -> 0 | AZ31: 0 | BB31: 0
A32: ='Closing S&U'!C119 -> 0 | C32: ='Closing S&U'!G119 -> 0 | F32: =D32+E32 -> 0 | AZ32: 0 | BB32: 0
A33: ='Closing S&U'!C122 -> CONSTRUCTION
A34: ='Closing S&U'!C123 -> Construction Budget | C34: ='Closing S&U'!G123 -> 0 | F34: =+D34+E34 -> 0 | AZ34: =SUM(F34:AX34) -> 0 | BB34: =+C34-AZ34 -> 0
A35: ='Closing S&U'!C124 -> Construction Contingency | C35: ='Closing S&U'!G124 -> 0 | F35: 0 | AZ35: =SUM(F35:AX35) -> 0 | BB35: 0
A36: ='Closing S&U'!C125 -> 0 | C36: ='Closing S&U'!G125 -> 0 | F36: 0 | AZ36: 0 | BB36: 0
A37: ='Closing S&U'!C128 -> ARCHITECTURAL/ ENGINEERING/PROFESSIONAL FEES
A38: ='Closing S&U'!C129 -> Architect Fee-Design | C38: ='Closing S&U'!G129 -> 0 | F38: 0 | AZ38: =SUM(F38:AX38) -> 0 | BB38: 0
A39: ='Closing S&U'!C130 -> Architect Fee-Inspection | C39: ='Closing S&U'!G130 -> 0 | F39: 0 | AZ39: 0 | BB39: 0
A40: ='Closing S&U'!C131 -> Engineering Fees | C40: ='Closing S&U'!G131 -> 0 | F40: 0 | AZ40: 0 | BB40: 0
A41: ='Closing S&U'!C132 -> Historic Consultant Fees | C41: ='Closing S&U'!G132 -> 0 | F41: 0 | AZ41: 0 | BB41: 0
A42: ='Closing S&U'!C133 -> Solar Consultant Fees | C42: ='Closing S&U'!G133 -> 0 | F42: 0 | AZ42: 0 | BB42: 0
A43: ='Closing S&U'!C134 -> Site Survey | C43: ='Closing S&U'!G134 -> 0 | F43: 0 | AZ43: 0 | BB43: 0
A44: ='Closing S&U'!C135 -> 0 | C44: ='Closing S&U'!G135 -> 0 | F44: 0 | AZ44: 0 | BB44: 0
A45: ='Closing S&U'!C136 -> 0 | C45: ='Closing S&U'!G136 -> 0 | AZ45: 0 | BB45: 0
A46: ='Closing S&U'!C137 -> 0 | C46: ='Closing S&U'!G137 -> 0 | AZ46: 0 | BB46: 0
A47: ='Closing S&U'!C138 -> 0 | C47: ='Closing S&U'!G138 -> 0 | F47: 0 | AZ47: 0 | BB47: 0
A48: ='Closing S&U'!C141 -> INTERIM CONSTRUCTION EXPENSE
A49: ='Closing S&U'!C142 -> Construction Loan Origination Fee | C49: ='Closing S&U'!G142 -> 0 | F49: =+D49+E49 -> 0 | AZ49: =SUM(F49:AX49) -> 0 | BB49: =+C49-AZ49 -> 0
A50: ='Closing S&U'!C143 -> Construction Period Interest | C50: ='Closing S&U'!G143 -> 0 | F50: 0 | AZ50: =SUM(F50:AX50) -> 0 | BB50: 0
A51: ='Closing S&U'!C144 -> Construction Period Insurance | C51: ='Closing S&U'!G144 -> 0 | F51: 0 | AZ51: 0 | BB51: 0
A52: ='Closing S&U'!C145 -> P&P Bond/Letter of Credit | C52: ='Closing S&U'!G145 -> 0 | F52: 0 | AZ52: 0 | BB52: 0
A53: ='Closing S&U'!C146 -> Construction Lender's Counsel | C53: ='Closing S&U'!G146 -> 0 | F53: 0 | AZ53: 0 | BB53: 0
A54: ='Closing S&U'!C147 -> Taxes During Construction | C54: ='Closing S&U'!G147 -> 0 | F54: 0 | AZ54: 0 | BB54: 0
A55: ='Closing S&U'!C148 -> Bond - Cost of Issuance | C55: ='Closing S&U'!G148 -> 0 | F55: 0 | AZ55: 0 | BB55: 0
A56: ='Closing S&U'!C149 -> 0 | C56: ='Closing S&U'!G149 -> 0 | F56: 0 | AZ56: 0 | BB56: 0
A57: ='Closing S&U'!C150 -> 0 | C57: ='Closing S&U'!G150 -> 0 | F57: 0 | AZ57: 0 | BB57: 0
A58: ='Closing S&U'!C151 -> 0 | C58: ='Closing S&U'!G151 -> 0 | AZ58: 0 | BB58: 0
A59: ='Closing S&U'!C152 -> 0 | C59: ='Closing S&U'!G152 -> 0 | AZ59: 0 | BB59: 0
A60: ='Closing S&U'!C155 -> FINANCING FEES AND EXPENSE
A61: ='Closing S&U'!C156 -> Long-Term Loan Origination Fee | C61: ='Closing S&U'!G156 -> 0 | F61: =+D61+E61 -> 0 | AZ61: =SUM(F61:AX61) -> 0 | BB61: =+C61-AZ61 -> 0
A62: ='Closing S&U'!C157 -> Title Insurance and Record | C62: ='Closing S&U'!G157 -> 0 | F62: 0 | AZ62: =SUM(F62:AX62) -> 0 | BB62: 0
A63: ='Closing S&U'!C158 -> Long-Term Lender's Counsel | C63: ='Closing S&U'!G158 -> 0 | F63: 0 | AZ63: 0 | BB63: 0
A64: ='Closing S&U'!C159 -> Bond - Cost of Issuance | C64: ='Closing S&U'!G159 -> 0 | F64: 0 | AZ64: 0 | BB64: 0
A65: ='Closing S&U'!C160 -> Upfront MIP Fee | C65: ='Closing S&U'!G160 -> 0 | F65: 0 | AZ65: 0 | BB65: 0
A66: ='Closing S&U'!C161 -> FFB Trustee Fee | C66: ='Closing S&U'!G161 -> 0 | F66: 0 | AZ66: 0 | BB66: 0
A67: ='Closing S&U'!C162 -> 0 | C67: ='Closing S&U'!G162 -> 0 | F67: 0 | AZ67: 0 | BB67: 0
A68: ='Closing S&U'!C163 -> 0 | C68: ='Closing S&U'!G163 -> 0 | F68: =+D68+E68 -> 0 | AZ68: 0 | BB68: =+C68-AZ68 -> 0
A69: ='Closing S&U'!C166 -> OTHER SOFT COSTS
A70: ='Closing S&U'!C167 -> Appraisal | C70: ='Closing S&U'!G167 -> 0 | F70: =+D70+E70 -> 0 | AZ70: =SUM(F70:AX70) -> 0 | BB70: =+C70-AZ70 -> 0
A71: ='Closing S&U'!C168 -> Market Study | C71: ='Closing S&U'!G168 -> 0 | F71: 0 | AZ71: =SUM(F71:AX71) -> 0 | BB71: 0
A72: ='Closing S&U'!C169 -> Environmental Report | C72: ='Closing S&U'!G169 -> 0 | F72: 0 | AZ72: 0 | BB72: 0
A73: ='Closing S&U'!C170 -> Relocation Costs | C73: ='Closing S&U'!G170 -> 0 | F73: 0 | AZ73: 0 | BB73: 0
A74: ='Closing S&U'!C171 -> Borrower Legal Fees | C74: ='Closing S&U'!G171 -> 0 | F74: 0 | AZ74: 0 | BB74: 0
A75: ='Closing S&U'!C172 -> Accounting Fees | C75: ='Closing S&U'!G172 -> 0 | F75: 0 | AZ75: 0 | BB75: 0
A76: ='Closing S&U'!C173 -> NH Housing Lender Inspector | C76: ='Closing S&U'!G173 -> 0 | F76: =+D76+E76 -> 0 | AZ76: 0 | BB76: 0
A77: ='Closing S&U'!C174 -> Furnishings, Fixtures and Equipment | C77: ='Closing S&U'!G174 -> 0 | F77: 0 | AZ77: 0 | BB77: 0
A78: ='Closing S&U'!C175 -> Clerk of the Works | C78: ='Closing S&U'!G175 -> 0 | F78: 0 | AZ78: 0 | BB78: 0
A79: ='Closing S&U'!C176 -> Marketing and Lease-up | C79: ='Closing S&U'!G176 -> 0 | F79: 0 | AZ79: 0 | BB79: 0
A80: ='Closing S&U'!C177 -> Building Permits | C80: ='Closing S&U'!G177 -> 0 | F80: 0 | AZ80: =SUM(F80:AX80) -> 0 | BB80: =+C80-AZ80 -> 0
A81: ='Closing S&U'!C178 -> Other Permits | C81: ='Closing S&U'!G178 -> 0 | F81: 0 | AZ81: =SUM(F81:AX81) -> 0 | BB81: =+C81-AZ81 -> 0
A82: ='Closing S&U'!C179 -> Impact Fees | C82: ='Closing S&U'!G179 -> 0 | F82: 0 | AZ82: =SUM(F82:AX82) -> 0 | BB82: =+C82-AZ82 -> 0
A83: ='Closing S&U'!C180 -> Water and Sewer Fees | C83: ='Closing S&U'!G180 -> 0 | F83: 0 | AZ83: 0 | BB83: 0
A84: ='Closing S&U'!C181 -> Soft Cost Contingency | C84: ='Closing S&U'!G181 -> 0 | F84: 0 | AZ84: =SUM(F84:AX84) -> 0 | BB84: =+C84-AZ84 -> 0
A85: ='Closing S&U'!C182 -> 0 | C85: ='Closing S&U'!G182 -> 0 | F85: 0 | AZ85: =SUM(F85:AX85) -> 0 | BB85: 0
A86: ='Closing S&U'!C183 -> 0 | C86: ='Closing S&U'!G183 -> 0 | F86: 0 | AZ86: 0 | BB86: 0
A87: ='Closing S&U'!C184 -> 0 | C87: ='Closing S&U'!G184 -> 0 | F87: 0 | AZ87: 0 | BB87: 0
A88: ='Closing S&U'!C185 -> 0 | C88: ='Closing S&U'!G185 -> 0 | F88: 0 | AZ88: 0 | BB88: 0
A89: ='Closing S&U'!C190 -> DEVELOPER FEE
A90: ='Closing S&U'!C191 -> Developer Overhead and Profit | C90: ='Closing S&U'!G191 -> 0 | F90: =D90+E90 -> 0 | AZ90: =SUM(F90:AX90) -> 0 | BB90: =+C90-AZ90 -> 0
A91: ='Closing S&U'!C192 -> Development Consultant Fee | C91: ='Closing S&U'!G192 -> 0 | F91: 0 | AZ91: =SUM(F91:AX91) -> 0 | BB91: 0
A92: ='Closing S&U'!C195 -> SYNDICATION EXPENSES
A93: ='Closing S&U'!C196 -> Syndication Legal | C93: ='Closing S&U'!G196 -> 0 | F93: 0 | AZ93: 0 | BB93: 0
A94: ='Closing S&U'!C197 -> Syndication Accounting | C94: ='Closing S&U'!G197 -> 0 | F94: 0 | AZ94: 0 | BB94: 0
A95: ='Closing S&U'!C198 -> Syndication Fees | C95: ='Closing S&U'!G198 -> 0 | F95: 0 | AZ95: 0 | BB95: 0
A96: ='Closing S&U'!C199 -> Syndication Consultant | C96: ='Closing S&U'!G199 -> 0 | F96: 0 | AZ96: 0 | BB96: 0
A97: ='Closing S&U'!C200 -> Bridge Loan Origination Fee | C97: ='Closing S&U'!G200 -> 0 | F97: 0 | AZ97: 0 | BB97: 0
A98: ='Closing S&U'!C201 -> Bridge Loan Interest | C98: ='Closing S&U'!G201 -> 0 | F98: 0 | AZ98: 0 | BB98: 0
A99: ='Closing S&U'!C202 -> Investor Servicing (capital) | C99: ='Closing S&U'!G202 -> 0 | F99: 0 | AZ99: 0 | BB99: 0
A100: ='Closing S&U'!C203 -> 0 | C100: ='Closing S&U'!G203 -> 0 | F100: 0 | AZ100: 0 | BB100: 0
A101: ='Closing S&U'!C206 -> RESERVES (see NH Housing Underwriting Standards)
A102: ='Closing S&U'!C207 -> Operating Reserve | C102: ='Closing S&U'!G207 -> 0 | F102: 0 | AZ102: =SUM(F102:AX102) -> 0 | BB102: =+C102-AZ102 -> 0
A103: ='Closing S&U'!C208 -> FFB Operating Reserve (FFB Transactions only) | C103: ='Closing S&U'!G208 -> 0 | F103: 0 | AZ103: =SUM(F103:AX103) -> 0 | BB103: =+C103-AZ103 -> 0
A104: ='Closing S&U'!C209 -> Replacement Reserve | C104: ='Closing S&U'!G209 -> 0 | F104: 0 | AZ104: 0 | BB104: 0
A105: ='Closing S&U'!C210 -> Insurance Escrow | C105: ='Closing S&U'!G210 -> 0 | F105: 0 | AZ105: 0 | BB105: 0
A106: ='Closing S&U'!C211 -> Real Estate Tax Escrow | C106: ='Closing S&U'!G211 -> 0 | F106: 0 | AZ106: 0 | BB106: 0
A107: ='Closing S&U'!C212 -> 0 | C107: ='Closing S&U'!G212 -> 0 | F107: 0 | AZ107: 0 | BB107: 0
A108: ='Closing S&U'!C213 -> 0 | C108: ='Closing S&U'!G213 -> 0 | F108: 0 | AZ108: 0 | BB108: 0
A109: ='Closing S&U'!C216 -> PROGRAM FEES
A110: ='Closing S&U'!C217 -> LIHTC Allocation Fee | C110: ='Closing S&U'!G217 -> 0 | F110: 0 | AZ110: 0 | BB110: 0
A111: ='Closing S&U'!C218 -> LIHTC Upfront Monitoring Fee | C111: ='Closing S&U'!G218 -> 0 | F111: 0 | AZ111: 0 | BB111: 0
A112: ='Closing S&U'!C219 -> HOME Monitoring Fee | C112: ='Closing S&U'!G219 -> 0 | F112: 0 | AZ112: 0 | BB112: 0
A113: ='Closing S&U'!C220 -> HOME-ARP Monitoring Fee | C113: ='Closing S&U'!G220 -> 0 | F113: 0 | AZ113: 0 | BB113: 0
A114: ='Closing S&U'!C221 -> Housing Trust Fund Monitoring Fee | C114: ='Closing S&U'!G221 -> 0 | F114: 0 | AZ114: 0 | BB114: 0
A115: ='Closing S&U'!C222 -> AHF Monitoring Fee | C115: ='Closing S&U'!G222 -> 0 | F115: 0 | AZ115: 0 | BB115: 0
A116: ='Closing S&U'!C223 -> Loan Application Fee | C116: ='Closing S&U'!G223 -> 0 | F116: 0 | AZ116: 0 | BB116: 0
A117: ='Closing S&U'!C224 -> 0 | C117: ='Closing S&U'!G224 -> 0 | F117: 0 | AZ117: 0 | BB117: 0
A118: ='Closing S&U'!C225 -> 0 | C118: ='Closing S&U'!G225 -> 0 | F118: 0 | AZ118: 0 | BB118: 0
A119: Construction Loan Payoff | C119: ='Closing S&U'!F46 -> 0 | F119: 0 | AZ119: 0 | BB119: 0
A120: Bridge Loan Payoff | C120: ='Closing S&U'!F49 -> 0 | F120: 0 | AZ120: 0 | BB120: 0
A121: Total Uses of Funds | C121: =SUM(C29:C120) -> 0 | D121: 0 | E121: 0 | F121: 0 | G121: 0 | H121: 0 | I121: 0 | J121: 0 | K121: 0 | L121: 0 | M121: 0 | N121: 0 | O121: 0 | P121: 0 | Q121: 0 | R121: 0 | S121: 0 | T121: 0 | U121: 0 | V121: 0 | W121: 0 | X121: 0 | Y121: 0 | Z121: 0 | AA121: 0 | AB121: 0 | AC121: 0 | AD121: 0 | AE121: 0 | AF121: 0 | AG121: 0 | AH121: 0 | AI121: 0 | AJ121: 0 | AK121: 0 | AL121: 0 | AM121: 0 | AN121: 0 | AO121: 0 | AP121: 0 | AQ121: 0 | AR121: 0 | AS121: =SUM(AS29:AS117) -> 0 | AT121: 0 | AU121: 0 | AV121: 0 | AW121: 0 | AX121: 0 | AZ121: =SUM(AZ29:AZ120) -> 0 | BB121: =SUM(BB29:BB120) -> 0
A123: Sources and Uses Check | C123: =C25-C121 -> 0 | D123: 0 | E123: 0 | F123: 0 | G123: 0 | H123: 0 | I123: 0 | J123: 0 | K123: 0 | L123: 0 | M123: 0 | N123: 0 | O123: 0 | P123: 0 | Q123: 0 | R123: 0 | S123: 0 | T123: 0 | U123: 0 | V123: 0 | W123: 0 | X123: 0 | Y123: 0 | Z123: 0 | AA123: 0 | AB123: 0 | AC123: 0 | AD123: 0 | AE123: 0 | AF123: 0 | AG123: 0 | AH123: 0 | AI123: =AI25-AI121 -> 0 | AJ123: 0 | AK123: 0 | AL123: 0 | AM123: 0 | AN123: 0 | AO123: 0 | AP123: 0 | AQ123: 0 | AR123: 0 | AS123: 0 | AT123: 0 | AU123: 0 | AV123: 0 | AW123: 0 | AX123: 0 | AY123: 0 | AZ123: 0 | BA123: 0 | BB123: 0

Sheet Pro Forma
B2: NH Housing Financing Application | J2: Page 1 of 4
B3: ='Closing S&U'!A2 -> Un-named Project
B4: 20-Year Operating Proforma (Years 1-5)
F7: Year 1 | G7: Year 2 | H7: Year 3 | I7: Year 4 | J7: Year 5
C8: INCOME:
D9: ='Project Info'!D75 -> Market Rate | F9: =SUM('Inc & Exp'!J7:J12) -> 0 | G9: =F9*(1+'Inc & Exp'!E122) -> 0 | H9: =G9*(1+'Inc & Exp'!F122) -> 0 | I9: =H9*(1+'Inc & Exp'!G122) -> 0 | J9: =I9*(1+'Inc & Exp'!H122) -> 0
D10: ='Project Info'!E75 -> LIHTC 20% AMI/HTF PBV | F10: =SUM('Inc & Exp'!J16:J21) -> 0 | G10: =F10*(1+'Inc & Exp'!E123) -> 0 | H10: =G10*(1+'Inc & Exp'!F123) -> 0 | I10: =H10*(1+'Inc & Exp'!G123) -> 0 | J10: =I10*(1+'Inc & Exp'!H123) -> 0
D11: ='Project Info'!F75 -> LIHTC 30% AMI/HTF PBV | F11: =SUM('Inc & Exp'!J25:J30) -> 0 | G11: =F11*(1+'Inc & Exp'!E124) -> 0 | H11: =G11*(1+'Inc & Exp'!F124) -> 0 | I11: =H11*(1+'Inc & Exp'!G124) -> 0 | J11: =I11*(1+'Inc & Exp'!H124) -> 0
D12: ='Project Info'!G75 -> LIHTC 60% AMI | F12: =SUM('Inc & Exp'!J34:J39) -> 0 | G12: =F12*(1+'Inc & Exp'!E125) -> 0 | H12: =G12*(1+'Inc & Exp'!F125) -> 0 | I12: =H12*(1+'Inc & Exp'!G125) -> 0 | J12: =I12*(1+'Inc & Exp'!H125) -> 0
D13: ='Project Info'!H75 -> LIHTC 70% AMI | F13: =SUM('Inc & Exp'!J43:J48) -> 0 | G13: =F13*(1+'Inc & Exp'!E126) -> 0 | H13: =G13*(1+'Inc & Exp'!F126) -> 0 | I13: =H13*(1+'Inc & Exp'!G126) -> 0 | J13: =I13*(1+'Inc & Exp'!H126) -> 0
D14: ='Project Info'!I75 -> LIHTC 80% AMI | F14: =SUM('Inc & Exp'!J56:J61) -> 0 | G14: =F14*(1+'Inc & Exp'!E127) -> 0 | H14: =G14*(1+'Inc & Exp'!F127) -> 0 | I14: =H14*(1+'Inc & Exp'!G127) -> 0 | J14: =I14*(1+'Inc & Exp'!H127) -> 0
D15: ='Project Info'!J75 -> Income Limit/Program | F15: =SUM('Inc & Exp'!J65:J70) -> 0 | G15: =F15*(1+'Inc & Exp'!E128) -> 0 | H15: =G15*(1+'Inc & Exp'!F128) -> 0 | I15: =H15*(1+'Inc & Exp'!G128) -> 0 | J15: =I15*(1+'Inc & Exp'!H128) -> 0
D16: ='Project Info'!K75 -> Income Limit/Program | F16: =SUM('Inc & Exp'!J74:J79) -> 0 | G16: =F16*(1+'Inc & Exp'!E129) -> 0 | H16: =G16*(1+'Inc & Exp'!F129) -> 0 | I16: =H16*(1+'Inc & Exp'!G129) -> 0 | J16: =I16*(1+'Inc & Exp'!H129) -> 0
D17: ='Project Info'!L75 -> Income Limit/Program | F17: =SUM('Inc & Exp'!J82:J87) -> 0 | G17: =F17*(1+'Inc & Exp'!E130) -> 0 | H17: =G17*(1+'Inc & Exp'!F130) -> 0 | I17: =H17*(1+'Inc & Exp'!G130) -> 0 | J17: =I17*(1+'Inc & Exp'!H130) -> 0
D18: ='Project Info'!M75 -> Income Limit/Program | F18: =SUM('Inc & Exp'!J91:J96) -> 0 | G18: =F18*(1+'Inc & Exp'!E131) -> 0 | H18: =G18*(1+'Inc & Exp'!F131) -> 0 | I18: =H18*(1+'Inc & Exp'!G131) -> 0 | J18: =I18*(1+'Inc & Exp'!H131) -> 0
C19: Gross Potential Residential Income | F19: =SUM(F9:F18) -> 0 | G19: =SUM(G9:G18) -> 0 | H19: 0 | I19: 0 | J19: 0
D20: Less vacancy | F20: =(F9*'Inc & Exp'!$D$105)+(F10*'Inc & Exp'!$D$106)+(F11*'Inc & Exp'!$D$107)+(F12*'Inc & Exp'!$D$108)+(F13*'Inc & Exp'!D$109)+(F14*'Inc & Exp'!D$110)+(F15*'Inc & Exp'!D$111)+(F16*'Inc & Exp'!D$112)+(F17*'Inc & Exp'!D$113)+(F18*'Inc & Exp'!D$114) -> 0 | G20: =(G9*'Inc & Exp'!$E$105)+(G10*'Inc & Exp'!$E$106)+(G11*'Inc & Exp'!$E$107)+(G12*'Inc & Exp'!$E$108)+(G13*'Inc & Exp'!E$109)+(G14*'Inc & Exp'!E$110)+(G15*'Inc & Exp'!E$111)+(G16*'Inc & Exp'!E$112)+(G17*'Inc & Exp'!E$113)+(G18*'Inc & Exp'!E$114) -> 0 | H20: =(H9*'Inc & Exp'!$F$105)+(H10*'Inc & Exp'!$F$106)+(H11*'Inc & Exp'!$F$107)+(H12*'Inc & Exp'!$F$108)+(H13*'Inc & Exp'!F$109)+(H14*'Inc & Exp'!F$110)+(H15*'Inc & Exp'!F$111)+(H16*'Inc & Exp'!F$112)+(H17*'Inc & Exp'!F$113)+(H18*'Inc & Exp'!F$114) -> 0 | I20: =(I9*'Inc & Exp'!$G$105)+(I10*'Inc & Exp'!$G$106)+(I11*'Inc & Exp'!$G$107)+(I12*'Inc & Exp'!$G$108)+(I13*'Inc & Exp'!G$109)+(I14*'Inc & Exp'!G$110)+(I15*'Inc & Exp'!G$111)+(I16*'Inc & Exp'!G$112)+(I17*'Inc & Exp'!G$113)+(I18*'Inc & Exp'!G$114) -> 0 | J20: =(J9*'Inc & Exp'!$H$105)+(J10*'Inc & Exp'!$H$106)+(J11*'Inc & Exp'!$H$107)+(J12*'Inc & Exp'!$H$108)+(J13*'Inc & Exp'!H$109)+(J14*'Inc & Exp'!H$110)+(J15*'Inc & Exp'!H$111)+(J16*'Inc & Exp'!H$112)+(J17*'Inc & Exp'!H$113)+(J18*'Inc & Exp'!H$114) -> 0
C21: Effective Gross Residential Income | F21: =F19-F20 -> 0 | G21: =G19-G20 -> 0 | H21: =H19-H20 -> 0 | I21: =I19-I20 -> 0 | J21: =J19-J20 -> 0
D22: Commercial Income | F22: ='Inc & Exp'!I102 -> 0 | G22: =F22*(1+'Inc & Exp'!E132) -> 0 | H22: =G22*(1+'Inc & Exp'!F132) -> 0 | I22: =H22*(1+'Inc & Exp'!G132) -> 0 | J22: =I22*(1+'Inc & Exp'!H132) -> 0
D23: Less vacancy | F23: =F22*'Inc & Exp'!$D115 -> 0 | G23: =G22*'Inc & Exp'!$E115 -> 0 | H23: =H22*'Inc & Exp'!$F115 -> 0 | I23: =I22*'Inc & Exp'!$G115 -> 0 | J23: =J22*'Inc & Exp'!$H115 -> 0
D24: Net Commercial Income | F24: =F22-F23 -> 0 | G24: =G22-G23 -> 0 | H24: =H22-H23 -> 0 | I24: =I22-I23 -> 0 | J24: =J22-J23 -> 0
C25: Effective Rental Income | F25: =F21+F24 -> 0 | G25: =G21+G24 -> 0 | H25: =H21+H24 -> 0 | I25: =I21+I24 -> 0 | J25: =J21+J24 -> 0
D26: Other Income | F26: ='Inc & Exp'!G117+'Inc & Exp'!G119 -> 0 | G26: =F26*(1+'Inc & Exp'!E133) -> 0 | H26: =G26*(1+'Inc & Exp'!F133) -> 0 | I26: =H26*(1+'Inc & Exp'!G133) -> 0 | J26: =I26*(1+'Inc & Exp'!H133) -> 0
C27: Total Gross Income | F27: =F25+F26 -> 0 | G27: =G25+G26 -> 0 | H27: =H25+H26 -> 0 | I27: =I25+I26 -> 0 | J27: =J25+J26 -> 0
D28: Operating Subsidies | F28: ='Inc & Exp'!C143+'Inc & Exp'!D143 -> 0 | G28: ='Inc & Exp'!C144+'Inc & Exp'!D144 -> 0 | H28: ='Inc & Exp'!C145+'Inc & Exp'!D145 -> 0 | I28: ='Inc & Exp'!C146+'Inc & Exp'!D146 -> 0 | J28: ='Inc & Exp'!C147+'Inc & Exp'!D147 -> 0
D29: Draw on Operating Reserves | F29: ='Inc & Exp'!E143 -> 0 | G29: ='Inc & Exp'!E144 -> 0 | H29: ='Inc & Exp'!E145 -> 0 | I29: ='Inc & Exp'!E146 -> 0 | J29: ='Inc & Exp'!E147 -> 0
C30: Total Effective Income | F30: =F27+F28+F29 -> 0 | G30: =G27+G28+G29 -> 0 | H30: =H27+H28+H29 -> 0 | I30: =I27+I28+I29 -> 0 | J30: =J27+J28+J29 -> 0
C32: EXPENSES:
D33: Administrative | F33: ='Inc & Exp'!G173 -> 0 | G33: =F33*(1+'Inc & Exp'!F$218) -> 0 | H33: =G33*(1+'Inc & Exp'!G217) -> 0 | I33: =H33*(1+'Inc & Exp'!H217) -> 0 | J33: =I33*(1+'Inc & Exp'!I217) -> 0
D34: Maintenance & Repair | F34: ='Inc & Exp'!G187 -> 0 | G34: =F34*(1+'Inc & Exp'!F$218) -> 0 | H34: =G34*(1+'Inc & Exp'!G218) -> 0 | I34: =H34*(1+'Inc & Exp'!H218) -> 0 | J34: =I34*(1+'Inc & Exp'!I218) -> 0
D35: Resident Services | F35: ='Inc & Exp'!G192 -> 0 | G35: =F35*(1+'Inc & Exp'!F$218) -> 0 | H35: =G35*(1+'Inc & Exp'!G$218) -> 0 | I35: =H35*(1+'Inc & Exp'!H$218) -> 0 | J35: =I35*(1+'Inc & Exp'!I$218) -> 0
D36: Security | F36: ='Inc & Exp'!G194 -> 0 | G36: =F36*(1+'Inc & Exp'!F$218) -> 0 | H36: =G36*(1+'Inc & Exp'!G$218) -> 0 | I36: =H36*(1+'Inc & Exp'!H$218) -> 0 | J36: =I36*(1+'Inc & Exp'!I$218) -> 0
D37: Electricity | F37: ='Inc & Exp'!G196 -> 0 | G37: =F37*(1+'Inc & Exp'!F$218) -> 0 | H37: =G37*(1+'Inc & Exp'!G$218) -> 0 | I37: =H37*(1+'Inc & Exp'!H$218) -> 0 | J37: =I37*(1+'Inc & Exp'!I$218) -> 0
D38: Gas | F38: ='Inc & Exp'!G197 -> 0 | G38: =F38*(1+'Inc & Exp'!F$218) -> 0 | H38: =G38*(1+'Inc & Exp'!G$218) -> 0 | I38: =H38*(1+'Inc & Exp'!H$218) -> 0 | J38: =I38*(1+'Inc & Exp'!I$218) -> 0
D39: Oil | F39: ='Inc & Exp'!G198 -> 0 | G39: =F39*(1+'Inc & Exp'!F$218) -> 0 | H39: =G39*(1+'Inc & Exp'!G$218) -> 0 | I39: =H39*(1+'Inc & Exp'!H$218) -> 0 | J39: =I39*(1+'Inc & Exp'!I$218) -> 0
D40: Water & Sewer | F40: ='Inc & Exp'!G199 -> 0 | G40: =F40*(1+'Inc & Exp'!F216) -> 0 | H40: =G40*(1+'Inc & Exp'!G216) -> 0 | I40: =H40*(1+'Inc & Exp'!H216) -> 0 | J40: =I40*(1+'Inc & Exp'!I216) -> 0
D41: Replacement Reserve | F41: ='Inc & Exp'!G202 -> 0 | G41: =F41*(1+'Inc & Exp'!F218) -> 0 | H41: =G41*(1+'Inc & Exp'!G218) -> 0 | I41: =H41*(1+'Inc & Exp'!H218) -> 0 | J41: =I41*(1+'Inc & Exp'!I218) -> 0
D42: Real Estate Taxes | F42: ='Inc & Exp'!G204 -> 0 | G42: =F42*(1+'Inc & Exp'!F217) -> 0 | H42: =G42*(1+'Inc & Exp'!G217) -> 0 | I42: =H42*(1+'Inc & Exp'!H217) -> 0 | J42: =I42*(1+'Inc & Exp'!I217) -> 0
D43: Other Taxes | F43: ='Inc & Exp'!G205 -> 0 | G43: =F43*(1+'Inc & Exp'!F$218) -> 0 | H43: =G43*(1+'Inc & Exp'!G$218) -> 0 | I43: =H43*(1+'Inc & Exp'!H$218) -> 0 | J43: =I43*(1+'Inc & Exp'!I$218) -> 0
D44: Insurance | F44: ='Inc & Exp'!G206 -> 0 | G44: =F44*(1+'Inc & Exp'!F$218) -> 0 | H44: =G44*(1+'Inc & Exp'!G$218) -> 0 | I44: =H44*(1+'Inc & Exp'!H$218) -> 0 | J44: =I44*(1+'Inc & Exp'!I$218) -> 0
D45: Other: | E45: =IF(+'Inc & Exp'!D208=""," ",'Inc & Exp'!D208) ->  | F45: ='Inc & Exp'!G208 -> 0 | G45: =F45*(1+'Inc & Exp'!F$218) -> 0 | H45: =G45*(1+'Inc & Exp'!G$218) -> 0 | I45: =H45*(1+'Inc & Exp'!H$218) -> 0 | J45: =I45*(1+'Inc & Exp'!I$218) -> 0
C46: Total Operating Expenses | F46: =SUM(F33:F45) -> 0 | G46: =SUM(G33:G45) -> 0 | H46: =SUM(H33:H45) -> 0 | I46: =SUM(I33:I45) -> 0 | J46: =SUM(J33:J45) -> 0
C48: NET OPERATING INCOME | F48: =F30-F46 -> 0 | G48: =G30-G46 -> 0 | H48: =H30-H46 -> 0 | I48: =I30-I46 -> 0 | J48: =J30-J46 -> 0
D50: Debt Service | F50: ='Inc & Exp'!$G$234 -> 0 | G50: ='Inc & Exp'!$G$234 -> 0 | H50: ='Inc & Exp'!$G$234 -> 0 | I50: ='Inc & Exp'!$G$234 -> 0 | J50: ='Inc & Exp'!$G$234 -> 0
D51: Debt Service Coverage | F51: =IF(F50>0,F48/F50,"") ->  | G51: =IF(G50>0,G48/G50," ") ->  | H51: =IF(H50>0,H48/H50," ") ->  | I51: =IF(I50>0,I48/I50," ") ->  | J51: =IF(J50>0,J48/J50," ") -> 
D52: Project Cash Flow | F52: =F48-F50 -> 0 | G52: =G48-G50 -> 0 | H52: =H48-H50 -> 0 | I52: =I48-I50 -> 0 | J52: =J48-J50 -> 0
B57: =B2 -> NH Housing Financing Application | J57: Page 2 of 4
B58: 20-Year Operating Proforma (Years 6-10)
F61: Year 6 | G61: Year 7 | H61: Year 8 | I61: Year 9 | J61: Year 10
C62: INCOME:
D63: =D9 -> Market Rate | F63: =J9*(1+'Inc & Exp'!$I122) -> 0 | G63: =F63*(1+'Inc & Exp'!$I$122) -> 0 | H63: =G63*(1+'Inc & Exp'!$I122) -> 0 | I63: =H63*(1+'Inc & Exp'!$I122) -> 0 | J63: =I63*(1+'Inc & Exp'!$I122) -> 0
D64: LIHTC 20% AMI/HTF PBV | F64: =J10*(1+'Inc & Exp'!$I123) -> 0 | G64: =F64*(1+'Inc & Exp'!$I123) -> 0 | H64: =G64*(1+'Inc & Exp'!$I123) -> 0 | I64: =H64*(1+'Inc & Exp'!$I123) -> 0 | J64: =I64*(1+'Inc & Exp'!$I123) -> 0
D65: LIHTC 30% AMI/HTF PBV | F65: =J11*(1+'Inc & Exp'!$I124) -> 0 | G65: =F65*(1+'Inc & Exp'!$I124) -> 0 | H65: =G65*(1+'Inc & Exp'!$I124) -> 0 | I65: =H65*(1+'Inc & Exp'!$I124) -> 0 | J65: =I65*(1+'Inc & Exp'!$I124) -> 0
D66: LIHTC 60% AMI | F66: =J12*(1+'Inc & Exp'!$I125) -> 0 | G66: =F66*(1+'Inc & Exp'!$I125) -> 0 | H66: =G66*(1+'Inc & Exp'!$I125) -> 0 | I66: =H66*(1+'Inc & Exp'!$I125) -> 0 | J66: =I66*(1+'Inc & Exp'!$I125) -> 0
D67: LIHTC 70% AMI | F67: =J13*(1+'Inc & Exp'!$I126) -> 0 | G67: =F67*(1+'Inc & Exp'!$I126) -> 0 | H67: =G67*(1+'Inc & Exp'!$I126) -> 0 | I67: =H67*(1+'Inc & Exp'!$I126) -> 0 | J67: =I67*(1+'Inc & Exp'!$I126) -> 0
D68: LIHTC 80% AMI | F68: =J14*(1+'Inc & Exp'!$I127) -> 0 | G68: =F68*(1+'Inc & Exp'!$I127) -> 0 | H68: =G68*(1+'Inc & Exp'!$I127) -> 0 | I68: =H68*(1+'Inc & Exp'!$I127) -> 0 | J68: =I68*(1+'Inc & Exp'!$I127) -> 0
D69: Income Limit/Program | F69: =J15*(1+'Inc & Exp'!$I128) -> 0 | G69: =F69*(1+'Inc & Exp'!$I128) -> 0 | H69: =G69*(1+'Inc & Exp'!$I128) -> 0 | I69: =H69*(1+'Inc & Exp'!$I128) -> 0 | J69: =I69*(1+'Inc & Exp'!$I128) -> 0
D70: Income Limit/Program | F70: =J16*(1+'Inc & Exp'!$I129) -> 0 | G70: =F70*(1+'Inc & Exp'!$I129) -> 0 | H70: =G70*(1+'Inc & Exp'!$I129) -> 0 | I70: =H70*(1+'Inc & Exp'!$I129) -> 0 | J70: =I70*(1+'Inc & Exp'!$I129) -> 0
D71: Income Limit/Program | F71: =J17*(1+'Inc & Exp'!$I130) -> 0 | G71: =F71*(1+'Inc & Exp'!$I130) -> 0 | H71: =G71*(1+'Inc & Exp'!$I130) -> 0 | I71: =H71*(1+'Inc & Exp'!$I130) -> 0 | J71: =I71*(1+'Inc & Exp'!$I130) -> 0
D72: Income Limit/Program | F72: =J18*(1+'Inc & Exp'!$I131) -> 0 | G72: =F72*(1+'Inc & Exp'!$I131) -> 0 | H72: =G72*(1+'Inc & Exp'!$I131) -> 0 | I72: =H72*(1+'Inc & Exp'!$I131) -> 0 | J72: =I72*(1+'Inc & Exp'!$I131) -> 0
C73: Gross Potential Income | F73: =SUM(F63:F72) -> 0 | G73: =SUM(G63:G72) -> 0 | H73: 0 | I73: 0 | J73: 0
D74: Less vacancy | F74: =(F63*'Inc & Exp'!$I$105)+(F64*'Inc & Exp'!$I$106)+(F65*'Inc & Exp'!$I$107)+(F66*'Inc & Exp'!$I$108)+(F67*'Inc & Exp'!$I$109)+(F68*'Inc & Exp'!$I$110)+(F69*'Inc & Exp'!$I$111)+(F70*'Inc & Exp'!$I$112)+(F71*'Inc & Exp'!$I$113)+(F72*'Inc & Exp'!$I$114) -> 0 | G74: =(G63*'Inc & Exp'!$I$105)+(G64*'Inc & Exp'!$I$106)+(G65*'Inc & Exp'!$I$107)+(G66*'Inc & Exp'!$I$108)+(G67*'Inc & Exp'!$I$109)+(G68*'Inc & Exp'!$I$110)+(G69*'Inc & Exp'!$I$111)+(G70*'Inc & Exp'!$I$112)+(G71*'Inc & Exp'!$I$113)+(G72*'Inc & Exp'!$I$114) -> 0 | H74: =(H63*'Inc & Exp'!$I$105)+(H64*'Inc & Exp'!$I$106)+(H65*'Inc & Exp'!$I$107)+(H66*'Inc & Exp'!$I$108)+(H67*'Inc & Exp'!$I$109)+(H68*'Inc & Exp'!$I$110)+(H69*'Inc & Exp'!$I$111)+(H70*'Inc & Exp'!$I$112)+(H71*'Inc & Exp'!$I$113)+(H72*'Inc & Exp'!$I$114) -> 0 | I74: =(I63*'Inc & Exp'!$I$105)+(I64*'Inc & Exp'!$I$106)+(I65*'Inc & Exp'!$I$107)+(I66*'Inc & Exp'!$I$108)+(I67*'Inc & Exp'!$I$109)+(I68*'Inc & Exp'!$I$110)+(I69*'Inc & Exp'!$I$111)+(I70*'Inc & Exp'!$I$112)+(I71*'Inc & Exp'!$I$113)+(I72*'Inc & Exp'!$I$114) -> 0 | J74: =(J63*'Inc & Exp'!$I$105)+(J64*'Inc & Exp'!$I$106)+(J65*'Inc & Exp'!$I$107)+(J66*'Inc & Exp'!$I$108)+(J67*'Inc & Exp'!$I$109)+(J68*'Inc & Exp'!$I$110)+(J69*'Inc & Exp'!$I$111)+(J70*'Inc & Exp'!$I$112)+(J71*'Inc & Exp'!$I$113)+(J72*'Inc & Exp'!$I$114) -> 0
C75: Effective Gross Residential Income | F75: =F73-F74 -> 0 | G75: =G73-G74 -> 0 | H75: =H73-H74 -> 0 | I75: 0 | J75: 0
D76: Commercial Income | F76: =J22*(1+'Inc & Exp'!I132) -> 0 | G76: =F76*(1+'Inc & Exp'!$I$132) -> 0 | H76: =G76*(1+'Inc & Exp'!$I$132) -> 0 | I76: =H76*(1+'Inc & Exp'!$I$132) -> 0 | J76: =I76*(1+'Inc & Exp'!$I$132) -> 0
D77: Less vacancy | F77: =F76*'Inc & Exp'!$I$115 -> 0 | G77: =G76*'Inc & Exp'!$I$115 -> 0 | H77: =H76*'Inc & Exp'!$I$115 -> 0 | I77: =I76*'Inc & Exp'!$I$115 -> 0 | J77: =J76*'Inc & Exp'!$I$115 -> 0
D78: Net Commercial Income | F78: =F76-F77 -> 0 | G78: =G76-G77 -> 0 | H78: =H76-H77 -> 0 | I78: =I76-I77 -> 0 | J78: =J76-J77 -> 0
C79: Effective Rental Income | F79: =F75+F78 -> 0 | G79: =G75+G78 -> 0 | H79: =H75+H78 -> 0 | I79: =I75+I78 -> 0 | J79: =J75+J78 -> 0
D80: Other Income | F80: =J26*(1+'Inc & Exp'!I133) -> 0 | G80: =F80*(1+'Inc & Exp'!$I$133) -> 0 | H80: =G80*(1+'Inc & Exp'!$I$133) -> 0 | I80: =H80*(1+'Inc & Exp'!$I$133) -> 0 | J80: =I80*(1+'Inc & Exp'!$I$133) -> 0
C81: Total Gross Income | F81: =F79+F80 -> 0 | G81: =G79+G80 -> 0 | H81: =H79+H80 -> 0 | I81: =I79+I80 -> 0 | J81: =J79+J80 -> 0
D82: Operating Subsidies | F82: ='Inc & Exp'!C148+'Inc & Exp'!D148 -> 0 | G82: ='Inc & Exp'!C149+'Inc & Exp'!D149 -> 0 | H82: ='Inc & Exp'!C150+'Inc & Exp'!D150 -> 0 | I82: ='Inc & Exp'!C151+'Inc & Exp'!D151 -> 0 | J82: ='Inc & Exp'!C152+'Inc & Exp'!D152 -> 0
D83: Draw on Operating Reserves | F83: ='Inc & Exp'!E148 -> 0 | G83: ='Inc & Exp'!E149 -> 0 | H83: ='Inc & Exp'!E150 -> 0 | I83: ='Inc & Exp'!E151 -> 0 | J83: ='Inc & Exp'!E152 -> 0
C84: Total Effective Income | F84: =F81+F82+F83 -> 0 | G84: =G81+G82+G83 -> 0 | H84: =H81+H82+H83 -> 0 | I84: =I81+I82+I83 -> 0 | J84: =J81+J82+J83 -> 0
C86: EXPENSES:
D87: Administrative | F87: =J33*(1+'Inc & Exp'!$I$218) -> 0 | G87: =F87*(1+'Inc & Exp'!$I$218) -> 0 | H87: =G87*(1+'Inc & Exp'!$I$218) -> 0 | I87: =H87*(1+'Inc & Exp'!$I$218) -> 0 | J87: =I87*(1+'Inc & Exp'!$I$218) -> 0
D88: Maintenance & Repair | F88: =J34*(1+'Inc & Exp'!$I$218) -> 0 | G88: =F88*(1+'Inc & Exp'!$I$218) -> 0 | H88: =G88*(1+'Inc & Exp'!$I$218) -> 0 | I88: =H88*(1+'Inc & Exp'!$I$218) -> 0 | J88: =I88*(1+'Inc & Exp'!$I$218) -> 0
D89: Resident Services | F89: =J35*(1+'Inc & Exp'!$I$218) -> 0 | G89: =F89*(1+'Inc & Exp'!$I$218) -> 0 | H89: =G89*(1+'Inc & Exp'!$I$218) -> 0 | I89: =H89*(1+'Inc & Exp'!$I$218) -> 0 | J89: =I89*(1+'Inc & Exp'!$I$218) -> 0
D90: Security | F90: =J36*(1+'Inc & Exp'!$I$218) -> 0 | G90: =F90*(1+'Inc & Exp'!$I$218) -> 0 | H90: =G90*(1+'Inc & Exp'!$I$218) -> 0 | I90: =H90*(1+'Inc & Exp'!$I$218) -> 0 | J90: =I90*(1+'Inc & Exp'!$I$218) -> 0
D91: Electricity | F91: =J37*(1+'Inc & Exp'!$I$218) -> 0 | G91: =F91*(1+'Inc & Exp'!$I$218) -> 0 | H91: =G91*(1+'Inc & Exp'!$I$218) -> 0 | I91: =H91*(1+'Inc & Exp'!$I$218) -> 0 | J91: =I91*(1+'Inc & Exp'!$I$218) -> 0
D92: Gas | F92: =J38*(1+'Inc & Exp'!$I$218) -> 0 | G92: =F92*(1+'Inc & Exp'!$I$218) -> 0 | H92: =G92*(1+'Inc & Exp'!$I$218) -> 0 | I92: =H92*(1+'Inc & Exp'!$I$218) -> 0 | J92: =I92*(1+'Inc & Exp'!$I$218) -> 0
D93: Oil | F93: =J39*(1+'Inc & Exp'!$I$218) -> 0 | G93: =F93*(1+'Inc & Exp'!$I$218) -> 0 | H93: =G93*(1+'Inc & Exp'!$I$218) -> 0 | I93: =H93*(1+'Inc & Exp'!$I$218) -> 0 | J93: =I93*(1+'Inc & Exp'!$I$218) -> 0
D94: Water & Sewer | F94: =J40*(1+'Inc & Exp'!$I$216) -> 0 | G94: =F94*(1+'Inc & Exp'!$I$216) -> 0 | H94: =G94*(1+'Inc & Exp'!$I$216) -> 0 | I94: =H94*(1+'Inc & Exp'!$I$216) -> 0 | J94: =I94*(1+'Inc & Exp'!$I$216) -> 0
D95: Replacement Reserve | F95: =J41*(1+'Inc & Exp'!$I$218) -> 0 | G95: =F95*(1+'Inc & Exp'!$I$218) -> 0 | H95: =G95*(1+'Inc & Exp'!$I$218) -> 0 | I95: =H95*(1+'Inc & Exp'!$I$218) -> 0 | J95: =I95*(1+'Inc & Exp'!$I$218) -> 0
D96: Real Estate Taxes | F96: =J42*(1+'Inc & Exp'!$I$217) -> 0 | G96: =F96*(1+'Inc & Exp'!$I$217) -> 0 | H96: =G96*(1+'Inc & Exp'!$I$217) -> 0 | I96: =H96*(1+'Inc & Exp'!$I$217) -> 0 | J96: =I96*(1+'Inc & Exp'!$I$217) -> 0
D97: Other Taxes | F97: =J43*(1+'Inc & Exp'!$I$217) -> 0 | G97: =F97*(1+'Inc & Exp'!$I$217) -> 0 | H97: =G97*(1+'Inc & Exp'!$I$217) -> 0 | I97: =H97*(1+'Inc & Exp'!$I$217) -> 0 | J97: =I97*(1+'Inc & Exp'!$I$217) -> 0
D98: Insurance | F98: =J44*(1+'Inc & Exp'!$I$218) -> 0 | G98: =F98*(1+'Inc & Exp'!$I$218) -> 0 | H98: =G98*(1+'Inc & Exp'!$I$218) -> 0 | I98: =H98*(1+'Inc & Exp'!$I$218) -> 0 | J98: =I98*(1+'Inc & Exp'!$I$218) -> 0
D99: Other: | F99: =J45*(1+'Inc & Exp'!$I$218) -> 0 | G99: =F99*(1+'Inc & Exp'!$I$218) -> 0 | H99: =G99*(1+'Inc & Exp'!$I$218) -> 0 | I99: =H99*(1+'Inc & Exp'!$I$218) -> 0 | J99: =I99*(1+'Inc & Exp'!$I$218) -> 0
C100: Total Operating Expenses | F100: =SUM(F87:F99) -> 0 | G100: =SUM(G87:G99) -> 0 | H100: =SUM(H87:H99) -> 0 | I100: =SUM(I87:I99) -> 0 | J100: =SUM(J87:J99) -> 0
C102: NET OPERATING INCOME | F102: =F84-F100 -> 0 | G102: =G84-G100 -> 0 | H102: =H84-H100 -> 0 | I102: =I84-I100 -> 0 | J102: =J84-J100 -> 0
D104: Debt Service | F104: ='Inc & Exp'!$G$234 -> 0 | G104: ='Inc & Exp'!$G$234 -> 0 | H104: ='Inc & Exp'!$G$234 -> 0 | I104: ='Inc & Exp'!$G$234 -> 0 | J104: ='Inc & Exp'!$G$234 -> 0
D105: Debt Service Coverage | F105: =IF(F104>0,F102/F104," ") ->  | G105: =IF(G104>0,G102/G104," ") ->  | H105: =IF(H104>0,H102/H104," ") ->  | I105: =IF(I104>0,I102/I104," ") ->  | J105: =IF(J104>0,J102/J104," ") -> 
D106: Project Cash Flow | F106: =F102-F104 -> 0 | G106: =G102-G104 -> 0 | H106: =H102-H104 -> 0 | I106: =I102-I104 -> 0 | J106: =J102-J104 -> 0
I109: Ten-year projected cash flow | J109: =SUM(F106:J106,F52:J52) -> 0
B113: =B57 -> NH Housing Financing Application | J113: Page 3 of 4
B114: 20-Year Operating Proforma (Years 11-15)
F117: Year 11 | G117: Year 12 | H117: Year 13 | I117: Year 14 | J117: Year 15
C118: INCOME:
D119: =D9 -> Market Rate | F119: =J63*(1+'Inc & Exp'!$I122) -> 0 | G119: =F119*(1+'Inc & Exp'!$I122) -> 0 | H119: =G119*(1+'Inc & Exp'!$I122) -> 0 | I119: =H119*(1+'Inc & Exp'!$I122) -> 0 | J119: =I119*(1+'Inc & Exp'!$I122) -> 0
D120: LIHTC 20% AMI/HTF PBV | F120: =J64*(1+'Inc & Exp'!$I123) -> 0 | G120: =F120*(1+'Inc & Exp'!$I123) -> 0 | H120: =G120*(1+'Inc & Exp'!$I123) -> 0 | I120: =H120*(1+'Inc & Exp'!$I123) -> 0 | J120: =I120*(1+'Inc & Exp'!$I123) -> 0
D121: LIHTC 30% AMI/HTF PBV | F121: =J65*(1+'Inc & Exp'!$I124) -> 0 | G121: =F121*(1+'Inc & Exp'!$I124) -> 0 | H121: =G121*(1+'Inc & Exp'!$I124) -> 0 | I121: =H121*(1+'Inc & Exp'!$I124) -> 0 | J121: =I121*(1+'Inc & Exp'!$I124) -> 0
D122: LIHTC 60% AMI | F122: =J66*(1+'Inc & Exp'!$I125) -> 0 | G122: =F122*(1+'Inc & Exp'!$I125) -> 0 | H122: =G122*(1+'Inc & Exp'!$I125) -> 0 | I122: =H122*(1+'Inc & Exp'!$I125) -> 0 | J122: =I122*(1+'Inc & Exp'!$I125) -> 0
D123: LIHTC 70% AMI | F123: =J67*(1+'Inc & Exp'!$I126) -> 0 | G123: =F123*(1+'Inc & Exp'!$I126) -> 0 | H123: =G123*(1+'Inc & Exp'!$I126) -> 0 | I123: =H123*(1+'Inc & Exp'!$I126) -> 0 | J123: =I123*(1+'Inc & Exp'!$I126) -> 0
D124: LIHTC 80% AMI | F124: =J68*(1+'Inc & Exp'!$I127) -> 0 | G124: =F124*(1+'Inc & Exp'!$I127) -> 0 | H124: =G124*(1+'Inc & Exp'!$I127) -> 0 | I124: =H124*(1+'Inc & Exp'!$I127) -> 0 | J124: =I124*(1+'Inc & Exp'!$I127) -> 0
D125: Income Limit/Program | F125: =J69*(1+'Inc & Exp'!$I128) -> 0 | G125: =F125*(1+'Inc & Exp'!$I128) -> 0 | H125: =G125*(1+'Inc & Exp'!$I128) -> 0 | I125: =H125*(1+'Inc & Exp'!$I128) -> 0 | J125: =I125*(1+'Inc & Exp'!$I128) -> 0
D126: Income Limit/Program | F126: =J70*(1+'Inc & Exp'!$I129) -> 0 | G126: =F126*(1+'Inc & Exp'!$I129) -> 0 | H126: =G126*(1+'Inc & Exp'!$I129) -> 0 | I126: =H126*(1+'Inc & Exp'!$I129) -> 0 | J126: =I126*(1+'Inc & Exp'!$I129) -> 0
D127: Income Limit/Program | F127: =J71*(1+'Inc & Exp'!$I130) -> 0 | G127: =F127*(1+'Inc & Exp'!$I130) -> 0 | H127: =G127*(1+'Inc & Exp'!$I130) -> 0 | I127: =H127*(1+'Inc & Exp'!$I130) -> 0 | J127: =I127*(1+'Inc & Exp'!$I130) -> 0
D128: Income Limit/Program | F128: =J72*(1+'Inc & Exp'!$I131) -> 0 | G128: =F128*(1+'Inc & Exp'!$I131) -> 0 | H128: =G128*(1+'Inc & Exp'!$I131) -> 0 | I128: =H128*(1+'Inc & Exp'!$I131) -> 0 | J128: =I128*(1+'Inc & Exp'!$I131) -> 0
C129: Gross Potential Income | F129: =SUM(F119:F128) -> 0 | G129: =SUM(G119:G128) -> 0 | H129: =SUM(H119:H128) -> 0 | I129: =SUM(I119:I128) -> 0 | J129: =SUM(J119:J128) -> 0
D130: Less vacancy | F130: =(F119*'Inc & Exp'!$I$105)+(F120*'Inc & Exp'!$I$106)+(F121*'Inc & Exp'!$I$107)+(F122*'Inc & Exp'!$I$108)+(F123*'Inc & Exp'!$I$109)+(F124*'Inc & Exp'!$I$110)+(F125*'Inc & Exp'!$I$111)+(F126*'Inc & Exp'!$I$112)+(F127*'Inc & Exp'!$I$113)+(F128*'Inc & Exp'!$I$114) -> 0 | G130: =(G119*'Inc & Exp'!$I$105)+(G120*'Inc & Exp'!$I$106)+(G121*'Inc & Exp'!$I$107)+(G122*'Inc & Exp'!$I$108)+(G123*'Inc & Exp'!$I$109)+(G124*'Inc & Exp'!$I$110)+(G125*'Inc & Exp'!$I$111)+(G126*'Inc & Exp'!$I$112)+(G127*'Inc & Exp'!$I$113)+(G128*'Inc & Exp'!$I$114) -> 0 | H130: =(H119*'Inc & Exp'!$I$105)+(H120*'Inc & Exp'!$I$106)+(H121*'Inc & Exp'!$I$107)+(H122*'Inc & Exp'!$I$108)+(H123*'Inc & Exp'!$I$109)+(H124*'Inc & Exp'!$I$110)+(H125*'Inc & Exp'!$I$111)+(H126*'Inc & Exp'!$I$112)+(H127*'Inc & Exp'!$I$113)+(H128*'Inc & Exp'!$I$114) -> 0 | I130: =(I119*'Inc & Exp'!$I$105)+(I120*'Inc & Exp'!$I$106)+(I121*'Inc & Exp'!$I$107)+(I122*'Inc & Exp'!$I$108)+(I123*'Inc & Exp'!$I$109)+(I124*'Inc & Exp'!$I$110)+(I125*'Inc & Exp'!$I$111)+(I126*'Inc & Exp'!$I$112)+(I127*'Inc & Exp'!$I$113)+(I128*'Inc & Exp'!$I$114) -> 0 | J130: =(J119*'Inc & Exp'!$I$105)+(J120*'Inc & Exp'!$I$106)+(J121*'Inc & Exp'!$I$107)+(J122*'Inc & Exp'!$I$108)+(J123*'Inc & Exp'!$I$109)+(J124*'Inc & Exp'!$I$110)+(J125*'Inc & Exp'!$I$111)+(J126*'Inc & Exp'!$I$112)+(J127*'Inc & Exp'!$I$113)+(J128*'Inc & Exp'!$I$114) -> 0
C131: Effective Gross Residential Income | F131: =F129-F130 -> 0 | G131: =G129-G130 -> 0 | H131: =H129-H130 -> 0 | I131: =I129-I130 -> 0 | J131: =J129-J130 -> 0
D132: Commercial Income | F132: =J76*(1+'Inc & Exp'!$I$132) -> 0 | G132: =F132*(1+'Inc & Exp'!$I$132) -> 0 | H132: =G132*(1+'Inc & Exp'!$I$132) -> 0 | I132: =H132*(1+'Inc & Exp'!$I$132) -> 0 | J132: =I132*(1+'Inc & Exp'!$I$132) -> 0
D133: Less vacancy | F133: =F132*'Inc & Exp'!$I$115 -> 0 | G133: =G132*'Inc & Exp'!$I$115 -> 0 | H133: =H132*'Inc & Exp'!$I$115 -> 0 | I133: =I132*'Inc & Exp'!$I$115 -> 0 | J133: =J132*'Inc & Exp'!$I$115 -> 0
D134: Net Commercial Income | F134: =F132-F133 -> 0 | G134: =G132-G133 -> 0 | H134: =H132-H133 -> 0 | I134: =I132-I133 -> 0 | J134: =J132-J133 -> 0
C135: Effective Rental Income | F135: =F131+F134 -> 0 | G135: =G131+G134 -> 0 | H135: =H131+H134 -> 0 | I135: =I131+I134 -> 0 | J135: =J131+J134 -> 0
D136: Other Income | F136: =J80*(1+'Inc & Exp'!$I$133) -> 0 | G136: =F136*(1+'Inc & Exp'!$I$133) -> 0 | H136: =G136*(1+'Inc & Exp'!$I$133) -> 0 | I136: =H136*(1+'Inc & Exp'!$I$133) -> 0 | J136: =I136*(1+'Inc & Exp'!$I$133) -> 0
C137: Total Gross Income | F137: =F135+F136 -> 0 | G137: =G135+G136 -> 0 | H137: =H135+H136 -> 0 | I137: =I135+I136 -> 0 | J137: =J135+J136 -> 0
D138: Operating Subsidies | F138: ='Inc & Exp'!G143+'Inc & Exp'!H143 -> 0 | G138: ='Inc & Exp'!G144+'Inc & Exp'!H144 -> 0 | H138: ='Inc & Exp'!G145+'Inc & Exp'!H145 -> 0 | I138: ='Inc & Exp'!G146+'Inc & Exp'!H146 -> 0 | J138: ='Inc & Exp'!G147+'Inc & Exp'!H147 -> 0
D139: Draw on Operating Reserves | F139: ='Inc & Exp'!I143 -> 0 | G139: ='Inc & Exp'!I144 -> 0 | H139: ='Inc & Exp'!I145 -> 0 | I139: ='Inc & Exp'!I146 -> 0 | J139: ='Inc & Exp'!I147 -> 0
C140: Total Effective Income | F140: =F137+F138+F139 -> 0 | G140: =G137+G138+G139 -> 0 | H140: =H137+H138+H139 -> 0 | I140: =I137+I138+I139 -> 0 | J140: =J137+J138+J139 -> 0
C142: EXPENSES:
D143: Administrative | F143: =J87*(1+'Inc & Exp'!$I$218) -> 0 | G143: =F143*(1+'Inc & Exp'!$I$218) -> 0 | H143: =G143*(1+'Inc & Exp'!$I$218) -> 0 | I143: =H143*(1+'Inc & Exp'!$I$218) -> 0 | J143: =I143*(1+'Inc & Exp'!$I$218) -> 0
D144: Maintenance & Repair | F144: =J88*(1+'Inc & Exp'!$I$218) -> 0 | G144: =F144*(1+'Inc & Exp'!$I$218) -> 0 | H144: =G144*(1+'Inc & Exp'!$I$218) -> 0 | I144: =H144*(1+'Inc & Exp'!$I$218) -> 0 | J144: =I144*(1+'Inc & Exp'!$I$218) -> 0
D145: Resident Services | F145: =J89*(1+'Inc & Exp'!$I$218) -> 0 | G145: =F145*(1+'Inc & Exp'!$I$218) -> 0 | H145: =G145*(1+'Inc & Exp'!$I$218) -> 0 | I145: =H145*(1+'Inc & Exp'!$I$218) -> 0 | J145: =I145*(1+'Inc & Exp'!$I$218) -> 0
D146: Security | F146: =J90*(1+'Inc & Exp'!$I$218) -> 0 | G146: =F146*(1+'Inc & Exp'!$I$218) -> 0 | H146: =G146*(1+'Inc & Exp'!$I$218) -> 0 | I146: =H146*(1+'Inc & Exp'!$I$218) -> 0 | J146: =I146*(1+'Inc & Exp'!$I$218) -> 0
D147: Electricity | F147: =J91*(1+'Inc & Exp'!$I$218) -> 0 | G147: =F147*(1+'Inc & Exp'!$I$218) -> 0 | H147: =G147*(1+'Inc & Exp'!$I$218) -> 0 | I147: =H147*(1+'Inc & Exp'!$I$218) -> 0 | J147: =I147*(1+'Inc & Exp'!$I$218) -> 0
D148: Gas | F148: =J92*(1+'Inc & Exp'!$I$218) -> 0 | G148: =F148*(1+'Inc & Exp'!$I$218) -> 0 | H148: =G148*(1+'Inc & Exp'!$I$218) -> 0 | I148: =H148*(1+'Inc & Exp'!$I$218) -> 0 | J148: =I148*(1+'Inc & Exp'!$I$218) -> 0
D149: Oil | F149: =J93*(1+'Inc & Exp'!$I$218) -> 0 | G149: =F149*(1+'Inc & Exp'!$I$218) -> 0 | H149: =G149*(1+'Inc & Exp'!$I$218) -> 0 | I149: =H149*(1+'Inc & Exp'!$I$218) -> 0 | J149: =I149*(1+'Inc & Exp'!$I$218) -> 0
D150: Water & Sewer | F150: =J94*(1+'Inc & Exp'!$I$216) -> 0 | G150: =F150*(1+'Inc & Exp'!$I$216) -> 0 | H150: =G150*(1+'Inc & Exp'!$I$216) -> 0 | I150: =H150*(1+'Inc & Exp'!$I$216) -> 0 | J150: =I150*(1+'Inc & Exp'!$I$216) -> 0
D151: Replacement Reserve | F151: =J95*(1+'Inc & Exp'!$I$218) -> 0 | G151: =F151*(1+'Inc & Exp'!$I$218) -> 0 | H151: =G151*(1+'Inc & Exp'!$I$218) -> 0 | I151: =H151*(1+'Inc & Exp'!$I$218) -> 0 | J151: =I151*(1+'Inc & Exp'!$I$218) -> 0
D152: Real Estate Taxes | F152: =J96*(1+'Inc & Exp'!$I$217) -> 0 | G152: =F152*(1+'Inc & Exp'!$I$217) -> 0 | H152: =G152*(1+'Inc & Exp'!$I$217) -> 0 | I152: =H152*(1+'Inc & Exp'!$I$217) -> 0 | J152: =I152*(1+'Inc & Exp'!$I$217) -> 0
D153: Other Taxes | F153: =J97*(1+'Inc & Exp'!$I$217) -> 0 | G153: =F153*(1+'Inc & Exp'!$I$217) -> 0 | H153: =G153*(1+'Inc & Exp'!$I$217) -> 0 | I153: =H153*(1+'Inc & Exp'!$I$217) -> 0 | J153: =I153*(1+'Inc & Exp'!$I$217) -> 0
D154: Insurance | F154: =J98*(1+'Inc & Exp'!$I$218) -> 0 | G154: =F154*(1+'Inc & Exp'!$I$218) -> 0 | H154: =G154*(1+'Inc & Exp'!$I$218) -> 0 | I154: =H154*(1+'Inc & Exp'!$I$218) -> 0 | J154: =I154*(1+'Inc & Exp'!$I$218) -> 0
D155: Other: | E155: =IF(+'LIHTC Info'!D48=""," ",'LIHTC Info'!D48) ->  | F155: =J99*(1+'Inc & Exp'!$I$218) -> 0 | G155: =F155*(1+'Inc & Exp'!$I$218) -> 0 | H155: =G155*(1+'Inc & Exp'!$I$218) -> 0 | I155: =H155*(1+'Inc & Exp'!$I$218) -> 0 | J155: =I155*(1+'Inc & Exp'!$I$218) -> 0
C156: Total Operating Expenses | F156: =SUM(F143:F155) -> 0 | G156: =SUM(G143:G155) -> 0 | H156: =SUM(H143:H155) -> 0 | I156: =SUM(I143:I155) -> 0 | J156: =SUM(J143:J155) -> 0
C158: NET OPERATING INCOME | F158: =F140-F156 -> 0 | G158: =G140-G156 -> 0 | H158: =H140-H156 -> 0 | I158: =I140-I156 -> 0 | J158: =J140-J156 -> 0
D160: Debt Service | F160: ='Inc & Exp'!$G$234 -> 0 | G160: ='Inc & Exp'!$G$234 -> 0 | H160: ='Inc & Exp'!$G$234 -> 0 | I160: ='Inc & Exp'!$G$234 -> 0 | J160: ='Inc & Exp'!$G$234 -> 0
D161: Debt Service Coverage | F161: =IF(F160>0,F158/F160," ") ->  | G161: =IF(G160>0,G158/G160," ") ->  | H161: =IF(H160>0,H158/H160," ") ->  | I161: =IF(I160>0,I158/I160," ") ->  | J161: =IF(J160>0,J158/J160," ") -> 
D162: Project Cash Flow | F162: =F158-F160 -> 0 | G162: =G158-G160 -> 0 | H162: =H158-H160 -> 0 | I162: =I158-I160 -> 0 | J162: =J158-J160 -> 0
D163: Operating Deficit | F163: =IF(F162>0,0,F162) -> 0 | G163: =IF(G162>0,0,G162) -> 0 | H163: =IF(H162>0,0,H162) -> 0 | I163: 0 | J163: 0
B169: =B113 -> NH Housing Financing Application | J169: Page 4 of 4
B170: 20-Year Operating Proforma (Years 16-20)
F173: Year 16 | G173: Year 17 | H173: Year 18 | I173: Year 19 | J173: Year 20
C174: INCOME:
D175: =D119 -> Market Rate | F175: =J119*(1+'Inc & Exp'!$I122) -> 0 | G175: =F175*(1+'Inc & Exp'!$I122) -> 0 | H175: =G175*(1+'Inc & Exp'!$I122) -> 0 | I175: =H175*(1+'Inc & Exp'!$I122) -> 0 | J175: =I175*(1+'Inc & Exp'!$I122) -> 0
D176: LIHTC 20% AMI/HTF PBV | F176: =J120*(1+'Inc & Exp'!$I123) -> 0 | G176: =F176*(1+'Inc & Exp'!$I123) -> 0 | H176: =G176*(1+'Inc & Exp'!$I123) -> 0 | I176: =H176*(1+'Inc & Exp'!$I123) -> 0 | J176: =I176*(1+'Inc & Exp'!$I123) -> 0
D177: LIHTC 30% AMI/HTF PBV | F177: =J121*(1+'Inc & Exp'!$I124) -> 0 | G177: =F177*(1+'Inc & Exp'!$I124) -> 0 | H177: =G177*(1+'Inc & Exp'!$I124) -> 0 | I177: =H177*(1+'Inc & Exp'!$I124) -> 0 | J177: =I177*(1+'Inc & Exp'!$I124) -> 0
D178: LIHTC 60% AMI | F178: =J122*(1+'Inc & Exp'!$I125) -> 0 | G178: =F178*(1+'Inc & Exp'!$I125) -> 0 | H178: =G178*(1+'Inc & Exp'!$I125) -> 0 | I178: =H178*(1+'Inc & Exp'!$I125) -> 0 | J178: =I178*(1+'Inc & Exp'!$I125) -> 0
D179: LIHTC 70% AMI | F179: =J123*(1+'Inc & Exp'!$I126) -> 0 | G179: =F179*(1+'Inc & Exp'!$I126) -> 0 | H179: =G179*(1+'Inc & Exp'!$I126) -> 0 | I179: =H179*(1+'Inc & Exp'!$I126) -> 0 | J179: =I179*(1+'Inc & Exp'!$I126) -> 0
D180: LIHTC 80% AMI | F180: =J124*(1+'Inc & Exp'!$I127) -> 0 | G180: =F180*(1+'Inc & Exp'!$I127) -> 0 | H180: =G180*(1+'Inc & Exp'!$I127) -> 0 | I180: =H180*(1+'Inc & Exp'!$I127) -> 0 | J180: =I180*(1+'Inc & Exp'!$I127) -> 0
D181: Income Limit/Program | F181: =J125*(1+'Inc & Exp'!$I128) -> 0 | G181: =F181*(1+'Inc & Exp'!$I128) -> 0 | H181: =G181*(1+'Inc & Exp'!$I128) -> 0 | I181: =H181*(1+'Inc & Exp'!$I128) -> 0 | J181: =I181*(1+'Inc & Exp'!$I128) -> 0
D182: Income Limit/Program | F182: =J126*(1+'Inc & Exp'!$I129) -> 0 | G182: =F182*(1+'Inc & Exp'!$I129) -> 0 | H182: =G182*(1+'Inc & Exp'!$I129) -> 0 | I182: =H182*(1+'Inc & Exp'!$I129) -> 0 | J182: =I182*(1+'Inc & Exp'!$I129) -> 0
D183: Income Limit/Program | F183: =J127*(1+'Inc & Exp'!$I130) -> 0 | G183: =F183*(1+'Inc & Exp'!$I130) -> 0 | H183: =G183*(1+'Inc & Exp'!$I130) -> 0 | I183: =H183*(1+'Inc & Exp'!$I130) -> 0 | J183: =I183*(1+'Inc & Exp'!$I130) -> 0
D184: Income Limit/Program | F184: =J128*(1+'Inc & Exp'!$I131) -> 0 | G184: =F184*(1+'Inc & Exp'!$I131) -> 0 | H184: =G184*(1+'Inc & Exp'!$I131) -> 0 | I184: =H184*(1+'Inc & Exp'!$I131) -> 0 | J184: =I184*(1+'Inc & Exp'!$I131) -> 0
C185: Gross Potential Income | F185: =SUM(F175:F184) -> 0 | G185: =SUM(G175:G184) -> 0 | H185: =SUM(H175:H184) -> 0 | I185: =SUM(I175:I184) -> 0 | J185: =SUM(J175:J184) -> 0
D186: Less vacancy | F186: =(F175*'Inc & Exp'!$I$105)+(F176*'Inc & Exp'!$I$106)+(F177*'Inc & Exp'!$I$107)+(F178*'Inc & Exp'!$I$108)+(F179*'Inc & Exp'!$I$109)+(F180*'Inc & Exp'!$I$110)+(F181*'Inc & Exp'!$I$111)+(F182*'Inc & Exp'!$I$112)+(F183*'Inc & Exp'!$I$113)+(F184*'Inc & Exp'!$I$114) -> 0 | G186: =(G175*'Inc & Exp'!$I$105)+(G176*'Inc & Exp'!$I$106)+(G177*'Inc & Exp'!$I$107)+(G178*'Inc & Exp'!$I$108)+(G179*'Inc & Exp'!$I$109)+(G180*'Inc & Exp'!$I$110)+(G181*'Inc & Exp'!$I$111)+(G182*'Inc & Exp'!$I$112)+(G183*'Inc & Exp'!$I$113)+(G184*'Inc & Exp'!$I$114) -> 0 | H186: =(H175*'Inc & Exp'!$I$105)+(H176*'Inc & Exp'!$I$106)+(H177*'Inc & Exp'!$I$107)+(H178*'Inc & Exp'!$I$108)+(H179*'Inc & Exp'!$I$109)+(H180*'Inc & Exp'!$I$110)+(H181*'Inc & Exp'!$I$111)+(H182*'Inc & Exp'!$I$112)+(H183*'Inc & Exp'!$I$113)+(H184*'Inc & Exp'!$I$114) -> 0 | I186: =(I175*'Inc & Exp'!$I$105)+(I176*'Inc & Exp'!$I$106)+(I177*'Inc & Exp'!$I$107)+(I178*'Inc & Exp'!$I$108)+(I179*'Inc & Exp'!$I$109)+(I180*'Inc & Exp'!$I$110)+(I181*'Inc & Exp'!$I$111)+(I182*'Inc & Exp'!$I$112)+(I183*'Inc & Exp'!$I$113)+(I184*'Inc & Exp'!$I$114) -> 0 | J186: =(J175*'Inc & Exp'!$I$105)+(J176*'Inc & Exp'!$I$106)+(J177*'Inc & Exp'!$I$107)+(J178*'Inc & Exp'!$I$108)+(J179*'Inc & Exp'!$I$109)+(J180*'Inc & Exp'!$I$110)+(J181*'Inc & Exp'!$I$111)+(J182*'Inc & Exp'!$I$112)+(J183*'Inc & Exp'!$I$113)+(J184*'Inc & Exp'!$I$114) -> 0
C187: Effective Gross Residential Income | F187: =F185-F186 -> 0 | G187: =G185-G186 -> 0 | H187: =H185-H186 -> 0 | I187: =I185-I186 -> 0 | J187: =J185-J186 -> 0
D188: Commercial Income | F188: =J132*(1+'Inc & Exp'!$I$132) -> 0 | G188: =F188*(1+'Inc & Exp'!$I$132) -> 0 | H188: =G188*(1+'Inc & Exp'!$I$132) -> 0 | I188: =H188*(1+'Inc & Exp'!$H$132) -> 0 | J188: =I188*(1+'Inc & Exp'!$H$132) -> 0
D189: Less vacancy | F189: =F188*'Inc & Exp'!$I$115 -> 0 | G189: =G188*'Inc & Exp'!$I$115 -> 0 | H189: =H188*'Inc & Exp'!$I$115 -> 0 | I189: =I188*'Inc & Exp'!$I$115 -> 0 | J189: =J188*'Inc & Exp'!$I$115 -> 0
D190: Net Commercial Income | F190: =F188-F189 -> 0 | G190: =G188-G189 -> 0 | H190: =H188-H189 -> 0 | I190: =I188-I189 -> 0 | J190: =J188-J189 -> 0
C191: Effective Rental Income | F191: =F187+F190 -> 0 | G191: =G187+G190 -> 0 | H191: =H187+H190 -> 0 | I191: =I187+I190 -> 0 | J191: =J187+J190 -> 0
D192: Other Income | F192: =J136*(1+'Inc & Exp'!$H$133) -> 0 | G192: =F192*(1+'Inc & Exp'!$H$133) -> 0 | H192: =G192*(1+'Inc & Exp'!$H$133) -> 0 | I192: =H192*(1+'Inc & Exp'!$H$133) -> 0 | J192: =I192*(1+'Inc & Exp'!$H$133) -> 0
C193: Total Gross Income | F193: =F191+F192 -> 0 | G193: =G191+G192 -> 0 | H193: =H191+H192 -> 0 | I193: =I191+I192 -> 0 | J193: =J191+J192 -> 0
D194: Operating Subsidies | F194: ='Inc & Exp'!G148+'Inc & Exp'!H148 -> 0 | G194: ='Inc & Exp'!G149+'Inc & Exp'!H149 -> 0 | H194: ='Inc & Exp'!G150+'Inc & Exp'!H150 -> 0 | I194: ='Inc & Exp'!G151+'Inc & Exp'!H151 -> 0 | J194: ='Inc & Exp'!G152+'Inc & Exp'!H152 -> 0
D195: Draw on Operating Reserves | F195: ='Inc & Exp'!I148 -> 0 | G195: ='Inc & Exp'!I149 -> 0 | H195: ='Inc & Exp'!I150 -> 0 | I195: ='Inc & Exp'!I151 -> 0 | J195: ='Inc & Exp'!I152 -> 0
C196: Total Effective Income | F196: =F193+F194+F195 -> 0 | G196: =G193+G194+G195 -> 0 | H196: =H193+H194+H195 -> 0 | I196: =I193+I194+I195 -> 0 | J196: =J193+J194+J195 -> 0
C198: EXPENSES:
D199: Administrative | F199: =J143*(1+'Inc & Exp'!$I$218) -> 0 | G199: =F199*(1+'Inc & Exp'!$I$218) -> 0 | H199: =G199*(1+'Inc & Exp'!$I$218) -> 0 | I199: =H199*(1+'Inc & Exp'!$I$218) -> 0 | J199: =I199*(1+'Inc & Exp'!$I$218) -> 0
D200: Maintenance & Repair | F200: =J144*(1+'Inc & Exp'!$I$218) -> 0 | G200: =F200*(1+'Inc & Exp'!$I$218) -> 0 | H200: =G200*(1+'Inc & Exp'!$I$218) -> 0 | I200: =H200*(1+'Inc & Exp'!$I$218) -> 0 | J200: =I200*(1+'Inc & Exp'!$I$218) -> 0
D201: Resident Services | F201: =J145*(1+'Inc & Exp'!$I$218) -> 0 | G201: =F201*(1+'Inc & Exp'!$I$218) -> 0 | H201: =G201*(1+'Inc & Exp'!$I$218) -> 0 | I201: =H201*(1+'Inc & Exp'!$I$218) -> 0 | J201: =I201*(1+'Inc & Exp'!$I$218) -> 0
D202: Security | F202: =J146*(1+'Inc & Exp'!$I$218) -> 0 | G202: =F202*(1+'Inc & Exp'!$I$218) -> 0 | H202: =G202*(1+'Inc & Exp'!$I$218) -> 0 | I202: =H202*(1+'Inc & Exp'!$I$218) -> 0 | J202: =I202*(1+'Inc & Exp'!$I$218) -> 0
D203: Electricity | F203: =J147*(1+'Inc & Exp'!$I$218) -> 0 | G203: =F203*(1+'Inc & Exp'!$I$218) -> 0 | H203: =G203*(1+'Inc & Exp'!$I$218) -> 0 | I203: =H203*(1+'Inc & Exp'!$I$218) -> 0 | J203: =I203*(1+'Inc & Exp'!$I$218) -> 0
D204: Gas | F204: =J148*(1+'Inc & Exp'!$I$218) -> 0 | G204: =F204*(1+'Inc & Exp'!$I$218) -> 0 | H204: =G204*(1+'Inc & Exp'!$I$218) -> 0 | I204: =H204*(1+'Inc & Exp'!$I$218) -> 0 | J204: =I204*(1+'Inc & Exp'!$I$218) -> 0
D205: Oil | F205: =J149*(1+'Inc & Exp'!$I$218) -> 0 | G205: =F205*(1+'Inc & Exp'!$I$218) -> 0 | H205: =G205*(1+'Inc & Exp'!$I$218) -> 0 | I205: =H205*(1+'Inc & Exp'!$I$218) -> 0 | J205: =I205*(1+'Inc & Exp'!$I$218) -> 0
D206: Water & Sewer | F206: =J150*(1+'Inc & Exp'!$I$216) -> 0 | G206: =F206*(1+'Inc & Exp'!$I$216) -> 0 | H206: =G206*(1+'Inc & Exp'!$I$216) -> 0 | I206: =H206*(1+'Inc & Exp'!$I$216) -> 0 | J206: =I206*(1+'Inc & Exp'!$I$216) -> 0
D207: Replacement Reserve | F207: =J151*(1+'Inc & Exp'!$I$218) -> 0 | G207: =F207*(1+'Inc & Exp'!$I$218) -> 0 | H207: =G207*(1+'Inc & Exp'!$I$218) -> 0 | I207: =H207*(1+'Inc & Exp'!$I$218) -> 0 | J207: =I207*(1+'Inc & Exp'!$I$218) -> 0
D208: Real Estate Taxes | F208: =J152*(1+'Inc & Exp'!$I$217) -> 0 | G208: =F208*(1+'Inc & Exp'!$I$217) -> 0 | H208: =G208*(1+'Inc & Exp'!$I$217) -> 0 | I208: =H208*(1+'Inc & Exp'!$I$217) -> 0 | J208: =I208*(1+'Inc & Exp'!$I$217) -> 0
D209: Other Taxes | F209: =J153*(1+'Inc & Exp'!$I$217) -> 0 | G209: =F209*(1+'Inc & Exp'!$I$217) -> 0 | H209: =G209*(1+'Inc & Exp'!$I$217) -> 0 | I209: =H209*(1+'Inc & Exp'!$I$217) -> 0 | J209: =I209*(1+'Inc & Exp'!$I$217) -> 0
D210: Insurance | F210: =J154*(1+'Inc & Exp'!$I$218) -> 0 | G210: =F210*(1+'Inc & Exp'!$I$218) -> 0 | H210: =G210*(1+'Inc & Exp'!$I$218) -> 0 | I210: =H210*(1+'Inc & Exp'!$I$218) -> 0 | J210: =I210*(1+'Inc & Exp'!$I$218) -> 0
D211: Other: | E211: =IF(+'LIHTC Info'!D132=""," ",'LIHTC Info'!D132) ->  | F211: =J155*(1+'Inc & Exp'!$I$218) -> 0 | G211: =F211*(1+'Inc & Exp'!$I$218) -> 0 | H211: =G211*(1+'Inc & Exp'!$I$218) -> 0 | I211: =H211*(1+'Inc & Exp'!$I$218) -> 0 | J211: =I211*(1+'Inc & Exp'!$I$218) -> 0
C212: Total Operating Expenses | F212: =SUM(F199:F211) -> 0 | G212: =SUM(G199:G211) -> 0 | H212: =SUM(H199:H211) -> 0 | I212: =SUM(I199:I211) -> 0 | J212: =SUM(J199:J211) -> 0
C214: NET OPERATING INCOME | F214: =F196-F212 -> 0 | G214: =G196-G212 -> 0 | H214: =H196-H212 -> 0 | I214: =I196-I212 -> 0 | J214: =J196-J212 -> 0
D216: Debt Service | F216: ='Inc & Exp'!$G$234 -> 0 | G216: ='Inc & Exp'!$G$234 -> 0 | H216: ='Inc & Exp'!$G$234 -> 0 | I216: ='Inc & Exp'!$G$234 -> 0 | J216: ='Inc & Exp'!$G$234 -> 0
D217: Debt Service Coverage | F217: =IF(F216>0,F214/F216," ") ->  | G217: =IF(G216>0,G214/G216," ") ->  | H217: =IF(H216>0,H214/H216," ") ->  | I217: =IF(I216>0,I214/I216," ") ->  | J217: =IF(J216>0,J214/J216," ") -> 
D218: Project Cash Flow | F218: =F214-F216 -> 0 | G218: =G214-G216 -> 0 | H218: =H214-H216 -> 0 | I218: =I214-I216 -> 0 | J218: =J214-J216 -> 0
D219: Operating Deficit | F219: =IF(F218>0,0,F218) -> 0 | G219: =IF(G218>0,0,G218) -> 0 | H219: =IF(H218>0,0,H218) -> 0 | I219: =IF(I218>0,0,I218) -> 0 | J219: =IF(J218>0,0,J218) -> 0
I221: Operating Deficit | J221: =SUM(F219:J219,F163:J163) -> 0
I222: Operating Reserve | J222: ='Closing S&U'!$E$207 -> 0

Sheet Dev Fee
A1: Developer Fee Schedule
A3: Project Name | B3: ='Project Info'!E3 -> 0
B5: Developer Fees
A7: The developer fee is not a guaranteed or automatic budgetary figure, and must be approved by the Authority
A8: within the context of each project. The fee will be strictly limited, with any violations of the developer
A9: certification of development cost forwarded to the IRS using IRS form 8823. For purposes of calculating the
A10: maximum developer fee allowed, the Authority does not distinguish between the developer fee and fees for
A11: consultants doing those tasks typically done by a developer, regardless of whether the applicant is a for-
A12: profit or non-profit entity. "Consultant fees" counted as developer fee do not include professional fees such
A13: as architectural, engineering, or appraisal fees.
A15: Maximum Developer Fee Calculation
A17: 1. The maximum fee in any case shall not exceed 15% of total development costs: | C17: ='Closing S&U'!G193/'Closing S&U'!G228 -> 
A19: 2. Projects primarily relating to acquisition, with renovation/new construction (including contingency) equaling
A20: less than 50% of total development costs, not including land. Can be general occupancy or age-restricted.
A22: 6300 | B22: per unit | C22: =A22*'Project Info'!N82 -> 0
G23: Remove when published!
A24: 3. General occupancy projects (at least 25% 2BR units, and no age-restricted or >62 age designation)
D25: # of units | G25: Old | H25: 0.12 | R25: "# units over 100 | S25: # units over 40 | T25: # units over 10 | U25: # units under 11 | W25: check
A26: 23760 | B26: per unit for first 10 units | C26: =IF(U27>0,U27*A26,0) -> 0 | D26: ='Project Info'!N82 -> 0 | G26: 21000 | H26: =G26*1.12 -> 23520 | R26: =IF($D$26>100,($D$26-100),0) -> 0 | S26: =IF($D$26>40,($D$26-40),0) -> 0 | T26: =IF($D$26>10,($D$26-10),0) -> 0 | U26: =IF(D26>10,10,D26) -> 0 | W26: =10*A26 -> 237600
A27: 19440 | B27: per unit for next 30 units | C27: =IF(T27>0,T27*A27,0) -> 0 | G27: 17000 | H27: =G27*1.12 -> 19040 | R27: =IF(R26>100,100,D26-100) -> -100 | S27: =IF(S26>60,60,D26-40) -> -40 | T27: =IF(T26>30,30,D26-10) -> -10 | U27: =U26 -> 0 | W27: =30*A27 -> 583200
A28: 16200 | B28: per unit for next 60 units | C28: =IF(S27>0,S27*A28,0) -> 0 | D28: Total Fee | G28: 14000 | H28: =G28*1.12 -> 15680 | W28: =10*A28 -> 162000
A29: 7020 | B29: per unit for any unit above 100 | C29: =IF(R26>0,R26*A29,0) -> 0 | D29: =SUM(C26:C29) -> 0 | G29: 6000 | H29: =G29*1.12 -> 6720 | W29: =0*A29 -> 0
D30: % of TDC
D31: =D29/'Closing S&U'!G228 ->  | W31: =SUM(W26:W30) -> 982800
A33: 4. Age-restricted or other projects (with senior >62 age designation or otherwise not meeting #3 above)
D34: # of units | H34: 0.12 | R34: "# units over 100 | S34: # units over 40 | T34: # units over 10 | U34: # units under 11
A35: 21600 | B35: per unit for first 10 units | C35: =IF(U36>0,U36*A35,0) -> 0 | D35: =D26 -> 0 | G35: 19000 | H35: =G35*1.12 -> 21280 | R35: =IF($D$26>100,($D$26-100),0) -> 0 | S35: =IF($D$26>40,($D$26-40),0) -> 0 | T35: =IF($D$26>10,($D$26-10),0) -> 0 | U35: =IF(D35>10,10,D35) -> 0 | W35: =10*A35 -> 216000
A36: 17280 | B36: per unit for next 30 units | C36: =IF(T36>0,T36*A36,0) -> 0 | G36: 15000 | H36: =G36*1.12 -> 16800 | R36: =IF(R35>100,100,D35-100) -> -100 | S36: =IF(S35>60,60,D35-40) -> -40 | T36: =IF(T35>30,30,D35-10) -> -10 | U36: =U35 -> 0 | W36: =30*A36 -> 518400
A37: 14580 | B37: per unit for next 60 units | C37: =IF(S36>0,S36*A37,0) -> 0 | D37: Total Fee | G37: 13000 | H37: =G37*1.12 -> 14560 | W37: =10*A37 -> 145800
A38: 7020 | B38: per unit for any unit above 100 | C38: =IF(R36>0,R36*A38,0) -> 0 | D38: =SUM(C35:C38) -> 0 | G38: 6000 | H38: =G38*1.12 -> 6720 | W38: =0*A38 -> 0
D39: % of TDC | W39: =SUM(W35:W38) -> 880200
D40: =D38/'Closing S&U'!G228 -> 
A42: 5. Projects financed through the issuance of Tax Exempt Bonds are eligible for a developer fee | D42: =('Closing S&U'!G228-'Closing S&U'!G193)*0.15 -> 0
A43: up to 15% of the total development cost (not including developer fee).
B44: =IFERROR(IF((((G7+F20)/'Project Info'!N82)>230000),"EQUITY & SUBSIDY EXCEEDS QAP MAXIMUM",""),"") -> 
A45: Tax Exempt Bonds ONLY | B45: REQUIRED DEFERRED DEVELOPER FEE | D45: =IF(ISBLANK('Project Info'!G40),D42-D38,D42-D29) -> 0

Sheet Sheet1 (hidden)
A1: Income Limit/Program
A2: LIHTC 20% AMI | C2: NHH AHF Loan
A3: LIHTC 30% AMI | B3: Yes | C3: NHH HOME Loan
A4: LIHTC 40% AMI | B4: No | C4: NHH HOME-ARP Loan
A5: LIHTC 50% AMI | C5: NHH HTF Loan
A6: LIHTC 60% AMI | C6: NHH InvestNH Loan
A7: LIHTC 70% AMI | C7: NHH Other Loan
A8: LIHTC 80% AMI
A9: LIHTC 30% AMI/HTF
A10: LIHTC 50% AMI/LOW HOME
A11: LIHTC 60% AMI/HIGH HOME
A12: LIHTC 20% AMI PBV
A13: LIHTC 30% AMI PBV
A14: LIHTC 40% AMI PBV
A15: LIHTC 50% AMI PBV
A16: LIHTC 20% AMI/HTF PBV
A17: LIHTC 30% AMI/HTF PBV
A18: LIHTC 50% AMI/LOW HOME PBV
A19: LIHTC 30% Section 811

Sheet Gap Analysis (hidden)
A1: ='Project Info'!E3 -> 0
B2: LIHTC GAP ANALYSIS
A5: Note: For use by NH Housing Only
A7: EQUITY GAP DETERMINATION
A9: Total Sources of Mortgage Debt | D9: ='Closing S&U'!F20+'Closing S&U'!F22+'Closing S&U'!F24+'Closing S&U'!F26+'Closing S&U'!F28+'Closing S&U'!F35+'Closing S&U'!F36+'Closing S&U'!F38 -> 0
A10: Developer fee loan | D10: ='Closing S&U'!G10 -> 0
A11: Grants | D11: ='Closing S&U'!F15+'Closing S&U'!F16 -> 0
A12: Other | D12: ='Closing S&U'!G11 -> 0
A13: Total Non-Credit Sources of Funds | D13: =SUM(D9:D12) -> 0
A15: Total Equity Needed | D15: ='LIHTC Info'!E197 -> 0
A17: Historic Tax Credits (20% of elig historic basis) | C17: ='LIHTC Info'!I33 -> 0
A18: Historic Tax Credit purchase rate: | C18: ='LIHTC Info'!F43 -> 0
A19: Calculated Equity from Historic Tax Credits | D19: =C18*C17 -> 0
A21: Equity Needed from LIHTC | D21: =D15-D19 -> 0
A23: 30 Percent PV Credit Rate | B23: Total Acquis Credit Allowable | D23: ='LIHTC Info'!G197 -> 0
A24: Assumed Credit Rate: | B24: ='LIHTC Info'!H14 -> 0.04
A26: QCT/DDA Credit Rate Allowed | B26: Yes=1.3, No=0 | D26: =IF('LIHTC Info'!H26="yes",1.3,0) -> 1.3
A27: If Yes, Rehab/Construct Basis increased to 130% of Eligible Basis
A29: 70 Percent PV Credit Rate | B29: Total Rehab Credit Allowable | D29: =IF(D26=1.3,+('LIHTC Info'!H197*B30*D26),('LIHTC Info'!H197*B30)) -> 0
A30: Assumed Credit Rate: | B30: ='LIHTC Info'!H15 -> 0
A32: Total Low Income Tax Credit - "Basis Eligible" | D32: =D29+D23 -> 0
A34: Low Income Equity Purchase Rate | C34: ='LIHTC Info'!F42 -> 0.87
A35: Annual Credit Allocation-Maximum Needed | D35: =IF(C34=0,"",(D21/C34)/10) -> 0
A37: Recommened Credit Allocation: | C37: =IF(D32>D35,D35,D32) -> 0
A38: TOTAL EQUITY FROM LIHTC | D38: =(C37*10)*C34 -> 0
A39: FINANCING GAP | D39: ='Closing S&U'!E211-D38-D19-D13 -> 0

Sheet Exh A (hidden)
C1: 9% credit | E1: 0.09 | G1: Total 9% Basis | H1: ='LIHTC Info'!H197 -> 0
A2: Credit Rate Assumptions: | C2: 4% credit | E2: ='LIHTC Info'!H14 -> 0.04 | G2: Total 4% Basis | H2: ='LIHTC Info'!G197 -> 0
C3: Month of Lock In (for 4% Acq. Credits) | E3: =1/2020 -> 00:00:42.772 | G3: Total # of Buildings | H3: ='Project Info'!I123 -> 0
A5: Carryover Allocation Agreement - Exhibit A | F5: Table Page 1 of 1
A7: Project Name: | B7: ='Project Info'!E3:I3 -> 
A9: Building BIN # | B9: NH-11-00000 | C9: NH-11-00000 | D9: NH-11-00000 | E9: NH-11-00000 | F9: NH-11-00000 | G9: NH-11-00000 | H9: Total
A10: Building Address or
A11: Site Description
A13: Building Type: New Construction
A14: Rehab or Acquisition | B14: New Construct | C14: =B14 -> New Construct | D14: =B14 -> New Construct | E14: =B14 -> New Construct | F14: =B14 -> New Construct | G14: =B14 -> New Construct
A16: Expected Placed
A17: in Service Date | B17: =1/0/0 ->  | C17: =B17 ->  | D17: =C17 ->  | E17: =D17 ->  | F17: =E17 ->  | G17: =F17 -> 
A19: Reasonably Anticipated
A20: Eligible Basis | B20: =$H$1/$H$3 -> 
A22: Eligible for DDA/QCT? | B22: =IF('LIHTC Info'!H26="","",'LIHTC Info'!H26) -> Yes | C22: =B22 -> Yes | D22: =C22 -> Yes | E22: =D22 -> Yes | F22: =E22 -> Yes | G22: =F22 -> Yes
A23: Adjusted Eligible Basis | B23: =IF(B22="yes",($A$24*B20),B20) -> 
A24: 1.3
A25: Estimated Applicable
A26: Fraction** | B26: ='LIHTC Info'!$I$37 -> 0 | C26: =B26 -> 0 | D26: =B26 -> 0 | E26: =B26 -> 0 | F26: =B26 -> 0 | G26: =B26 -> 0
A28: Estimated Qualified Basis | B28: =B23*B26 -> 
A30: Maximum Credit Percentage *** | B30: =$E$1 -> 0.09 | C30: 0.09 | D30: 0.09 | E30: 0.09 | F30: 0.09 | G30: 0.09
A32: Maximum Credit Allocated **** | B32: =ROUND((B30*B28),0.1) ->  | H32: =SUM(B32:G32) -> 
A34: Maximum Credit Calculated | B34: =B30*B28 ->  | H34: =SUM(B34:G34) -> 
A35: * Required to be provided only if the owner has elected to fix the credit percentage pursuant to Section 42(b)(2)(A)(ii)(I).
A37: **If provided, these figures are estimates for computation purposes only. For purposes of the Carryover Allocation Agreement, "reasonably expected basis"
A38: pursuant to Section 42(h)(1)(E)(ii) need not be the same as eligible basis and is computed for an entire project, rather than building by building.
A40: ***If the Owner has elected to fix the credit percentage pursuant to Section 42(b)(2)(A)(ii)(I), this credit percentage is fixed and binding upon all buildings
A41: in the project with respect to which the election is made, and upon the Owner and all successors as Owners of those buildings
A42: in the project. If no such election has been made, this credit percentage is an estimate for purposes of making the Carryover Allocation Agreement.
A44: ****If a separate housing credit dollar amount is not identified with respect to each building in the project, this allocation is made on a project basis pursuant to
A45: Section 42(h)(1)(F) of the Code.
A49: Carryover Allocation Agreement - Exhibit A | F49: Table Page 2 of 3
A51: Project Name: | B51: =B7 -> 
A53: Building BIN # | B53: NH-07-00000 | C53: NH-07-00000 | D53: NH-07-00000 | E53: NH-07-00000 | F53: NH-07-00000 | G53: NH-07-00000 | H53: Total
A54: Building Address or
A55: Site Description
A57: Building Type: New Construction
A58: Rehab or Acquisition | B58: New Construct | C58: New Construct | D58: New Construct | E58: New Construct | F58: New Construct | G58: New Construct
A60: Expected Placed
A61: in Service Date | B61: =B17 ->  | C61: =B61 ->  | D61: =C61 ->  | E61: =D61 ->  | F61: =E61 ->  | G61: =F61 -> 
A63: Reasonably Anticipated
A64: Eligible Basis | B64: =$H$1/$H$3 -> 
A66: Eligible for DDA/QCT? | B66: =B22 -> Yes | C66: =B66 -> Yes | D66: =C66 -> Yes | E66: =D66 -> Yes | F66: =E66 -> Yes | G66: =F66 -> Yes
A67: Adjusted Eligible Basis | B67: =IF(B66="yes",($A$24*B64),B64) -> 
A68: 1.3
A69: Estimated Applicable
A70: Fraction** | B70: ='LIHTC Info'!I37 -> 0 | C70: =B70 -> 0 | D70: =B70 -> 0 | E70: =B70 -> 0 | F70: =B70 -> 0 | G70: =B70 -> 0
A72: Estimated Qualified Basis | B72: =B67*B70 -> 
A74: Maximum Credit Percentage *** | B74: =$E$1 -> 0.09 | C74: =$E$1 -> 0.09 | D74: 0.09 | E74: 0.09 | F74: 0.09 | G74: 0.09
A76: Maximum Credit Allocated **** | B76: =ROUND((B74*B72),0.1) ->  | H76: =SUM(B76:G76) -> 
A78: Maximum Credit Calculated | B78: =B74*B72 ->  | H78: =SUM(B78:G78) -> 
A79: * Required to be provided only if the owner has elected to fix the credit percentage pursuant to Section 42(b)(2)(A)(ii)(I).
A81: **If provided, these figures are estimates for computation purposes only. For purposes of the Carryover Allocation Agreement, "reasonably expected basis"
A82: pursuant to Section 42(h)(1)(E)(ii) need not be the same as eligible basis and is computed for an entire project, rather than building by building.
A84: ***If the Owner has elected to fix the credit percentage pursuant to Section 42(b)(2)(A)(ii)(I), this credit percentage is fixed and binding upon all buildings
A85: in the project with respect to which the election is made, and upon the Owner and all successors as Owners of those buildings
A86: in the project. If no such election has been made, this credit percentage is an estimate for purposes of making the Carryover Allocation Agreement.
A88: ****If a separate housing credit dollar amount is not identified with respect to each building in the project, this allocation is made on a project basis pursuant to
A89: Section 42(h)(1)(F) of the Code.
A95: Carryover Allocation Agreement - Exhibit A | F95: Table Page 3 of 3
A97: Project Name: | B97: =B7 -> 
A99: Building BIN # | B99: NH-07-00000 | C99: NH-07-00000 | D99: NH-07-00000 | E99: NH-07-00000 | F99: NH-07-00000 | G99: NH-07-00000 | H99: Total
A100: Building Address or
A101: Site Description
A103: Building Type: New Construction
A104: Rehab or Acquisition | B104: New Construct | C104: New Construct | D104: New Construct | E104: New Construct | F104: New Construct | G104: New Construct
A106: Expected Placed
A107: in Service Date | B107: =B61 ->  | C107: =B107 ->  | D107: =C107 ->  | E107: =D107 ->  | F107: =E107 ->  | G107: =F107 -> 
A109: Reasonably Anticipated
A110: Eligible Basis | B110: =$H$1/$H$3 -> 
A112: Eligible for DDA/QCT? | B112: =B66 -> Yes | C112: =B112 -> Yes | D112: =C112 -> Yes | E112: =D112 -> Yes | F112: =E112 -> Yes | G112: =F112 -> Yes
A113: Adjusted Eligible Basis | B113: =IF(B112="yes",($A$24*B110),B110) -> 
A114: 1.3
A115: Estimated Applicable
A116: Fraction** | B116: ='LIHTC Info'!$I$37 -> 0 | C116: ='LIHTC Info'!$I$37 -> 0 | D116: ='LIHTC Info'!$I$37 -> 0 | E116: ='LIHTC Info'!$I$37 -> 0 | F116: ='LIHTC Info'!$I$37 -> 0 | G116: ='LIHTC Info'!$I$37 -> 0
A118: Estimated Qualified Basis | B118: =B113*B116 -> 
A120: Maximum Credit Percentage *** | B120: =$E$1 -> 0.09 | C120: 0.09 | D120: 0.09 | E120: 0.09 | F120: 0.09 | G120: 0.09
A122: Maximum Credit Allocated **** | B122: =ROUND((B120*B118),0.1) ->  | H122: =SUM(B122:G122) -> 
A124: Maximum Credit Calculated | B124: =B120*B118 ->  | H124: =SUM(B124:G124) -> 
A125: * Required to be provided only if the owner has elected to fix the credit percentage pursuant to Section 42(b)(2)(A)(ii)(I).
A127: **If provided, these figures are estimates for computation purposes only. For purposes of the Carryover Allocation Agreement, "reasonably expected basis"
A128: pursuant to Section 42(h)(1)(E)(ii) need not be the same as eligible basis and is computed for an entire project, rather than building by building.
A130: ***If the Owner has elected to fix the credit percentage pursuant to Section 42(b)(2)(A)(ii)(I), this credit percentage is fixed and binding upon all buildings
A131: in the project with respect to which the election is made, and upon the Owner and all successors as Owners of those buildings
A132: in the project. If no such election has been made, this credit percentage is an estimate for purposes of making the Carryover Allocation Agreement.
A134: ****If a separate housing credit dollar amount is not identified with respect to each building in the project, this allocation is made on a project basis pursuant to
A135: Section 42(h)(1)(F) of the Code.

Sheet Risk Sharing (hidden)
A1: NHHFA | B1: Sources and Uses of Funds
A2: Section 911 Subsidy Layering Review
A4: Project Name: | B4: ='Project Info'!E3 -> 0
A5: NHHFA Project No.:
A7: SOURCES
A8: Debt Sources:
A9: HUD Loans/programs (HOME)
A10: Other Government Assistance
A11: Other Loans
A12: NHHFA Tax Exempt Bond | B12: 0
A13: Deferred Developer Fee | B13: 0
A14: Other
A15: Debt Subtotal | B15: 0
A17: Equity:
A18: Grants
A19: Estimated Net Syndication Proceeds | B19: 0
A20: Additional Sponsor Equity - Investsment Earnings | B20: 0
A21: Other Equity Sources
A22: Equity Subtotal | B22: 0
A23: TOTAL SOURCES | B23: 0
A26: USES
A28: Mortgageable Replacement Cost Uses
A29: Acquisition | B29: 0
A30: Construction | B30: 0
A31: General Requirements | B31: included in construction estimate
A32: Builders General Overhead | B32: included in construction estimate
A33: Construction Contingency | B33: included in construction estimate
A34: Furnishings, Fixtures and Equipment | B34: included in construction estimate
A35: Permits | B35: 0
A36: Architect | B36: 0
A37: Engineer | B37: 0
A38: Construction Administration/Consulting | B38: 0
A39: Origination Fee | B39: 0
A40: Construction Interest | B40: 0
A41: Construction Insurance | B41: 0
A42: Bond Issuance | B42: 0
A43: Credit Enhancement | B43: 0
A44: Transfer Tax | B44: 0
A45: Title Ins. and Recording | B45: 0
A46: Tax Credit Fee | B46: 0
A47: Lender Legal | B47: 0
A48: Appraisal | B48: 0
A49: Market Study | B49: 0
A50: Environmental Report | B50: 0
A51: Survey | B51: 0
A52: Legal | B52: 0
A53: Accounting | B53: 0
A54: Taxes | B54: 0
A55: Insurance | B55: 0
A56: Soft Cost Contingency | B56: 0
A57: Rent Up Reserve | B57: 0
A58: Relocation | B58: 0
A59: Marketing Reserve | B59: 0
A60: Replacement Reserve | B60: 0
A61: Asbestos Removal | B61: 0
A62: Prepaid Tax Credit Monitoring Fee | B62: 0
A63: Subtotal Mortgageable Replacement Cost Uses | B63: 0
A65: Non-Mortgageable Replacement Cost Uses
A67: Working Capital Reserve
A68: Operating Deficit Reserve | B68: 0
A70: Developer Fee | B70: 0
A71: Subtotal Non-Mortgageable Uses | B71: 0
A73: Total Uses | B73: 0
A85: NEW HAMPSHIRE HOUSING FINANCE AUTHORITY
A86: SECTION 911 SUBSIDY LAYER REVIEW
B87: 0
A88: STANDARD 1: BUILDERS PROFIT
A90: Project Name | B90: 0
A91: NHHFA Project No. | B91: 0
A93: Identity of Interest | B93: No
A94: NCSHA Standards for Tax Credit Administration | B94: Yes
A95: NHHFA Tax Credit Allocation Plan | B95: Yes
A97: Construction Costs (everything) | B97: 0
A99: See Note below
A100: DETERMINATION: | B100: Actual | C100: Maximum
A102: General Conditions
A103: Percent of Construction Costs
A104: Builder's Overhead
A105: Percent of Construction Costs
A106: Builder's Profit
A107: Percent of Construction Costs
A109: Note: Project not yet bid.
A115: NEW HAMPSHIRE HOUSING FINANCE AUTHORITY
A116: SECTION 911 SUBSIDY LAYERING REVIEW
B117: 0
A118: STANDARD 2: DEVELOPER'S FEE
A120: Project Name: | C120: 0
A121: NHHFA Project No.: | C121: 0
A123: Identity of Interest: | C123: No
A124: NHHFA Tax Credit Allocation Plan: | C124: Yes
A126: Total Rehab/Const Cost | C126: 0
A127: Total Development Cost | C127: 0
A128: less Developer fee in Budget | C128: 0
A129: Adjusted Total Development Cost | C129: 0
A130: Adjusted Rehab/Const Cost: | C130: 0
A132: Percent Rehabilitation to Adjusted TDC | C132: ERR
A134: See Attached NHHFA QAP Developer Fee Schedule for Project
A165: STANDARD 3: SYNDICATION EXPENSES
A167: Project Name: | B167: 0
A168: NHHFA Project No.: | B168: 0
B169: 0
A171: Gross Syndication Proceeds: | B171: 0
A172: Type of Syndication:
A174: Syndication Expenses:
A175: Commissions/Finders Fees:
A176: Consultant's Fees:
A177: Legal
A178: Accounting
A179: Other
A180: Total Syndication Expenses: | B180: 0
A182: Net Syndication Proceeds: | B182: 0
A184: DETERMINATION: | B184: Actual | C184: Maximum Allowed
A185: Total Syndication Expenses: | B185: 0 | C185: 0
A186: Percent of Gross Syndication Proceeds | B186: ERR | C186: ERR
A195: SECTION 542(C) | B195: DATA ELEMENTS
A196: (Risk Sharing Program) | B196: APPENDIX 11
A198: HOUSING FINANCE AGENCY INFORMATION
A199: HFA: | B199: New Hampshire Housing Finance Authority
A200: Contact:
A201: Phone:
A203: Project Name:
A204: Project Number:
A205: Project Number - Section 8:
A206: City:
A207: Street Address
A208: State
A209: Zip Code
A210: Congressional District
A211: Project Census Tract
A212: Project County Code
A213: PMSA
A214: Superseded Project No. :
A215: Mortgage Amount
A216: Total Number of Units
A217: Number of Section 8 Units
A218: Occupant type
A219: Sponsor/Mortgagor Type
A220: Production Method
A225: Initial Endorsement:
A226: Final Endorsement:
A227: Addendum to the Risk Sharing Agreement:
A229: # Units Affordable by families at:
A230: 50% median income #units
A231: 50% median income %units
A232: 60% median income #units
A233: 60% median income %units
A235: Type of Building
A236: Total Buildings in Project
A237: Year Built
A238: Unit Type (#of bedrooms)
A239: Units Efficiency
A240: Units One Bedroom
A241: Units Two Bedroom
A242: Units Three Bedroom
A243: Four Plus Bedroom
A244: Units Elderly
A245: Units Handicapped
A246: Non-revenue Units
A247: Units - Total
A248: SRO
A249: B&C
A250: Non-Elderly
A251: Commercial Square FT
A252: Elevator
A253: Non-Elevator
A254: Replacement Cost $
A255: Acquisition Cost $
A256: Per Unit Per Annum Expenses
A257: Total annual project expense
A258: Debt Service Coverage
A259: Loan to Value Ratio
A260: Loan to Replacement Cost
A261: Mortgagor Name
A262: Type of Permanent Financing Code
A263: Bond Interest Rate
A264: Variable Bond Rate
A265: Maturity Date
A266: Mortgage Term in Months
A267: Holding Mortgagee Number
A268: Servicing Mortgagee Number
A269: 1st MIP Paid Amount
A270: 1st Payment Date
A271: Financed with/Tax Exempt Bonds
A272: Tax Credit Financing
A273: Special Financing Grants and Loans
A274: Federal Loans
A275: Federal Grants
A276: State Loans
A277: State Grants
A278: Local Loans
A279: Local Grants
A280: Other with remarks
A281: Mortgage Insurance Premium
A282: Total HFA's Fees
A283: Other Fees, if any
A284: Initial Operating Deficit | B284: 0
A285: Term of Deficit Escrow in months | B285: 0
A287: THIS INFORMATION WILL BE PUT INTO THE SYSTEM BY FO STAFF BASED ON
A288: INFORMATION RECEIVED FROM HFAs AT REQUEST FOR HUD-RETAINED REVIEW
A289: PROJECT SPECIFIC INFORMATION
... 47 more rows

Sheet Change Log (hidden)
A1: Change Date | B1: Item | C1: Notes
A2: 2019-02-21 | B2: Fixed Control C macro error | C2: No more errors, Ctrl+c now works.
A3: 2019-02-21 | B3: Renamed tabs to ease navigation & colored based on project type | C3: Not married to these names, however, we should be more descriptive on what the tabs are
A4: 2019-02-21 | B4: Added instruction tab | C4: This will help alleviate some questions on what to fill out for different project types
A5: 2018-04-09 | B5: Updated tabs for income averaging
A6: 2018-04-09 | B6: Changed active X controls | C6: Application can be edited online now
A7: 2019-04-09 | B7: Deleted print summary tab
A8: 2019-04-09 | B8: Increased the developer fee 12% | C8: Cleaned up writing on tab, naming of project type. Will delete on publishing.
A9: 2019-04-09 | B9: Change font on application tabs
A10: 2019-04-15 | B10: Changes to the Gap Analysis tab & Exh A
A11: 2019-04-15 | B11: Add additional cagetories to professional fees. Renamed category.
A12: 2019-04-15 | B12: Added upfront MIP, trustee fee, and application fee to Financing Fees and Expenses
A13: 2019-04-23 | B13: Split financial page into three tabs
A14: 2019-04-23 | B14: Updated income bands on rent tab to auto poplulate
A15: 2019-04-23 | B15: Cleaned up broken links, formulas.
A16: 2019-04-23 | B16: Updated construction tab for a 24 month construction period.
A17: 2019-04-30 | B17: Updated LIHTC boost language rows 14 & 20 on the LIHTC tab
A18: 2019-04-30 | B18: Moved basis/not in basis warning to top of development budget/basis calculation section.
A19: 2019-04-30 | B19: Added row 31 & 31 on the LIHTC tab
A20: 2019-04-30 | B20: Broke out equity types in sources. Linked to LIHTC tab.
A21: 2019-04-30 | B21: Removed reference to max LIHTC's for a GO.
A22: 2019-04-30 | B22: Removed developer fee calc on Closing S&U tab - was only pulling GO
A23: 2019-04-30 | B23: Added TDC/Basis warning calc to LIHTC tab
A24: 2019-04-30 | B24: Added % of TDC for budget categories - Closing S&U tab | C24: These are hidden unless the category has information filled out.
A25: 2019-05-02 | B25: Added choice for propane or natural gas on line 22 of Project Info.
A26: 2019-05-02 | B26: Added FFB Operating Reserve to line 126 of Closing S&U tab
A27: 2019-05-02 | B27: Corrected cell H157 on the Inc & Exp tab to include the commerical management fee | C27: Discussed with Ginny
A28: 2019-05-06 | B28: Removed the auto-update for the date.
A29: 2019-05-06 | B29: Update print preview on all tabs.
A30: 2019-05-06 | B30: Updated dev team tab to accommodate an email address for contacts.
A31: 2019-05-06 | B31: Added energy/solar, and HTC consultant to dev team tab.
A32: 2019-05-06 | B32: Hid the NHHFA-only tabs.

Sheet Module1 (hidden)

Sheet Module2 (hidden)
